Workbook

Sheet BExRepositorySheet (hidden)
A1: 7

Sheet Ingresos
A2: EMPRESA DE ACUEDUCTO ALCANTARILLADO Y ASEO DE BOGOTA
A3: EJECUCION PRESUPUESTAL DE INGRESOS
A4: A 31 DE MARZO DE 2018
C5: 1 | D5: 2 | E5: 3 | F5: 4 | G5: 5 | H5: 6 | I5: 7=(6/4) | J5: 8=(4-6)
A6: CODIGO SECRETARIA DE HACIENDA | B6: RUBRO | C6: Presupuesto Inicial | D6: Modificaciones mes | E6: Modificaciones acumuladas | F6: Presupuesto Definitivo | G6: Recaudos mes | H6: Recaudos Acumulados | I6: % Ejecución Presupuestal | J6: Saldo por recaudar
A7: TOTAL INGRESOS + DISPONIBILIDAD INICIAL | C7: 3850633264000 | D7: 60469497669 | E7: 103123947963 | F7: 3953757211963 | G7: 149132946430 | H7: 1383189533069 | I7: 0.3498417983 | J7: 2570567678894
A8: 100000000000000 | B8: DISPONIBILIDAD INICIAL | C8: 810430807000 | E8: 14337600000 | F8: 824768407000 | G8: 14337600000 | H8: 824768407000 | I8: 1
A9: 00000100000000000000 | B9: DISPONIBILIDAD INICIAL | C9: 810430807000 | E9: 14337600000 | F9: 824768407000 | G9: 14337600000 | H9: 824768407000 | I9: 1
A10: 200000000000000 | B10: INGRESOS | C10: 3040202457000 | D10: 60469497669 | E10: 88786347963 | F10: 3128988804963 | G10: 134795346430 | H10: 558421126069 | I10: 0.178466962 | J10: 2570567678894
A11: 210000000000000 | B11: INGRESOS CORRIENTES | C11: 1548930214000 | D11: 5990185524 | E11: 34307035818 | F11: 1583237249818 | G11: 123657758236 | H11: 447355889500 | I11: 0.2825577086 | J11: 1135881360318
A12: 211000000000000 | B12: INGRESOS DE EXPLOTACION | C12: 1548930214000 | E12: 28316850294 | F12: 1577247064294 | G12: 123657758236 | H12: 444848026311 | I12: 0.2820408016 | J12: 1132399037983
A13: 211020000000000 | B13: VENTA DE SERVICIOS | C13: 1532569244000 | E13: 28316850294 | F13: 1560886094294 | G13: 122708369530 | H13: 441255150145 | I13: 0.282695292 | J13: 1119630944149
A14: 00000211020100000000 | B14: SERVICIO ACUEDUCTO | C14: 801525787000 | F14: 801525787000 | G14: 62078150093 | H14: 198900299789 | I14: 0.2481520907 | J14: 602625487211
A15: 00000211020200000000 | B15: SERVICIO ALCANTARILLADO | C15: 677735457000 | F15: 677735457000 | G15: 60630219437 | H15: 193854800373 | I15: 0.2860331393 | J15: 483880656627
A16: 00000211020300000000 | B16: SERVICIO ASEO | C16: 53308000000 | E16: 28316850294 | F16: 81624850294 | H16: 48500049983 | I16: 0.5941824066 | J16: 33124800311
A17: 211990000000000 | B17: OTROS INGRESOS DE EXPLOTACIÓN | C17: 16360970000 | F17: 16360970000 | G17: 949388706 | H17: 3592876166 | I17: 0.2196004373 | J17: 12768093834
A18: 00000211990100000000 | B18: COMISIONES | C18: 1626574000 | F18: 1626574000 | G18: 137515074 | H18: 245499293 | I18: 0.1509302946 | J18: 1381074707
A19: 00000211990200000000 | B19: ARRENDAMIENTOS BIENES INMUEBLES | C19: 1114450000 | F19: 1114450000 | G19: 5440071 | H19: 101035662 | I19: 0.09065966351 | J19: 1013414338
A20: 00000211990400000000 | B20: INTERESES A USUARIOS | C20: 2498422000 | F20: 2498422000 | G20: 223069120 | H20: 935824836 | I20: 0.3745663607 | J20: 1562597164
A21: 00000211990500000000 | B21: PUBLICACIONES | C21: 3156000 | F21: 3156000 | G21: 3214596 | H21: 12419654 | I21: 3.935251584 | J21: -9263654
A22: 00000211990700000000 | B22: SERVICIOS | C22: 498180000 | F22: 498180000 | G22: 47756510 | H22: 105994199 | I22: 0.2127628548 | J22: 392185801
A23: 00000211990800000000 | B23: CUOTAS PARTES PENSIONALES | G23: 57312062 | H23: 333711427 | J23: -333711427
A24: 00000211990900000000 | B24: EXTRAORDINARIOS - RECUPERACIONES | G24: 161592751 | H24: 561800642 | J24: -561800642
A25: 00000211991100000000 | B25: INGRESOS CENTRAL HIDROELECTRICA SANTA ANA | C25: 10620188000 | F25: 10620188000 | G25: 258877766 | H25: 1186748269 | I25: 0.1117445632 | J25: 9433439731
A26: 00000211991300000000 | B26: SANCIONES Y MULTAS | G26: 54610756 | H26: 109842184 | J26: -109842184
A27: 212000000000000 | B27: OTROS INGRESOS CORRIENTES | D27: 5990185524 | E27: 5990185524 | F27: 5990185524 | H27: 2507863189 | I27: 0.4186620229 | J27: 3482322335
A28: 212040000000000 | B28: RENTAS CONTRACTUALES | D28: 5990185524 | E28: 5990185524 | F28: 5990185524 | H28: 2507863189 | I28: 0.4186620229 | J28: 3482322335
A29: 00000212049900000000 | B29: OTRAS RENTAS CONTRACTUALES | D29: 5990185524 | E29: 5990185524 | F29: 5990185524 | H29: 2507863189 | I29: 0.4186620229 | J29: 3482322335
A30: 220000000000000 | B30: TRANSFERENCIAS | C30: 224243102000 | F30: 224243102000 | H30: 70925826553 | I30: 0.3162898922 | J30: 153317275447
A31: 223000000000000 | B31: MUNICIPIOS | C31: 1426000000 | F31: 1426000000 | H31: 564136725 | I31: 0.3956078015 | J31: 861863275
A32: 00000223030000000000 | B32: TRANSFERENCIAS SUBSIDIOS SOACHA | C32: 1426000000 | F32: 1426000000 | H32: 564136725 | I32: 0.3956078015 | J32: 861863275
A33: 224000000000000 | B33: DE LA ADMINISTRACION CENTRAL | C33: 222817102000 | F33: 222817102000 | H33: 70361689828 | I33: 0.315782268 | J33: 152455412172
A34: 00000224010000000000 | B34: SECRETARIA DISTRITAL DE HACIENDA - LEY 1176 / 2007 | C34: 69180000000 | F34: 69180000000 | H34: 40790549956 | I34: 0.5896292275 | J34: 28389450044
A35: 00000224140000000000 | B35: SECRETARIA DISTRITAL DE HACIENDA - MINIMO VITAL | C35: 66473000000 | F35: 66473000000 | H35: 29571139872 | I35: 0.4448594147 | J35: 36901860128
A36: 00000224170000000000 | B36: SDH - LEY 99 DE 1993 | C36: 87164102000 | F36: 87164102000 | J36: 87164102000
A37: 230000000000000 | B37: RECURSOS DE CAPITAL | C37: 1267029141000 | D37: 54479312145 | E37: 54479312145 | F37: 1321508453145 | G37: 11137588194 | H37: 40139410016 | I37: 0.03037393361 | J37: 1281369043129
A38: 231000000000000 | B38: RECURSOS DEL CREDITO | C38: 1150524499000 | F38: 1150524499000 | J38: 1150524499000
A39: 231010000000000 | B39: CREDITO INTERNO | C39: 1150524499000 | F39: 1150524499000 | J39: 1150524499000
A40: 00000231019800000000 | B40: VIGENCIA ANTERIOR | C40: 203276024000 | D40: -94556200238 | E40: -95754596540 | F40: 107521427460 | J40: 107521427460
A41: 00000231019900000000 | B41: VIGENCIA | C41: 947248475000 | D41: 94556200238 | E41: 95754596540 | F41: 1043003071540 | J41: 1043003071540
A42: 232000000000000 | B42: RENDIMIENTOS OPERACIONES FINANCIERAS | C42: 93893441000 | F42: 93893441000 | G42: 10640783630 | H42: 30684177023 | I42: 0.3267978753 | J42: 63209263977
A43: 232010000000000 | B43: RENDIMIENTO POR OPERACIONES FINANCIERAS | C43: 82160993000 | F43: 82160993000 | G43: 8907089193 | H43: 21862742712 | I43: 0.2660963788 | J43: 60298250288
A44: 00000232010100000000 | B44: INTERESES Y RENDIMIENTOS DEUDORES | G44: 30268513 | H44: 106707158 | J44: -106707158
A45: 00000232010300000000 | B45: INTERESES SOBRE DEPOSITOS | C45: 13360993000 | F45: 13360993000 | G45: 1610668324 | H45: 4781401301 | I45: 0.3578627203 | J45: 8579591699
A46: 00000232010500000000 | B46: INTERESES SOBRE DEPOSITOS FONDO DE VIVIENDA | G46: 59207430 | H46: 209074101 | J46: -209074101
A47: 00000232010700000000 | B47: INGRESOS FINANCIEROS ENCARGO FIDUCIARIO PENSION | C47: 68800000000 | F47: 68800000000 | G47: 7206944926 | H47: 16765560152 | I47: 0.2436854673 | J47: 52034439848
A48: 232020000000000 | B48: RENDIMIENTOS SOBRE PORTAFOLIOS DE INVERSION | C48: 11732448000 | F48: 11732448000 | G48: 1733694437 | H48: 8821434311 | I48: 0.7518835209 | J48: 2911013689
A49: 00000232020100000000 | B49: INGRESOS FINANCIEROS DIVIDENDOS | G49: 8258437 | H49: 24775311 | J49: -24775311
A50: 00000232020300000000 | B50: RENTA FIJA SECTOR FINANCIERO | C50: 11732448000 | F50: 11732448000 | G50: 1725436000 | H50: 8796659000 | I50: 0.7497718294 | J50: 2935789000
A51: 239000000000000 | B51: OTROS RECURSOS DE CAPITAL | C51: 22611201000 | D51: 54479312145 | E51: 54479312145 | F51: 77090513145 | G51: 496804564 | H51: 9455232993 | I51: 0.1226510579 | J51: 67635280152
A52: 00000239010000000000 | B52: RECUPERACION PRESTAMOS DE VIVIENDA | C52: 22000000000 | F52: 22000000000 | G52: 477151464 | H52: 9229910763 | I52: 0.4195413983 | J52: 12770089237
A53: 00000239030000000000 | B53: RECUPERACION PRESTAMOS DE BIENESTAR | C53: 611201000 | F53: 611201000 | G53: 18098015 | H53: 51901236 | I53: 0.08491680478 | J53: 559299764
A54: 00000239040000000000 | B54: INDEMNIZACIONES COMPAÑIAS DE SEGUROS | G54: 1555085 | H54: 173420994 | J54: -173420994
A55: 00000239100000000000 | B55: RECURSOS FIDUCIA | D55: 54479312145 | E55: 54479312145 | F55: 54479312145 | J55: 54479312145

Sheet Gastos
A2: EMPRESA DE ACUEDUCTO ALCANTARILLADO Y ASEO DE BOGOTA
A3: EJECUCION PRESUPUESTAL DE GASTOS
A4: A 31 DE MARZO DE 2018
C5: 1 | D5: 2 | E5: 3 | F5: 4=(1+3) | G5: 5 | H5: 6=(4-5) | I5: 7 | J5: 8 | K5: 9=(8/6) | L5: 11 | M5: 12 | N5: 13=(12/6)
A6: CODIGO SECRETARIA DE HACIENDA | B6: RUBRO | C6: PRESUPUESTO INICIAL | D6: MODIFICACIONES MES | E6: MODIFICACIONES ACUMULADAS | F6: PRESUPUESTO DEFINITIVO | G6: SUSPENSION | H6: APROPIACION DISPONIBLE | I6: COMPROMISOS MES | J6: COMPROMISOS ACUMULADOS | K6: % EJEC PPTAL | L6: AUTORIZACIONES DE GIRO | N6: % EJEC AUT. GIRO | O6: CODIGO SECRETARIA DE HACIENDA | P6: RUBRO | Q6: PRESUPUESTO INICIAL | R6: MODIFICACIONES MES | S6: MODIFICACIONES ACUMULADAS | T6: PRESUPUESTO DEFINITIVO | U6: SUSPENSION | V6: APROPIACION DISPONIBLE | W6: COMPROMISOS MES | X6: COMPROMISOS ACUMULADOS | Y6: % EJEC PPTAL | Z6: AUTORIZACIONES DE GIRO | AB6: % EJEC AUT. GIRO
L7: MES | M7: ACUMULADO | Z7: MES | AA7: ACUMULADO
A8: TOTAL GASTOS + DISPONIBILIDAD FINAL | C8: 3850633264000 | D8: 60469497669 | E8: 103123947963 | F8: 3953757211963 | H8: 3953757211963 | I8: 58011708755 | J8: 1788130248817 | K8: 0.4522610148 | L8: 146863794285 | M8: 404278627014 | N8: 0.1022517584 | O8: TOTAL GASTOS + DISPONIBILIDAD FINAL | Q8: 3850633264000 | T8: 3850633264000 | V8: 3850633264000 | W8: 1669716571939 | X8: 1669716571939 | Y8: 0.4336212923 | Z8: 91962455314 | AA8: 91962455314 | AB8: 0.02388242375 | AC8: =F8-T8 -> 103123947963 | AD8: =D8-AC8 -> -42654450294 | AE8: =J8-X8 -> 118413676878 | AF8: =AE8-I8 -> 60401968123 | AG8: =M8-AA8 -> 312316171700 | AH8: =AG8-L8 -> 165452377415
A9: 300000000000000 | B9: GASTOS | C9: 3738823535000 | D9: 60469497669 | E9: 103123947963 | F9: 3841947482963 | H9: 3841947482963 | I9: 58011708755 | J9: 1788130248817 | K9: 0.4654228765 | L9: 146863794285 | M9: 404278627014 | N9: 0.1052275256 | O9: 300000000000000 | P9: GASTOS | Q9: 3738823535000 | T9: 3738823535000 | V9: 3738823535000 | W9: 1669716571939 | X9: 1669716571939 | Y9: 0.4465887615 | Z9: 91962455314 | AA9: 91962455314 | AB9: 0.02459662898 | AC9: =F9-T9 -> 103123947963 | AD9: =D9-AC9 -> -42654450294 | AE9: =J9-X9 -> 118413676878 | AF9: =AE9-I9 -> 60401968123 | AG9: =M9-AA9 -> 312316171700 | AH9: =AG9-L9 -> 165452377415
A10: 310000000000000 | B10: GASTOS DE FUNCIONAMIENTO | C10: 1236617326000 | E10: 5106678498 | F10: 1241724004498 | H10: 1241724004498 | I10: 57258348992 | J10: 484375056977 | K10: 0.3900827037 | L10: 69131489812 | M10: 204681764330 | N10: 0.1648367621 | O10: 310000000000000 | P10: GASTOS DE FUNCIONAMIENTO | Q10: 1236617326000 | T10: 1236617326000 | V10: 1236617326000 | W10: 377880174162 | X10: 377880174162 | Y10: 0.305575675 | Z10: 69460692751 | AA10: 69460692751 | AB10: 0.05616991715 | AC10: 5106678498 | AD10: -5106678498 | AE10: 106494882815 | AF10: 49236533823 | AG10: 135221071579 | AH10: 66089581767
A11: 311000000000000 | B11: SERVICIOS PERSONALES | C11: 322700565000 | D11: -79026758 | E11: 4539933302 | F11: 327240498302 | H11: 327240498302 | I11: 18682907929 | J11: 97432620493 | K11: 0.2977401055 | L11: 21337762578 | M11: 63289937701 | N11: 0.1934049668 | O11: 311000000000000 | P11: SERVICIOS PERSONALES | Q11: 322700565000 | R11: 3615038405 | S11: 3615038405 | T11: 326315603405 | V11: 326315603405 | W11: 60083800098 | X11: 60083800098 | Y11: 0.1841278795 | Z11: 23255279004 | AA11: 23255279004 | AB11: 0.07126621823 | AC11: 924894897 | AD11: -1003921655 | AE11: 37348820395 | AF11: 18665912466 | AG11: 40034658697 | AH11: 18696896119
A12: 311010000000000 | B12: SERVICIOS PERSONALES ASOCIADOS A LA NOMINA | C12: 207592274000 | E12: -1295710754 | F12: 206296563246 | H12: 206296563246 | I12: 14105201678 | J12: 43015918896 | K12: 0.2085149564 | L12: 13991161230 | M12: 42901878448 | N12: 0.2079621578 | O12: 311010000000000 | P12: SERVICIOS PERSONALES ASOCIADOS A LA NOMINA | Q12: 207592274000 | R12: -1536198850 | S12: -1536198850 | T12: 206056075150 | V12: 206056075150 | W12: 15276500628 | X12: 15276500628 | Y12: 0.07413758909 | Z12: 15276500628 | AA12: 15276500628 | AB12: 0.07413758909 | AC12: 240488096 | AD12: -240488096 | AE12: 27739418268 | AF12: 13634216590 | AG12: 27625377820 | AH12: 13634216590
A13: 00000311010100000000 | B13: SUELDOS PERSONAL DE NOMINA | C13: 119153276000 | E13: -868500763 | F13: 118284775237 | H13: 118284775237 | I13: 9515892951 | J13: 27588250872 | K13: 0.2332358566 | L13: 9515629801 | M13: 27587987722 | N13: 0.2332336319 | O13: 00000311010100000000 | P13: SUELDOS PERSONAL DE NOMINA | Q13: 119153276000 | R13: -1000073963 | S13: -1000073963 | T13: 118153202037 | V13: 118153202037 | W13: 8742016379 | X13: 8742016379 | Y13: 0.07398882323 | Z13: 8742016379 | AA13: 8742016379 | AB13: 0.07398882323 | AC13: 131573200 | AD13: -131573200 | AE13: 18846234493 | AF13: 9330341542 | AG13: 18845971343 | AH13: 9330341542
A14: 00000311010200000000 | B14: GASTOS DE REPRESENTACION | C14: 71675000 | F14: 71675000 | H14: 71675000 | I14: 5535436 | J14: 16052764 | K14: 0.2239660133 | L14: 5535436 | M14: 16052764 | N14: 0.2239660133 | O14: 00000311010200000000 | P14: GASTOS DE REPRESENTACION | Q14: 71675000 | T14: 71675000 | V14: 71675000 | W14: 5535436 | X14: 5535436 | Y14: 0.07722966167 | Z14: 5535436 | AA14: 5535436 | AB14: 0.07722966167 | AC14: 0 | AD14: 0 | AE14: 10517328 | AF14: 4981892 | AG14: 10517328 | AH14: 4981892
A15: 00000311010300000000 | B15: HORAS EXTRAS, DOMINICALES, FESTIVOS, RECARGO NOCTURNO Y TRA | C15: 11374267000 | E15: -15350615 | F15: 11358916385 | H15: 11358916385 | I15: 1321745626 | J15: 4406427810 | K15: 0.3879267758 | L15: 1321745626 | M15: 4406427810 | N15: 0.3879267758 | O15: 00000311010300000000 | P15: HORAS EXTRAS, DOMINICALES, FESTIVOS, RECARGO NOCTURNO Y TRA | Q15: 11374267000 | R15: -17350615 | S15: -17350615 | T15: 11356916385 | V15: 11356916385 | W15: 1702924950 | X15: 1702924950 | Y15: 0.1499460674 | Z15: 1702924950 | AA15: 1702924950 | AB15: 0.1499460674 | AC15: 2000000 | AD15: -2000000 | AE15: 2703502860 | AF15: 1381757234 | AG15: 2703502860 | AH15: 1381757234
A16: 00000311010400000000 | B16: SUBSIDIO DE TRANSPORTE | C16: 1518813000 | E16: -213803 | F16: 1518599197 | H16: 1518599197 | I16: 92753219 | J16: 324532130 | K16: 0.2137049266 | L16: 92722412 | M16: 324501323 | N16: 0.2136846402 | O16: 00000311010400000000 | P16: SUBSIDIO DE TRANSPORTE | Q16: 1518813000 | R16: -213803 | S16: -213803 | T16: 1518599197 | V16: 1518599197 | W16: 130683384 | X16: 130683384 | Y16: 0.08605521737 | Z16: 130683384 | AA16: 130683384 | AB16: 0.08605521737 | AC16: 0 | AD16: 0 | AE16: 193848746 | AF16: 101095527 | AG16: 193817939 | AH16: 101095527
A17: 00000311010500000000 | B17: SUBSIDIO DE ALIMENTACION | C17: 8862554000 | E17: 2332021 | F17: 8864886021 | H17: 8864886021 | I17: 701970096 | J17: 2486820588 | K17: 0.2805248237 | L17: 701859441 | M17: 2486709933 | N17: 0.2805123413 | O17: 00000311010500000000 | P17: SUBSIDIO DE ALIMENTACION | Q17: 8862554000 | R17: 2332021 | S17: 2332021 | T17: 8864886021 | V17: 8864886021 | W17: 1015555830 | X17: 1015555830 | Y17: 0.1145593782 | Z17: 1015555830 | AA17: 1015555830 | AB17: 0.1145593782 | AC17: 0 | AD17: 0 | AE17: 1471264758 | AF17: 769294662 | AG17: 1471154103 | AH17: 769294662
A18: 00000311010600000000 | B18: BONIFICACION POR SERVICIOS PRESTADOS | C18: 428970000 | E18: -1639069 | F18: 427330931 | H18: 427330931 | I18: 5931296 | J18: 55999622 | K18: 0.1310450939 | L18: 5931296 | M18: 55999622 | N18: 0.1310450939 | O18: 00000311010600000000 | P18: BONIFICACION POR SERVICIOS PRESTADOS | Q18: 428970000 | R18: -5127753 | S18: -5127753 | T18: 423842247 | V18: 423842247 | W18: 25910782 | X18: 25910782 | Y18: 0.06113308002 | Z18: 25910782 | AA18: 25910782 | AB18: 0.06113308002 | AC18: 3488684 | AD18: -3488684 | AE18: 30088840 | AF18: 24157544 | AG18: 30088840 | AH18: 24157544
A19: 00000311010700000000 | B19: PRIMA SEMESTRAL | C19: 13981393000 | E19: 7621116 | F19: 13989014116 | H19: 13989014116 | I19: 777051 | J19: 12834466 | K19: 0.0009174675137 | L19: 777051 | M19: 12834466 | N19: 0.0009174675137 | O19: 00000311010700000000 | P19: PRIMA SEMESTRAL | Q19: 13981393000 | T19: 13981393000 | V19: 13981393000 | W19: 8349833 | X19: 8349833 | Y19: 0.0005972103781 | Z19: 8349833 | AA19: 8349833 | AB19: 0.0005972103781 | AC19: 7621116 | AD19: -7621116 | AE19: 4484633 | AF19: 3707582 | AG19: 4484633 | AH19: 3707582
A20: 00000311010900000000 | B20: PRIMA DE NAVIDAD | C20: 14466954000 | E20: -144148872 | F20: 14322805128 | H20: 14322805128 | I20: 406816 | J20: 2654253 | K20: 0.0001853165617 | L20: 406815 | M20: 2654252 | N20: 0.0001853164919 | O20: 00000311010900000000 | P20: PRIMA DE NAVIDAD | Q20: 14466954000 | R20: -161349296 | S20: -161349296 | T20: 14305604704 | V20: 14305604704 | W20: 1003388 | X20: 1003388 | Y20: 7.013950272e-05 | Z20: 1003388 | AA20: 1003388 | AB20: 7.013950272e-05 | AC20: 17200424 | AD20: -17200424 | AE20: 1650865 | AF20: 1244049 | AG20: 1650864 | AH20: 1244049
A21: 00000311011000000000 | B21: PRIMA DE VACACIONES | C21: 15513705000 | E21: -110834801 | F21: 15402870199 | H21: 15402870199 | I21: 1082208610 | J21: 2718610048 | K21: 0.1765002245 | L21: 1081171612 | M21: 2717573050 | N21: 0.1764328995 | O21: 00000311011000000000 | P21: PRIMA DE VACACIONES | Q21: 15513705000 | R21: -126712121 | S21: -126712121 | T21: 15386992879 | V21: 15386992879 | W21: 1034226019 | X21: 1034226019 | Y21: 0.06721430413 | Z21: 1034226019 | AA21: 1034226019 | AB21: 0.06721430413 | AC21: 15877320 | AD21: -15877320 | AE21: 1684384029 | AF21: 602175419 | AG21: 1683347031 | AH21: 602175419
A22: 00000311011100000000 | B22: PRIMA TECNICA | C22: 4202843000 | E22: -71669210 | F22: 4131173790 | H22: 4131173790 | I22: 314973701 | J22: 926109263 | K22: 0.2241758178 | L22: 314973701 | M22: 926109263 | N22: 0.2241758178 | O22: 00000311011100000000 | P22: PRIMA TECNICA | Q22: 4202843000 | R22: -131475210 | S22: -131475210 | T22: 4071367790 | V22: 4071367790 | W22: 306310647 | X22: 306310647 | Y22: 0.07523531717 | Z22: 306310647 | AA22: 306310647 | AB22: 0.07523531717 | AC22: 59806000 | AD22: -59806000 | AE22: 619798616 | AF22: 304824915 | AG22: 619798616 | AH22: 304824915
A23: 00000311011200000000 | B23: OTRAS PRIMAS Y BONIFICACIONES | C23: 11618579000 | E23: -93306758 | F23: 11525272242 | H23: 11525272242 | I23: 361279671 | J23: 2632486701 | K23: 0.2284099365 | L23: 248680834 | M23: 2519887864 | N23: 0.2186402031 | O23: 00000311011200000000 | P23: OTRAS PRIMAS Y BONIFICACIONES | Q23: 11618579000 | R23: -96228110 | S23: -96228110 | T23: 11522350890 | V23: 11522350890 | W23: 2047018976 | X23: 2047018976 | Y23: 0.1776563651 | Z23: 2047018976 | AA23: 2047018976 | AB23: 0.1776563651 | AC23: 2921352 | AD23: -2921352 | AE23: 585467725 | AF23: 224188054 | AG23: 472868888 | AH23: 224188054
A24: 00000311011400000000 | B24: QUINQUENIO | C24: 4341645000 | F24: 4341645000 | H24: 4341645000 | I24: 701727205 | J24: 1826024919 | K24: 0.4205836541 | L24: 701727205 | M24: 1826024919 | N24: 0.4205836541 | O24: 00000311011400000000 | P24: QUINQUENIO | Q24: 4341645000 | T24: 4341645000 | V24: 4341645000 | W24: 237849544 | X24: 237849544 | Y24: 0.05478327777 | Z24: 237849544 | AA24: 237849544 | AB24: 0.05478327777 | AC24: 0 | AD24: 0 | AE24: 1588175375 | AF24: 886448170 | AG24: 1588175375 | AH24: 886448170
A25: 00000311011500000000 | B25: INDEMNIZACIONES LABORALES | C25: 1512000000 | F25: 1512000000 | H25: 1512000000 | J25: 19115460 | K25: 0.0126425 | M25: 19115460 | N25: 0.0126425 | O25: 00000311011500000000 | P25: INDEMNIZACIONES LABORALES | Q25: 1512000000 | T25: 1512000000 | V25: 1512000000 | W25: 19115460 | X25: 19115460 | Y25: 0.0126425 | Z25: 19115460 | AA25: 19115460 | AB25: 0.0126425 | AC25: 0 | AD25: 0 | AE25: 0 | AF25: 0 | AG25: 0 | AH25: 0
A26: 00000311011600000000 | B26: CONVENCIONES COLECTIVAS O CONVENIOS | C26: 545600000 | F26: 545600000 | H26: 545600000 | O26: 00000311011600000000 | P26: CONVENCIONES COLECTIVAS O CONVENIOS | Q26: 545600000 | T26: 545600000 | V26: 545600000 | AC26: 0 | AD26: 0 | AE26: 0 | AF26: 0 | AG26: 0 | AH26: 0
A27: 311020000000000 | B27: SERVICIOS PERSONALES INDIRECTOS | C27: 52943116000 | D27: -79026758 | E27: 5300525466 | F27: 58243641466 | H27: 58243641466 | I27: 462946257 | J27: 34580612358 | K27: 0.5937233917 | L27: 3268576285 | M27: 4478789668 | N27: 0.0768974871 | O27: 311020000000000 | P27: SERVICIOS PERSONALES INDIRECTOS | Q27: 52943116000 | R27: 4712018129 | S27: 4712018129 | T27: 57655134129 | V27: 57655134129 | W27: 33193043172 | X27: 33193043172 | Y27: 0.5757170402 | Z27: 279496097 | AA27: 279496097 | AB27: 0.004847722605 | AC27: 588507337 | AD27: -667534095 | AE27: 1387569186 | AF27: 924622929 | AG27: 4199293571 | AH27: 930717286
A28: 00000311020300000000 | B28: HONORARIOS | C28: 43143000000 | D28: -79026758 | E28: 5288067982 | F28: 48431067982 | H28: 48431067982 | I28: 122832727 | J28: 32913055203 | K28: 0.6795855754 | L28: 2940296255 | M28: 3578647736 | N28: 0.07389157178 | O28: 00000311020300000000 | P28: HONORARIOS | Q28: 43143000000 | R28: 4759366645 | S28: 4759366645 | T28: 47902366645 | V28: 47902366645 | W28: 32158918764 | X28: 32158918764 | Y28: 0.6713430049 | Z28: 15321412 | AA28: 15321412 | AB28: 0.0003198466605 | AC28: 528701337 | AD28: -607728095 | AE28: 754136439 | AF28: 631303712 | AG28: 3563326324 | AH28: 623030069
A29: 00000311020400000000 | B29: REMUNERACION SERVICIOS TECNICOS | C29: 4240000000 | F29: 4240000000 | H29: 4240000000 | I29: 56737500 | J29: 826687223 | K29: 0.1949734017 | L29: 44904000 | M29: 59272000 | N29: 0.01397924528 | O29: 00000311020400000000 | P29: REMUNERACION SERVICIOS TECNICOS | Q29: 4240000000 | T29: 4240000000 | V29: 4240000000 | W29: 769949723 | X29: 769949723 | Y29: 0.1815919158 | AC29: 0 | AD29: 0 | AE29: 56737500 | AF29: 0 | AG29: 59272000 | AH29: 14368000
A30: 00000311029900000000 | B30: OTROS GASTOS DE PERSONAL | C30: 5560116000 | E30: 12457484 | F30: 5572573484 | H30: 5572573484 | I30: 283376030 | J30: 840869932 | K30: 0.1508943641 | L30: 283376030 | M30: 840869932 | N30: 0.1508943641 | O30: 00000311029900000000 | P30: OTROS GASTOS DE PERSONAL | Q30: 5560116000 | R30: -47348516 | S30: -47348516 | T30: 5512767484 | V30: 5512767484 | W30: 264174685 | X30: 264174685 | Y30: 0.0479205201 | Z30: 264174685 | AA30: 264174685 | AB30: 0.0479205201 | AC30: 59806000 | AD30: -59806000 | AE30: 576695247 | AF30: 293319217 | AG30: 576695247 | AH30: 293319217
A31: 311030000000000 | B31: APORTES PATRONALES AL SECTOR PUBLICO Y PRIVADO | C31: 62165175000 | E31: 535118590 | F31: 62700293590 | H31: 62700293590 | I31: 4114759994 | J31: 19836089239 | K31: 0.3163635783 | L31: 4078025063 | M31: 15909269585 | N31: 0.2537351689 | O31: 311030000000000 | P31: APORTES PATRONALES AL SECTOR PUBLICO Y PRIVADO | Q31: 62165175000 | R31: 439219126 | S31: 439219126 | T31: 62604394126 | V31: 62604394126 | W31: 11614256298 | X31: 11614256298 | Y31: 0.1855182286 | Z31: 7699282279 | AA31: 7699282279 | AB31: 0.1229830971 | AC31: 95899464 | AD31: -95899464 | AE31: 8221832941 | AF31: 4107072947 | AG31: 8209987306 | AH31: 4131962243
A32: 00000311030100000000 | B32: CAJA DE COMPENSACION | C32: 7583715000 | E32: -47465542 | F32: 7536249458 | H32: 7536249458 | I32: 504166221 | J32: 1460946805 | K32: 0.1938559509 | L32: 484887600 | M32: 931191900 | N32: 0.123561714 | O32: 00000311030100000000 | P32: CAJA DE COMPENSACION | Q32: 7583715000 | R32: -57720530 | S32: -57720530 | T32: 7525994470 | V32: 7525994470 | W32: 494391488 | X32: 494391488 | Y32: 0.06569118406 | Z32: 4381000 | AA32: 4381000 | AB32: 0.0005821157612 | AC32: 10254988 | AD32: -10254988 | AE32: 966555317 | AF32: 462389096 | AG32: 926810900 | AH32: 441923300
A33: 00000311030200000000 | B33: CESANTIAS | C33: 7200812000 | E33: 876995848 | F33: 8077807848 | H33: 8077807848 | I33: -5730 | J33: 7397909592 | K33: 0.9158313408 | L33: 512983 | M33: 7397889441 | N33: 0.9158288462 | O33: 00000311030200000000 | P33: CESANTIAS | Q33: 7200812000 | R33: 855791900 | S33: 855791900 | T33: 8056603900 | V33: 8056603900 | W33: 7397915322 | X33: 7397915322 | Y33: 0.9182424026 | Z33: 7397376458 | AA33: 7397376458 | AB33: 0.9181755179 | AC33: 21203948 | AD33: -21203948 | AE33: -5730 | AF33: 0 | AG33: 512983 | AH33: 0
A34: 00000311030300000000 | B34: PENSIONES | C34: 17533115000 | E34: -139895051 | F34: 17393219949 | H34: 17393219949 | I34: 1506339379 | J34: 4590555219 | K34: 0.2639278542 | L34: 1513203634 | M34: 3198395531 | N34: 0.1838874884 | O34: 00000311030300000000 | P34: PENSIONES | Q34: 17533115000 | R34: -172555039 | S34: -172555039 | T34: 17360559961 | V34: 17360559961 | W34: 1537215794 | X34: 1537215794 | Y34: 0.08854644075 | Z34: 96154989 | AA34: 96154989 | AB34: 0.005538703199 | AC34: 32659988 | AD34: -32659988 | AE34: 3053339425 | AF34: 1547000046 | AG34: 3102240542 | AH34: 1589036908
A35: 00000311030400000000 | B35: SALUD | C35: 23992277000 | E35: -123339478 | F35: 23868937522 | H35: 23868937522 | I35: 1847705135 | J35: 5636355093 | K35: 0.2361376617 | L35: 1831413746 | M35: 3902127113 | N35: 0.1634813912 | O35: 00000311030400000000 | P35: SALUD | Q35: 23992277000 | R35: -139903246 | S35: -139903246 | T35: 23852373754 | V35: 23852373754 | W35: 1930205591 | X35: 1930205591 | Y35: 0.08092299789 | Z35: 195723632 | AA35: 195723632 | AB35: 0.0082056249 | AC35: 16563768 | AD35: -16563768 | AE35: 3706149502 | AF35: 1858444367 | AG35: 3706403481 | AH35: 1874989735
A36: 00000311030500000000 | B36: RIESGOS PROFESIONALES | C36: 1334593000 | E36: -10853413 | F36: 1323739587 | H36: 1323739587 | I36: 108678711 | J36: 319156603 | K36: 0.2411022577 | L36: 111035300 | M36: 209308600 | N36: 0.1581191664 | O36: 00000311030500000000 | P36: RIESGOS PROFESIONALES | Q36: 1334593000 | R36: -13191829 | S36: -13191829 | T36: 1321401171 | V36: 1321401171 | W36: 102973814 | X36: 102973814 | Y36: 0.07792774538 | Z36: 169900 | AA36: 169900 | AB36: 0.0001285756391 | AC36: 2338416 | AD36: -2338416 | AE36: 216182789 | AF36: 107504078 | AG36: 209138700 | AH36: 98103400
A37: 00000311030600000000 | B37: ICBF | C37: 2730824000 | E37: -12423361 | F37: 2718400639 | H37: 2718400639 | I37: 88736619 | J37: 258727375 | K37: 0.09517632217 | L37: 82196200 | M37: 162224400 | N37: 0.05967641328 | O37: 00000311030600000000 | P37: ICBF | Q37: 2730824000 | R37: -20054977 | S37: -20054977 | T37: 2710769023 | V37: 2710769023 | W37: 90952575 | X37: 90952575 | Y37: 0.03355231458 | Z37: 3285900 | AA37: 3285900 | AB37: 0.001212165246 | AC37: 7631616 | AD37: -7631616 | AE37: 167774800 | AF37: 79038181 | AG37: 158938500 | AH37: 76742300
A38: 00000311030700000000 | B38: SENA | C38: 1789839000 | E38: -7900413 | F38: 1781938587 | H38: 1781938587 | I38: 59139659 | J38: 172438552 | K38: 0.09677019919 | L38: 54775600 | M38: 108132600 | N38: 0.06068256268 | O38: 00000311030700000000 | P38: SENA | Q38: 1789839000 | R38: -13147153 | S38: -13147153 | T38: 1776691847 | V38: 1776691847 | W38: 60601714 | X38: 60601714 | Y38: 0.03410929932 | Z38: 2190400 | AA38: 2190400 | AB38: 0.001232853071 | AC38: 5246740 | AD38: -5246740 | AE38: 111836838 | AF38: 52697179 | AG38: 105942200 | AH38: 51166600
A39: 312000000000000 | B39: GASTOS GENERALES | C39: 508410399000 | D39: 79026758 | E39: -25015106444 | F39: 483395292556 | H39: 483395292556 | I39: 18689759669 | J39: 136283591782 | K39: 0.2819299109 | L39: 15559224506 | M39: 42699882710 | N39: 0.08833326134 | O39: 312000000000000 | P39: GASTOS GENERALES | Q39: 508410399000 | R39: -29195617809 | S39: -29195617809 | T39: 479214781191 | V39: 479214781191 | W39: 100527903841 | X39: 100527903841 | Y39: 0.2097763003 | Z39: 14076634216 | AA39: 14076634216 | AB39: 0.02937437401 | AC39: 4180511365 | AD39: -4101484607 | AE39: 35755687941 | AF39: 17065928272 | AG39: 28623248494 | AH39: 13064023988
A40: 312010000000000 | B40: ADQUISICION DE BIENES Y SERVICIOS | C40: 508410399000 | D40: 79026758 | E40: -25015106444 | F40: 483395292556 | H40: 483395292556 | I40: 18689759669 | J40: 136283591782 | K40: 0.2819299109 | L40: 15559224506 | M40: 42699882710 | N40: 0.08833326134 | O40: 312010000000000 | P40: ADQUISICION DE BIENES Y SERVICIOS | Q40: 508410399000 | R40: -29195617809 | S40: -29195617809 | T40: 479214781191 | V40: 479214781191 | W40: 100527903841 | X40: 100527903841 | Y40: 0.2097763003 | Z40: 14076634216 | AA40: 14076634216 | AB40: 0.02937437401 | AC40: 4180511365 | AD40: -4101484607 | AE40: 35755687941 | AF40: 17065928272 | AG40: 28623248494 | AH40: 13064023988
A41: 00000312010100000000 | B41: DOTACION | C41: 3462394000 | D41: 79026758 | E41: 102026758 | F41: 3564420758 | H41: 3564420758 | I41: 188486168 | J41: 211494238 | K41: 0.05933481268 | L41: 13745550 | M41: 22508070 | N41: 0.006314650129 | O41: 00000312010100000000 | P41: DOTACION | Q41: 3462394000 | T41: 3462394000 | V41: 3462394000 | W41: 500000 | X41: 500000 | Y41: 0.000144408753 | AC41: 102026758 | AD41: -23000000 | AE41: 210994238 | AF41: 22508070 | AG41: 22508070 | AH41: 8762520
A42: 00000312010200000000 | B42: MATERIALES Y SUMINISTROS | C42: 14360601000 | D42: -12000000 | E42: -118000000 | F42: 14242601000 | H42: 14242601000 | I42: 555968260 | J42: 8035515494 | K42: 0.5641887668 | L42: 33487836 | M42: 33536836 | N42: 0.002354684794 | O42: 00000312010200000000 | P42: MATERIALES Y SUMINISTROS | Q42: 14360601000 | R42: -106000000 | S42: -106000000 | T42: 14254601000 | V42: 14254601000 | W42: 7179498234 | X42: 7179498234 | Y42: 0.5036618166 | AC42: -12000000 | AD42: 0 | AE42: 856017260 | AF42: 300049000 | AG42: 33536836 | AH42: 49000
A43: 00000312010300000000 | B43: ARRENDAMIENTOS | C43: 13288258000 | E43: -126756564 | F43: 13161501436 | H43: 13161501436 | J43: 8484093116 | K43: 0.6446143821 | L43: 156896213 | M43: 375055271 | N43: 0.02849638948 | O43: 00000312010300000000 | P43: ARRENDAMIENTOS | Q43: 13288258000 | R43: -126756564 | S43: -126756564 | T43: 13161501436 | V43: 13161501436 | W43: 8484093116 | X43: 8484093116 | Y43: 0.6446143821 | AC43: 0 | AD43: 0 | AE43: 0 | AF43: 0 | AG43: 375055271 | AH43: 218159058
A44: 00000312010400000000 | B44: GASTOS DE COMPUTADOR | C44: 33237587000 | E44: 17498913 | F44: 33255085913 | H44: 33255085913 | I44: 1892854460 | J44: 28127801027 | K44: 0.8458195267 | O44: 00000312010400000000 | P44: GASTOS DE COMPUTADOR | Q44: 33237587000 | R44: -85852550 | S44: -85852550 | T44: 33151734450 | V44: 33151734450 | W44: 26234946567 | X44: 26234946567 | Y44: 0.7913596981 | AC44: 103351463 | AD44: -103351463 | AE44: 1892854460 | AF44: 0 | AG44: 0 | AH44: 0
A45: 00000312010500000000 | B45: VIATICOS Y GASTOS DE VIAJE | C45: 994851000 | F45: 994851000 | H45: 994851000 | I45: 24746534 | J45: 65192339 | K45: 0.06552975169 | L45: 24582473 | M45: 64696250 | N45: 0.06503109511 | O45: 00000312010500000000 | P45: VIATICOS Y GASTOS DE VIAJE | Q45: 994851000 | T45: 994851000 | V45: 994851000 | W45: 21094056 | X45: 21094056 | Y45: 0.02120323144 | Z45: 21094056 | AA45: 21094056 | AB45: 0.02120323144 | AC45: 0 | AD45: 0 | AE45: 44098283 | AF45: 19351749 | AG45: 43602194 | AH45: 19019721
A46: 00000312010600000000 | B46: GASTOS DE TRANSPORTE Y COMUNICACIÓN | C46: 13130922000 | E46: -196405000 | F46: 12934517000 | H46: 12934517000 | I46: 1731744527 | J46: 2735325248 | K46: 0.2114748659 | L46: 872238278 | M46: 1358343903 | N46: 0.1050169792 | O46: 00000312010600000000 | P46: GASTOS DE TRANSPORTE Y COMUNICACIÓN | Q46: 13130922000 | R46: -200325000 | S46: -200325000 | T46: 12930597000 | V46: 12930597000 | W46: 779155352 | X46: 779155352 | Y46: 0.06025671916 | Z46: 263447703 | AA46: 263447703 | AB46: 0.02037397832 | AC46: 3920000 | AD46: -3920000 | AE46: 1956169896 | AF46: 224425369 | AG46: 1094896200 | AH46: 222657922
A47: 00000312010700000000 | B47: IMPRESOS Y PUBLICACIONES | C47: 527293000 | F47: 527293000 | H47: 527293000 | I47: 17976365 | J47: 61480457 | K47: 0.1165963838 | L47: 33375465 | M47: 40298707 | N47: 0.07642564381 | O47: 00000312010700000000 | P47: IMPRESOS Y PUBLICACIONES | Q47: 527293000 | T47: 527293000 | V47: 527293000 | W47: 21665060 | X47: 21665060 | Y47: 0.04108732716 | Z47: 4862260 | AA47: 4862260 | AB47: 0.009221173048 | AC47: 0 | AD47: 0 | AE47: 39815397 | AF47: 21839032 | AG47: 35436447 | AH47: 2060982
A48: 00000312010800000000 | B48: SENTENCIAS JUDICIALES | C48: 750000000 | F48: 750000000 | H48: 750000000 | O48: 00000312010800000000 | P48: SENTENCIAS JUDICIALES | Q48: 750000000 | T48: 750000000 | V48: 750000000 | AC48: 0 | AD48: 0 | AE48: 0 | AF48: 0 | AG48: 0 | AH48: 0
A49: 00000312010900000000 | B49: MANTENIMIENTO Y REPARACIONES | C49: 70962890000 | D49: 12000000 | E49: -486561346 | F49: 70476328654 | H49: 70476328654 | I49: 1850730517 | J49: 19568655936 | K49: 0.2776628169 | L49: 347314899 | M49: 400171320 | N49: 0.005678095435 | O49: 00000312010900000000 | P49: MANTENIMIENTO Y REPARACIONES | Q49: 70962890000 | R49: -237790220 | S49: -237790220 | T49: 70725099780 | V49: 70725099780 | W49: 14423791024 | X49: 14423791024 | Y49: 0.2039416143 | Z49: 10617764 | AA49: 10617764 | AB49: 0.0001501272396 | AC49: -248771126 | AD49: 260771126 | AE49: 5144864912 | AF49: 3294134395 | AG49: 389553556 | AH49: 42238657
A50: 00000312011000000000 | B50: COMBUSTIBLES, LUBRICANTES Y LLANTAS | C50: 5152897000 | F50: 5152897000 | H50: 5152897000 | J50: 33998040 | K50: 0.006597849714 | O50: 00000312011000000000 | P50: COMBUSTIBLES, LUBRICANTES Y LLANTAS | Q50: 5152897000 | T50: 5152897000 | V50: 5152897000 | W50: 33998040 | X50: 33998040 | Y50: 0.006597849714 | AC50: 0 | AD50: 0 | AE50: 0 | AF50: 0 | AG50: 0 | AH50: 0
A51: 00000312011100000000 | B51: SEGUROS | C51: 23885466000 | E51: 263999976 | F51: 24149465976 | H51: 24149465976 | I51: 910200074 | J51: 21907474841 | K51: 0.9071618752 | L51: 2213250877 | M51: 15607296839 | N51: 0.6462791705 | O51: 00000312011100000000 | P51: SEGUROS | Q51: 23885466000 | T51: 23885466000 | V51: 23885466000 | W51: 20994817460 | X51: 20994817460 | Y51: 0.8789787673 | Z51: 11040406218 | AA51: 11040406218 | AB51: 0.4622227684 | AC51: 263999976 | AD51: -263999976 | AE51: 912657381 | AF51: 2457307 | AG51: 4566890621 | AH51: 2353639744
A52: 00000312011200000000 | B52: SUMINISTRO DE ALIMENTOS | C52: 3945800000 | E52: 358399035 | F52: 4304199035 | H52: 4304199035 | J52: 211230635 | K52: 0.04907548031 | L52: 31196215 | M52: 31196215 | N52: 0.007247856046 | O52: 00000312011200000000 | P52: SUMINISTRO DE ALIMENTOS | Q52: 3945800000 | R52: 310000000 | S52: 310000000 | T52: 4255800000 | V52: 4255800000 | AC52: 48399035 | AD52: -48399035 | AE52: 211230635 | AF52: 211230635 | AG52: 31196215 | AH52: 0
A53: 00000312011300000000 | B53: SERVICIOS PUBLICOS | C53: 5773285000 | F53: 5773285000 | H53: 5773285000 | I53: 136677629 | J53: 4662866189 | K53: 0.807662568 | L53: 357311770 | M53: 590960670 | N53: 0.1023612501 | O53: 00000312011300000000 | P53: SERVICIOS PUBLICOS | Q53: 5773285000 | T53: 5773285000 | V53: 5773285000 | W53: 1292055095 | X53: 1292055095 | Y53: 0.2237989455 | Z53: 129494595 | AA53: 129494595 | AB53: 0.02242996751 | AC53: 0 | AD53: 0 | AE53: 3370811094 | AF53: 3234133465 | AG53: 461466075 | AH53: 104154305
A54: 00000312011400000000 | B54: CAPACITACION | C54: 885200000 | D54: -737717 | E54: -737717 | F54: 884462283 | H54: 884462283 | J54: 151410050 | K54: 0.1711888148 | O54: 00000312011400000000 | P54: CAPACITACION | Q54: 885200000 | T54: 885200000 | V54: 885200000 | W54: 151410050 | X54: 151410050 | Y54: 0.1710461478 | AC54: -737717 | AD54: 0 | AE54: 0 | AF54: 0 | AG54: 0 | AH54: 0
A55: 00000312011500000000 | B55: BIENESTAR E INCENTIVOS | C55: 4594000000 | F55: 4594000000 | H55: 4594000000 | O55: 00000312011500000000 | P55: BIENESTAR E INCENTIVOS | Q55: 4594000000 | T55: 4594000000 | V55: 4594000000 | AC55: 0 | AD55: 0 | AE55: 0 | AF55: 0 | AG55: 0 | AH55: 0
A56: 00000312011600000000 | B56: PROMOCION INSTITUCIONAL | C56: 3115000000 | F56: 3115000000 | H56: 3115000000 | I56: 12132552 | J56: 1106801700 | K56: 0.3553135474 | L56: 450000 | M56: 450000 | N56: 0.0001444622793 | O56: 00000312011600000000 | P56: PROMOCION INSTITUCIONAL | Q56: 3115000000 | T56: 3115000000 | V56: 3115000000 | W56: 1094219148 | X56: 1094219148 | Y56: 0.3512742048 | AC56: 0 | AD56: 0 | AE56: 12582552 | AF56: 450000 | AG56: 450000 | AH56: 0
A57: 00000312011700000000 | B57: IMPUESTOS, TASAS, CONTRIBUCIONES, DERECHOS Y MULTAS | C57: 299348017000 | D57: 737717 | E57: -25547092283 | F57: 273800924717 | H57: 273800924717 | I57: 11323560365 | J57: 36669830346 | K57: 0.1339288039 | L57: 11139018617 | M57: 23759764498 | N57: 0.08677751736 | O57: 00000312011700000000 | P57: IMPUESTOS, TASAS, CONTRIBUCIONES, DERECHOS Y MULTAS | Q57: 299348017000 | R57: -28162403139 | S57: -28162403139 | T57: 271185613861 | V57: 271185613861 | W57: 15612460731 | X57: 15612460731 | Y57: 0.05757112447 | Z57: 2606366802 | AA57: 2606366802 | AB57: 0.009611006885 | AC57: 2615310856 | AD57: -2614573139 | AE57: 21057369615 | AF57: 9733809250 | AG57: 21153397696 | AH57: 10014379079
A58: 00000312011800000000 | B58: INTERESES Y COMISIONES | C58: 1843664000 | E58: 65180000 | F58: 1908844000 | H58: 1908844000 | J58: 1483664000 | K58: 0.7772578587 | L58: 522053 | M58: 866871 | N58: 0.0004541340204 | O58: 00000312011800000000 | P58: INTERESES Y COMISIONES | Q58: 1843664000 | T58: 1843664000 | V58: 1843664000 | W58: 1483664000 | X58: 1483664000 | Y58: 0.8047366548 | Z58: 344818 | AA58: 344818 | AB58: 0.000187028656 | AC58: 65180000 | AD58: -65180000 | AE58: 0 | AF58: 0 | AG58: 522053 | AH58: 0
A59: 00000312011900000000 | B59: SALUD OCUPACIONAL | C59: 764775000 | F59: 764775000 | H59: 764775000 | I59: 51505611 | J59: 51505611 | K59: 0.06734740414 | O59: 00000312011900000000 | P59: SALUD OCUPACIONAL | Q59: 764775000 | T59: 764775000 | V59: 764775000 | AC59: 0 | AD59: 0 | AE59: 51505611 | AF59: 0 | AG59: 0 | AH59: 0
A60: 00000312012000000000 | B60: PROGRAMAS Y CONVENIOS INSTITUCIONALES | C60: 142000000 | F60: 142000000 | H60: 142000000 | J60: 64157000 | K60: 0.4518098592 | M60: 64157000 | N60: 0.4518098592 | O60: 00000312012000000000 | P60: PROGRAMAS Y CONVENIOS INSTITUCIONALES | Q60: 142000000 | T60: 142000000 | V60: 142000000 | W60: 64157000 | X60: 64157000 | Y60: 0.4518098592 | AC60: 0 | AD60: 0 | AE60: 0 | AF60: 0 | AG60: 64157000 | AH60: 64157000
A61: 00000312019900000000 | B61: OTROS GASTOS GENERALES | C61: 8245499000 | E61: 653341784 | F61: 8898840784 | H61: 8898840784 | I61: -6823393 | J61: 2651095515 | K61: 0.2979147037 | L61: 335834260 | M61: 350580260 | N61: 0.03939617176 | O61: 00000312019900000000 | P61: OTROS GASTOS GENERALES | Q61: 8245499000 | R61: -586490336 | S61: -586490336 | T61: 7659008664 | V61: 7659008664 | W61: 2656378908 | X61: 2656378908 | Y61: 0.3468306441 | AC61: 1239832120 | AD61: -1239832120 | AE61: -5283393 | AF61: 1540000 | AG61: 350580260 | AH61: 14746000
A62: 313000000000000 | B62: TRANSFERENCIAS CORRIENTES | C62: 288946579000 | E62: -1059133178 | F62: 287887445822 | H62: 287887445822 | I62: 19948177115 | J62: 108286978028 | K62: 0.3761434533 | L62: 14216265823 | M62: 43040575833 | N62: 0.1495048723 | O62: 313000000000000 | P62: TRANSFERENCIAS CORRIENTES | Q62: 288946579000 | R62: -1060405414 | S62: -1060405414 | T62: 287886173586 | V62: 287886173586 | W62: 74307406938 | X62: 74307406938 | Y62: 0.2581138441 | Z62: 14305393268 | AA62: 14305393268 | AB62: 0.04969114386 | AC62: 1272236 | AD62: -1272236 | AE62: 33979571090 | AF62: 14031393975 | AG62: 28735182565 | AH62: 14518916742
A63: 313030000000000 | B63: TRANSFERENCIAS DE PREVISION Y SEGURIDAD | C63: 266335378000 | E63: -1059133178 | F63: 265276244822 | H63: 265276244822 | I63: 13775122231 | J63: 102022730954 | K63: 0.3845905276 | L63: 14212829823 | M63: 42945947643 | N63: 0.1618914188 | O63: 313030000000000 | P63: TRANSFERENCIAS DE PREVISION Y SEGURIDAD | Q63: 266335378000 | R63: -1060405414 | S63: -1060405414 | T63: 265274972586 | V63: 265274972586 | W63: 74231221448 | X63: 74231221448 | Y63: 0.2798274587 | Z63: 14229207778 | AA63: 14229207778 | AB63: 0.05363946564 | AC63: 1272236 | AD63: -1272236 | AE63: 27791509506 | AF63: 14016387275 | AG63: 28716739865 | AH63: 14503910042
A64: 00000313030100000000 | B64: PENSIONES Y JUBILACIONES | C64: 190660263000 | E64: -536848830 | F64: 190123414170 | H64: 190123414170 | I64: 12959324555 | J64: 39043816498 | K64: 0.2053603796 | L64: 12959324555 | M64: 39043816498 | N64: 0.2053603796 | O64: 00000313030100000000 | P64: PENSIONES Y JUBILACIONES | Q64: 190660263000 | R64: -536848830 | S64: -536848830 | T64: 190123414170 | V64: 190123414170 | W64: 12921652929 | X64: 12921652929 | Y64: 0.06796455337 | Z64: 12921652929 | AA64: 12921652929 | AB64: 0.06796455337 | AC64: 0 | AD64: 0 | AE64: 26122163569 | AF64: 13162839014 | AG64: 26122163569 | AH64: 13162839014
A65: 00000313030200000000 | B65: CESANTIAS | C65: 14141377000 | E65: -522284348 | F65: 13619092652 | H65: 13619092652 | I65: 671605976 | J65: 2736987886 | K65: 0.2009669775 | L65: 671605976 | M65: 2736987886 | N65: 0.2009669775 | O65: 00000313030200000000 | P65: CESANTIAS | Q65: 14141377000 | R65: -523556584 | S65: -523556584 | T65: 13617820416 | V65: 13617820416 | W65: 1307554849 | X65: 1307554849 | Y65: 0.09601792424 | Z65: 1307554849 | AA65: 1307554849 | AB65: 0.09601792424 | AC65: 1272236 | AD65: -1272236 | AE65: 1429433037 | AF65: 757827061 | AG65: 1429433037 | AH65: 757827061
A66: 00000313030300000000 | B66: OTRAS TRANSFERENCIAS DE PREVISION Y SEGURIDAD SOCIAL | C66: 61533738000 | F66: 61533738000 | H66: 61533738000 | I66: 144191700 | J66: 60241926570 | K66: 0.9790064529 | L66: 581899292 | M66: 1165143259 | N66: 0.01893503136 | O66: 00000313030300000000 | P66: OTRAS TRANSFERENCIAS DE PREVISION Y SEGURIDAD SOCIAL | Q66: 61533738000 | T66: 61533738000 | V66: 61533738000 | W66: 60002013670 | X66: 60002013670 | Y66: 0.975107569 | AC66: 0 | AD66: 0 | AE66: 239912900 | AF66: 95721200 | AG66: 1165143259 | AH66: 583243967
A67: 313040000000000 | B67: OTRAS TRANSFERENCIAS | C67: 22611201000 | F67: 22611201000 | H67: 22611201000 | I67: 6173054884 | J67: 6264247074 | K67: 0.2770417668 | L67: 3436000 | M67: 94628190 | N67: 0.004185013879 | O67: 313040000000000 | P67: OTRAS TRANSFERENCIAS | Q67: 22611201000 | T67: 22611201000 | V67: 22611201000 | W67: 76185490 | X67: 76185490 | Y67: 0.003369369455 | Z67: 76185490 | AA67: 76185490 | AB67: 0.003369369455 | AC67: 0 | AD67: 0 | AE67: 6188061584 | AF67: 15006700 | AG67: 18442700 | AH67: 15006700
A68: 00000313040200000000 | B68: PRESTAMOS DE BIENESTAR | C68: 611201000 | F68: 611201000 | H68: 611201000 | I68: 3436000 | J68: 94628190 | K68: 0.154823356 | L68: 3436000 | M68: 94628190 | N68: 0.154823356 | O68: 00000313040200000000 | P68: PRESTAMOS DE BIENESTAR | Q68: 611201000 | T68: 611201000 | V68: 611201000 | W68: 76185490 | X68: 76185490 | Y68: 0.1246488307 | Z68: 76185490 | AA68: 76185490 | AB68: 0.1246488307 | AC68: 0 | AD68: 0 | AE68: 18442700 | AF68: 15006700 | AG68: 18442700 | AH68: 15006700
A69: 00000313040300000000 | B69: PRESTAMOS FONDO DE VIVIENDA | C69: 22000000000 | F69: 22000000000 | H69: 22000000000 | I69: 6169618884 | J69: 6169618884 | K69: 0.280437222 | O69: 00000313040300000000 | P69: PRESTAMOS FONDO DE VIVIENDA | Q69: 22000000000 | T69: 22000000000 | V69: 22000000000 | AC69: 0 | AD69: 0 | AE69: 6169618884 | AF69: 0 | AG69: 0 | AH69: 0
A70: 314000000000000 | B70: CUENTAS POR PAGAR | C70: 116559783000 | E70: 26640984818 | F70: 143200767818 | H70: 143200767818 | I70: -62495721 | J70: 142371866674 | K70: 0.9942116152 | L70: 18018236905 | M70: 55651368086 | N70: 0.3886247884 | O70: 314000000000000 | P70: CUENTAS POR PAGAR | Q70: 116559783000 | R70: 26640984818 | S70: 26640984818 | T70: 143200767818 | V70: 143200767818 | W70: 142961063285 | X70: 142961063285 | Y70: 0.9983260946 | Z70: 17823386263 | AA70: 17823386263 | AB70: 0.1244643205 | AC70: 0 | AD70: 0 | AE70: -589196611 | AF70: -526700890 | AG70: 37827981823 | AH70: 19809744918
A71: 00000314000000000000 | B71: CUENTAS POR PAGAR | C71: 116559783000 | E71: 26640984818 | F71: 143200767818 | H71: 143200767818 | I71: -62495721 | J71: 142371866674 | K71: 0.9942116152 | L71: 18018236905 | M71: 55651368086 | N71: 0.3886247884 | O71: 00000314000000000000 | P71: CUENTAS POR PAGAR | Q71: 116559783000 | R71: 26640984818 | S71: 26640984818 | T71: 143200767818 | V71: 143200767818 | W71: 142961063285 | X71: 142961063285 | Y71: 0.9983260946 | Z71: 17823386263 | AA71: 17823386263 | AB71: 0.1244643205 | AC71: 0 | AD71: 0 | AE71: -589196611 | AF71: -526700890 | AG71: 37827981823 | AH71: 19809744918
A72: 320000000000000 | B72: GASTOS DE OPERACIÓN | C72: 320996098000 | E72: 23210171796 | F72: 344206269796 | H72: 344206269796 | I72: -5953271 | J72: 246925080138 | K72: 0.7173753119 | L72: 19016041020 | M72: 64668967441 | N72: 0.1878785284 | O72: 320000000000000 | P72: GASTOS DE OPERACIÓN | Q72: 320996098000 | T72: 320996098000 | V72: 320996098000 | W72: 240834217349 | X72: 240834217349 | Y72: 0.7502714795 | Z72: 17487795633 | AA72: 17487795633 | AB72: 0.05447977636 | AC72: 23210171796 | AD72: -23210171796 | AE72: 6090862789 | AF72: 6096816060 | AG72: 47181171808 | AH72: 28165130788
A73: 321000000000000 | B73: GASTOS DE COMERCIALIZACION | C73: 121536854000 | E73: 28464959480 | F73: 150001813480 | H73: 150001813480 | I73: 593175 | J73: 77517125564 | K73: 0.5167745894 | L73: 1049940892 | M73: 15800763429 | N73: 0.1053371493 | O73: 321000000000000 | P73: GASTOS DE COMERCIALIZACION | Q73: 121536854000 | R73: 15254787684 | S73: 15254787684 | T73: 136791641684 | V73: 136791641684 | W73: 76242247276 | X73: 76242247276 | Y73: 0.557360423 | AC73: =F73-T73 -> 13210171796 | AD73: =D73-AC73 -> -13210171796 | AE73: =J73-X73 -> 1274878288 | AF73: =AE73-I73 -> 1274285113 | AG73: =M73-AA73 -> 15800763429 | AH73: =AG73-L73 -> 14750822537
A74: 321010000000000 | B74: COMPRA DE BIENES PARA LA VENTA | C74: 14000000000 | F74: 14000000000 | H74: 14000000000 | J74: 13999992223 | K74: 0.9999994445 | O74: 321010000000000 | P74: COMPRA DE BIENES PARA LA VENTA | Q74: 14000000000 | T74: 14000000000 | V74: 14000000000 | W74: 13999992223 | X74: 13999992223 | Y74: 0.9999994445 | AC74: 0 | AD74: 0 | AE74: 0 | AF74: 0 | AG74: 0 | AH74: 0
A75: 00000321010100000000 | B75: MEDIDORES | C75: 14000000000 | F75: 14000000000 | H75: 14000000000 | J75: 13999992223 | K75: 0.9999994445 | O75: 00000321010100000000 | P75: MEDIDORES | Q75: 14000000000 | T75: 14000000000 | V75: 14000000000 | W75: 13999992223 | X75: 13999992223 | Y75: 0.9999994445 | AC75: 0 | AD75: 0 | AE75: 0 | AF75: 0 | AG75: 0 | AH75: 0
A76: 321020000000000 | B76: COMPRA DE SERVICIOS PARA LA VENTA | C76: 12817034000 | E76: 20254171796 | F76: 33071205796 | H76: 33071205796 | J76: 28124373051 | K76: 0.8504187366 | M76: 13966026866 | N76: 0.4223017132 | O76: 321020000000000 | P76: COMPRA DE SERVICIOS PARA LA VENTA | Q76: 12817034000 | R76: 17301135099 | S76: 17301135099 | T76: 30118169099 | V76: 30118169099 | W76: 26850301362 | X76: 26850301362 | Y76: 0.8914984597 | AC76: 2953036697 | AD76: -2953036697 | AE76: 1274071689 | AF76: 1274071689 | AG76: 13966026866 | AH76: 13966026866
A77: 00000321020100000000 | B77: GESTION COMERCIAL | C77: 12817034000 | E77: 450000000 | F77: 13267034000 | H77: 13267034000 | J77: 9862267757 | K77: 0.7433664342 | O77: 00000321020100000000 | P77: GESTION COMERCIAL | Q77: 12817034000 | T77: 12817034000 | V77: 12817034000 | W77: 9671731782 | X77: 9671731782 | Y77: 0.7545998382 | AC77: 450000000 | AD77: -450000000 | AE77: 190535975 | AF77: 190535975 | AG77: 0 | AH77: 0
A78: 00000321020400000000 | B78: PROCESO ASEO | E78: 19804171796 | F78: 19804171796 | H78: 19804171796 | J78: 18262105294 | K78: 0.9221342595 | M78: 13966026866 | N78: 0.7052063075 | O78: 00000321020400000000 | P78: PROCESO ASEO | R78: 17301135099 | S78: 17301135099 | T78: 17301135099 | V78: 17301135099 | W78: 17178569580 | X78: 17178569580 | Y78: 0.9929157527 | AC78: 2503036697 | AD78: -2503036697 | AE78: 1083535714 | AF78: 1083535714 | AG78: 13966026866 | AH78: 13966026866
A79: 321030000000000 | B79: OTROS GASTOS DE COMERCIALIZACION | C79: 94719820000 | E79: 8210787684 | F79: 102930607684 | H79: 102930607684 | I79: 593175 | J79: 35392760290 | K79: 0.3438506882 | L79: 1049940892 | M79: 1834736563 | N79: 0.01782498524 | O79: 321030000000000 | P79: OTROS GASTOS DE COMERCIALIZACION | Q79: 94719820000 | R79: -2046347415 | S79: -2046347415 | T79: 92673472585 | V79: 92673472585 | W79: 35391953691 | X79: 35391953691 | Y79: 0.3818995091 | AC79: 10257135099 | AD79: -10257135099 | AE79: 806599 | AF79: 213424 | AG79: 1834736563 | AH79: 784795671
A80: 00000321030100000000 | B80: MANTENIMIENTO Y MATERIALES OPERACION INF AC Y AL | C80: 88789820000 | E80: 2956000000 | F80: 91745820000 | H80: 91745820000 | I80: 593175 | J80: 35392760290 | K80: 0.3857697309 | L80: 1049940892 | M80: 1834736563 | N80: 0.01999803983 | O80: 00000321030100000000 | P80: MANTENIMIENTO Y MATERIALES OPERACION INF AC Y AL | Q80: 88789820000 | R80: -7301135099 | S80: -7301135099 | T80: 81488684901 | V80: 81488684901 | W80: 35391953691 | X80: 35391953691 | Y80: 0.4343173992 | AC80: 10257135099 | AD80: -10257135099 | AE80: 806599 | AF80: 213424 | AG80: 1834736563 | AH80: 784795671
A81: 00000321030200000000 | B81: COMERCIALIZACION DE ENERGIA - CHSA | C81: 150000000 | F81: 150000000 | H81: 150000000 | O81: 00000321030200000000 | P81: COMERCIALIZACION DE ENERGIA - CHSA | Q81: 150000000 | T81: 150000000 | V81: 150000000 | AC81: 0 | AD81: 0 | AE81: 0 | AF81: 0 | AG81: 0 | AH81: 0
A82: 00000321030400000000 | B82: FONDO ATENCION DE EMERGENCIAS | C82: 4280000000 | E82: -97707731 | F82: 4182292269 | H82: 4182292269 | O82: 00000321030400000000 | P82: FONDO ATENCION DE EMERGENCIAS | Q82: 4280000000 | R82: -97707731 | S82: -97707731 | T82: 4182292269 | V82: 4182292269 | AC82: 0 | AD82: 0 | AE82: 0 | AF82: 0 | AG82: 0 | AH82: 0
A83: 00000321030600000000 | B83: FONDO OBLIGACIONES CONTINGENTES | C83: 1500000000 | E83: 5352495415 | F83: 6852495415 | H83: 6852495415 | O83: 00000321030600000000 | P83: FONDO OBLIGACIONES CONTINGENTES | Q83: 1500000000 | R83: 5352495415 | S83: 5352495415 | T83: 6852495415 | V83: 6852495415 | AC83: 0 | AD83: 0 | AE83: 0 | AF83: 0 | AG83: 0 | AH83: 0
A84: 322000000000000 | B84: GASTOS DE PRODUCCION | C84: 99780483000 | E84: -5352495415 | F84: 94427987585 | H84: 94427987585 | J84: 70644464932 | K84: 0.748130578 | L84: 5822707728 | M84: 8418683461 | N84: 0.08915453645 | O84: 322000000000000 | P84: GASTOS DE PRODUCCION | Q84: 99780483000 | R84: -15352495415 | S84: -15352495415 | T84: 84427987585 | V84: 84427987585 | W84: 65815501342 | X84: 65815501342 | Y84: 0.7795460158 | AC84: 10000000000 | AD84: -10000000000 | AE84: 4828963590 | AF84: 4828963590 | AG84: 8418683461 | AH84: 2595975733
A85: 322010000000000 | B85: INDUSTRIAL | C85: 99780483000 | E85: -5352495415 | F85: 94427987585 | H85: 94427987585 | J85: 70644464932 | K85: 0.748130578 | L85: 5822707728 | M85: 8418683461 | N85: 0.08915453645 | O85: 322010000000000 | P85: INDUSTRIAL | Q85: 99780483000 | R85: -15352495415 | S85: -15352495415 | T85: 84427987585 | V85: 84427987585 | W85: 65815501342 | X85: 65815501342 | Y85: 0.7795460158 | AC85: 10000000000 | AD85: -10000000000 | AE85: 4828963590 | AF85: 4828963590 | AG85: 8418683461 | AH85: 2595975733
A86: 00000322010200000000 | B86: PRODUCTOS QUIMICOS | C86: 18831920000 | E86: 5791793667 | F86: 24623713667 | H86: 24623713667 | J86: 16143080086 | K86: 0.6555907977 | L86: 401875130 | M86: 983538373 | N86: 0.03994273107 | O86: 00000322010200000000 | P86: PRODUCTOS QUIMICOS | Q86: 18831920000 | R86: 5791793667 | S86: 5791793667 | T86: 24623713667 | V86: 24623713667 | W86: 13449675736 | X86: 13449675736 | Y86: 0.5462082575 | AC86: 0 | AD86: 0 | AE86: 2693404350 | AF86: 2693404350 | AG86: 983538373 | AH86: 581663243
A87: 00000322010300000000 | B87: ENERGIA PARA BOMBEO | C87: 54142290000 | F87: 54142290000 | H87: 54142290000 | J87: 54142290000 | K87: 1 | L87: 5420832598 | M87: 7076050242 | N87: 0.1306935898 | O87: 00000322010300000000 | P87: ENERGIA PARA BOMBEO | Q87: 54142290000 | T87: 54142290000 | V87: 54142290000 | W87: 52006730760 | X87: 52006730760 | Y87: 0.9605565402 | AC87: 0 | AD87: 0 | AE87: 2135559240 | AF87: 2135559240 | AG87: 7076050242 | AH87: 1655217644
A88: 00000322010400000000 | B88: TASA POR USO DE AGUA | C88: 4306273000 | F88: 4306273000 | H88: 4306273000 | J88: 359094846 | K88: 0.08338877865 | M88: 359094846 | N88: 0.08338877865 | O88: 00000322010400000000 | P88: TASA POR USO DE AGUA | Q88: 4306273000 | T88: 4306273000 | V88: 4306273000 | W88: 359094846 | X88: 359094846 | Y88: 0.08338877865 | AC88: 0 | AD88: 0 | AE88: 0 | AF88: 0 | AG88: 359094846 | AH88: 359094846
A89: 00000322011000000000 | B89: ASISTENCIA OPERACIÓN | C89: 22500000000 | E89: -11144289082 | F89: 11355710918 | H89: 11355710918 | O89: 00000322011000000000 | P89: ASISTENCIA OPERACIÓN | Q89: 22500000000 | R89: -21144289082 | S89: -21144289082 | T89: 1355710918 | V89: 1355710918 | AC89: 10000000000 | AD89: -10000000000 | AE89: 0 | AF89: 0 | AG89: 0 | AH89: 0
A90: 324000000000000 | B90: CUENTAS POR PAGAR | C90: 99678761000 | E90: 97707731 | F90: 99776468731 | H90: 99776468731 | I90: -6546446 | J90: 98763489642 | K90: 0.9898475151 | L90: 12143392400 | M90: 40449520551 | N90: 0.4054014044 | O90: 324000000000000 | P90: CUENTAS POR PAGAR | Q90: 99678761000 | R90: 97707731 | S90: 97707731 | T90: 99776468731 | V90: 99776468731 | W90: 98776468731 | X90: 98776468731 | Y90: 0.9899775968 | Z90: 17487795633 | AA90: 17487795633 | AB90: 0.175269739 | AC90: 0 | AD90: 0 | AE90: -12979089 | AF90: -6432643 | AG90: 22961724918 | AH90: 10818332518
A91: 00000324000000000000 | B91: CUENTAS POR PAGAR | C91: 99678761000 | E91: 97707731 | F91: 99776468731 | H91: 99776468731 | I91: -6546446 | J91: 98763489642 | K91: 0.9898475151 | L91: 12143392400 | M91: 40449520551 | N91: 0.4054014044 | O91: 00000324000000000000 | P91: CUENTAS POR PAGAR | Q91: 99678761000 | R91: 97707731 | S91: 97707731 | T91: 99776468731 | V91: 99776468731 | W91: 98776468731 | X91: 98776468731 | Y91: 0.9899775968 | Z91: 17487795633 | AA91: 17487795633 | AB91: 0.175269739 | AC91: 0 | AD91: 0 | AE91: -12979089 | AF91: -6432643 | AG91: 22961724918 | AH91: 10818332518
A92: 330000000000000 | B92: SERVICIO DE LA DEUDA | C92: 94315746000 | F92: 94315746000 | H92: 94315746000 | I92: 348374359 | J92: 56892161541 | K92: 0.6032095801 | L92: 353268058 | M92: 23043726957 | N92: 0.2443253426 | O92: 330000000000000 | P92: SERVICIO DE LA DEUDA | Q92: 94315746000 | T92: 94315746000 | V92: 94315746000 | W92: 56534716182 | X92: 56534716182 | Y92: 0.5994197001 | Z92: 10693059 | AA92: 10693059 | AB92: 0.0001133751198 | AC92: 0 | AD92: 0 | AE92: 357445359 | AF92: 9071000 | AG92: 23033033898 | AH92: 22679765840
A93: 331000000000000 | B93: DEUDA INTERNA | C93: 78014332000 | F93: 78014332000 | H93: 78014332000 | J93: 56472715561 | K93: 0.7238761663 | M93: 22665801139 | N93: 0.2905338104 | O93: 331000000000000 | P93: DEUDA INTERNA | Q93: 78014332000 | T93: 78014332000 | V93: 78014332000 | W93: 56472715561 | X93: 56472715561 | Y93: 0.7238761663 | AC93: 0 | AD93: 0 | AE93: 0 | AF93: 0 | AG93: 22665801139 | AH93: 22665801139
A94: 00000331010000000000 | B94: AMORTIZACION CAPITAL | C94: 31446890000 | F94: 31446890000 | H94: 31446890000 | J94: 31446888900 | K94: 0.999999965 | M94: 13701444444 | N94: 0.4357010962 | O94: 00000331010000000000 | P94: AMORTIZACION CAPITAL | Q94: 31446890000 | T94: 31446890000 | V94: 31446890000 | W94: 31446888900 | X94: 31446888900 | Y94: 0.999999965 | AC94: 0 | AD94: 0 | AE94: 0 | AF94: 0 | AG94: 13701444444 | AH94: 13701444444
A95: 00000331020000000000 | B95: INTERESES | C95: 44449342000 | F95: 44449342000 | H95: 44449342000 | J95: 25025826661 | K95: 0.563019058 | M95: 8964356695 | N95: 0.201675802 | O95: 00000331020000000000 | P95: INTERESES | Q95: 44449342000 | T95: 44449342000 | V95: 44449342000 | W95: 25025826661 | X95: 25025826661 | Y95: 0.563019058 | AC95: 0 | AD95: 0 | AE95: 0 | AF95: 0 | AG95: 8964356695 | AH95: 8964356695
A96: 00000331030000000000 | B96: COMISIONES Y OTROS | C96: 2118100000 | F96: 2118100000 | H96: 2118100000 | O96: 00000331030000000000 | P96: COMISIONES Y OTROS | Q96: 2118100000 | T96: 2118100000 | V96: 2118100000 | AC96: 0 | AD96: 0 | AE96: 0 | AF96: 0 | AG96: 0 | AH96: 0
A97: 332000000000000 | B97: DEUDA EXTERNA | C97: 200000000 | F97: 200000000 | H97: 200000000 | O97: 332000000000000 | P97: DEUDA EXTERNA | Q97: 200000000 | T97: 200000000 | V97: 200000000 | AC97: 0 | AD97: 0 | AE97: 0 | AF97: 0 | AG97: 0 | AH97: 0
A98: 00000332030000000000 | B98: COMISIONES Y OTROS | C98: 200000000 | F98: 200000000 | H98: 200000000 | O98: 00000332030000000000 | P98: COMISIONES Y OTROS | Q98: 200000000 | T98: 200000000 | V98: 200000000 | AC98: 0 | AD98: 0 | AE98: 0 | AF98: 0 | AG98: 0 | AH98: 0
A99: 333000000000000 | B99: BONOS PENSIONALES | C99: 3203150000 | F99: 3203150000 | H99: 3203150000 | I99: 348374359 | J99: 363517359 | K99: 0.1134874605 | L99: 348374359 | M99: 363517359 | N99: 0.1134874605 | O99: 333000000000000 | P99: BONOS PENSIONALES | Q99: 3203150000 | T99: 3203150000 | V99: 3203150000 | W99: 6072000 | X99: 6072000 | Y99: 0.001895633985 | Z99: 6072000 | AA99: 6072000 | AB99: 0.001895633985 | AC99: 0 | AD99: 0 | AE99: 357445359 | AF99: 9071000 | AG99: 357445359 | AH99: 9071000
A100: 00000333010000000000 | B100: BONOS PENSIONALES | C100: 3203150000 | F100: 3203150000 | H100: 3203150000 | I100: 348374359 | J100: 363517359 | K100: 0.1134874605 | L100: 348374359 | M100: 363517359 | N100: 0.1134874605 | O100: 00000333010000000000 | P100: BONOS PENSIONALES | Q100: 3203150000 | T100: 3203150000 | V100: 3203150000 | W100: 6072000 | X100: 6072000 | Y100: 0.001895633985 | Z100: 6072000 | AA100: 6072000 | AB100: 0.001895633985 | AC100: 0 | AD100: 0 | AE100: 357445359 | AF100: 9071000 | AG100: 357445359 | AH100: 9071000
A101: 334000000000000 | B101: CUENTAS POR PAGAR | C101: 55929000 | F101: 55929000 | H101: 55929000 | J101: 55928621 | K101: 0.9999932236 | L101: 4893699 | M101: 14408459 | N101: 0.2576205368 | O101: 334000000000000 | P101: CUENTAS POR PAGAR | Q101: 55929000 | T101: 55929000 | V101: 55929000 | W101: 55928621 | X101: 55928621 | Y101: 0.9999932236 | Z101: 4621059 | AA101: 4621059 | AB101: 0.08262366572 | AC101: 0 | AD101: 0 | AE101: 0 | AF101: 0 | AG101: 9787400 | AH101: 4893701
A102: 00000334000000000000 | B102: CUENTAS POR PAGAR | C102: 55929000 | F102: 55929000 | H102: 55929000 | J102: 55928621 | K102: 0.9999932236 | L102: 4893699 | M102: 14408459 | N102: 0.2576205368 | O102: 00000334000000000000 | P102: CUENTAS POR PAGAR | Q102: 55929000 | T102: 55929000 | V102: 55929000 | W102: 55928621 | X102: 55928621 | Y102: 0.9999932236 | Z102: 4621059 | AA102: 4621059 | AB102: 0.08262366572 | AC102: 0 | AD102: 0 | AE102: 0 | AF102: 0 | AG102: 9787400 | AH102: 4893701
A103: 338000000000000 | B103: FONDO OBLIGACIONES CONTINGENTES | C103: 12842335000 | F103: 12842335000 | H103: 12842335000 | O103: 338000000000000 | P103: FONDO OBLIGACIONES CONTINGENTES | Q103: 12842335000 | T103: 12842335000 | V103: 12842335000 | AC103: 0 | AD103: 0 | AE103: 0 | AF103: 0 | AG103: 0 | AH103: 0
A104: 00000338000000000000 | B104: FONDO OBLIGACIONES CONTINGENTES | C104: 12842335000 | F104: 12842335000 | H104: 12842335000 | O104: 00000338000000000000 | P104: FONDO OBLIGACIONES CONTINGENTES | Q104: 12842335000 | T104: 12842335000 | V104: 12842335000 | AC104: 0 | AD104: 0 | AE104: 0 | AF104: 0 | AG104: 0 | AH104: 0
A105: 340000000000000 | B105: GASTOS DE INVERSION | C105: 2086894365000 | D105: 60469497669 | E105: 74807097669 | F105: 2161701462669 | H105: 2161701462669 | I105: 410938675 | J105: 999937950161 | K105: 0.4625698633 | L105: 58362995395 | M105: 111884168286 | N105: 0.05175745598 | O105: 340000000000000 | P105: GASTOS DE INVERSION | Q105: 2086894365000 | T105: 2086894365000 | V105: 2086894365000 | W105: 994467464246 | X105: 994467464246 | Y105: 0.4765298526 | Z105: 5003273871 | AA105: 5003273871 | AB105: 0.002397473468 | AC105: 74807097669 | AD105: -14337600000 | AE105: 5470485915 | AF105: 5059547240 | AG105: 106880894415 | AH105: 48517899020
A106: 341000000000000 | B106: DIRECTA | C106: 1115022286000 | D106: 95352244135 | E106: 6141341802 | F106: 1121163627802 | H106: 1121163627802 | I106: 468620630 | J106: 510440621159 | K106: 0.4552775425 | L106: 5683008387 | M106: 10874630629 | N106: 0.009699414394 | O106: 341000000000000 | P106: DIRECTA | Q106: 1115022286000 | R106: -14064202605 | S106: -14064202605 | T106: 1100958083395 | V106: 1100958083395 | W106: 509406791208 | X106: 509406791208 | Y106: 0.4626940834 | AC106: 20205544407 | AD106: 75146699728 | AE106: 1033829951 | AF106: 565209321 | AG106: 10874630629 | AH106: 5191622242
A107: 3411500000000000 | B107: BOGOTA MEJOR PARA TODOS | C107: 1115022286000 | D107: 95352244135 | E107: 6141341802 | F107: 1121163627802 | H107: 1121163627802 | I107: 468620630 | J107: 510440621159 | K107: 0.4552775425 | L107: 5683008387 | M107: 10874630629 | N107: 0.009699414394 | O107: 3411500000000000 | P107: BOGOTA MEJOR PARA TODOS | Q107: 1115022286000 | R107: -14064202605 | S107: -14064202605 | T107: 1100958083395 | V107: 1100958083395 | W107: 509406791208 | X107: 509406791208 | Y107: 0.4626940834 | AC107: 20205544407 | AD107: 75146699728 | AE107: 1033829951 | AF107: 565209321 | AG107: 10874630629 | AH107: 5191622242
A108: 3411502000000000 | B108: DEMOCRACIA URBANA | C108: 1021237719000 | D108: 92167338148 | E108: 8820243682 | F108: 1030057962682 | H108: 1030057962682 | I108: 237698481 | J108: 475763540547 | K108: 0.461880358 | L108: 5070151142 | M108: 10261773384 | N108: 0.009962326156 | O108: 3411502000000000 | P108: DEMOCRACIA URBANA | Q108: 1021237719000 | R108: -14064202605 | S108: -14064202605 | T108: 1007173516395 | V108: 1007173516395 | W108: 474961994907 | X108: 474961994907 | Y108: 0.4715791144 | AC108: 22884446287 | AD108: 69282891861 | AE108: 801545640 | AF108: 563847159 | AG108: 10261773384 | AH108: 5191622242
A109: 3411502130000000 | B109: INFRAESTRUCTURA PARA EL DESARROLLO DEL HÁBITAT | C109: 1021237719000 | D109: 92167338148 | E109: 8820243682 | F109: 1030057962682 | H109: 1030057962682 | I109: 237698481 | J109: 475763540547 | K109: 0.461880358 | L109: 5070151142 | M109: 10261773384 | N109: 0.009962326156 | O109: 3411502130000000 | P109: INFRAESTRUCTURA PARA EL DESARROLLO DEL HÁBITAT | Q109: 1021237719000 | R109: -14064202605 | S109: -14064202605 | T109: 1007173516395 | V109: 1007173516395 | W109: 474961994907 | X109: 474961994907 | Y109: 0.4715791144 | AC109: 22884446287 | AD109: 69282891861 | AE109: 801545640 | AF109: 563847159 | AG109: 10261773384 | AH109: 5191622242
A110: 3411502130019000 | B110: CONST.REDES LOCALES PARA EL SERVICIO ALCANTARILLADO PLUVIAL | C110: 39310965000 | E110: -9472758929 | F110: 29838206071 | H110: 29838206071 | J110: 16883409630 | K110: 0.5658319267 | L110: 34870614 | M110: 807870997 | N110: 0.02707505254 | O110: 3411502130019000 | P110: CONST.REDES LOCALES PARA EL SERVICIO ALCANTARILLADO PLUVIAL | Q110: 39310965000 | T110: 39310965000 | V110: 39310965000 | W110: 16883409630 | X110: 16883409630 | Y110: 0.4294834693 | AC110: -9472758929 | AD110: 9472758929 | AE110: 0 | AF110: 0 | AG110: 807870997 | AH110: 773000383
A111: 00003411502130019133 | B111: INFRAESTRUCTURA PARA EL DESARROLLO DEL HÁBITAT | C111: 39310965000 | E111: -9472758929 | F111: 29838206071 | H111: 29838206071 | J111: 16883409630 | K111: 0.5658319267 | L111: 34870614 | M111: 807870997 | N111: 0.02707505254 | O111: 00003411502130019133 | P111: INFRAESTRUCTURA PARA EL DESARROLLO DEL HÁBITAT | Q111: 39310965000 | T111: 39310965000 | V111: 39310965000 | W111: 16883409630 | X111: 16883409630 | Y111: 0.4294834693 | AC111: -9472758929 | AD111: 9472758929 | AE111: 0 | AF111: 0 | AG111: 807870997 | AH111: 773000383
A112: 3411502130020000 | B112: CONST.REDES LOCALES SERVICIO DE ALCANTARILLADO SANITARIO | C112: 27526040000 | E112: -11209258364 | F112: 16316781636 | H112: 16316781636 | J112: 6237906783 | K112: 0.3823000713 | L112: 130332474 | M112: 130332474 | N112: 0.007987633647 | O112: 3411502130020000 | P112: CONST.REDES LOCALES SERVICIO DE ALCANTARILLADO SANITARIO | Q112: 27526040000 | T112: 27526040000 | V112: 27526040000 | W112: 6237906783 | X112: 6237906783 | Y112: 0.2266183869 | AC112: -11209258364 | AD112: 11209258364 | AE112: 0 | AF112: 0 | AG112: 130332474 | AH112: 0
A113: 00003411502130020133 | B113: INFRAESTRUCTURA PARA EL DESARROLLO DEL HÁBITAT | C113: 27526040000 | E113: -11209258364 | F113: 16316781636 | H113: 16316781636 | J113: 6237906783 | K113: 0.3823000713 | L113: 130332474 | M113: 130332474 | N113: 0.007987633647 | O113: 00003411502130020133 | P113: INFRAESTRUCTURA PARA EL DESARROLLO DEL HÁBITAT | Q113: 27526040000 | T113: 27526040000 | V113: 27526040000 | W113: 6237906783 | X113: 6237906783 | Y113: 0.2266183869 | AC113: -11209258364 | AD113: 11209258364 | AE113: 0 | AF113: 0 | AG113: 130332474 | AH113: 0
A114: 3411502130021000 | B114: CONST.SISTEMA TRONCAL Y SECUNDARIO ALCANTARILLADO SANITARIO | C114: 14273960000 | D114: 406230504 | E114: -4838837 | F114: 14269121163 | H114: 14269121163 | J114: 13862888797 | K114: 0.9715306667 | L114: 661068091 | M114: 661068091 | N114: 0.04632857787 | O114: 3411502130021000 | P114: CONST.SISTEMA TRONCAL Y SECUNDARIO ALCANTARILLADO SANITARIO | Q114: 14273960000 | T114: 14273960000 | V114: 14273960000 | W114: 13862888797 | X114: 13862888797 | Y114: 0.9712013202 | AC114: -4838837 | AD114: 411069341 | AE114: 0 | AF114: 0 | AG114: 661068091 | AH114: 0
A115: 00003411502130021133 | B115: INFRAESTRUCTURA PARA EL DESARROLLO DEL HÁBITAT | C115: 14273960000 | D115: 406230504 | E115: -4838837 | F115: 14269121163 | H115: 14269121163 | J115: 13862888797 | K115: 0.9715306667 | L115: 661068091 | M115: 661068091 | N115: 0.04632857787 | O115: 00003411502130021133 | P115: INFRAESTRUCTURA PARA EL DESARROLLO DEL HÁBITAT | Q115: 14273960000 | T115: 14273960000 | V115: 14273960000 | W115: 13862888797 | X115: 13862888797 | Y115: 0.9712013202 | AC115: -4838837 | AD115: 411069341 | AE115: 0 | AF115: 0 | AG115: 661068091 | AH115: 0
A116: 3411502130022000 | B116: CONST.SISTEMA TRONCAL Y SECUNDARIO DE ALCANTARILLADO PLUVIAL | C116: 38391669000 | D116: 53456121 | E116: 36477894 | F116: 38428146894 | H116: 38428146894 | I116: 53456121 | J116: 32517791410 | K116: 0.8461972288 | O116: 3411502130022000 | P116: CONST.SISTEMA TRONCAL Y SECUNDARIO DE ALCANTARILLADO PLUVIAL | Q116: 38391669000 | T116: 38391669000 | V116: 38391669000 | W116: 32464335289 | X116: 32464335289 | Y116: 0.8456088556 | AC116: 36477894 | AD116: 16978227 | AE116: 53456121 | AF116: 0 | AG116: 0 | AH116: 0
A117: 00003411502130022133 | B117: INFRAESTRUCTURA PARA EL DESARROLLO DEL HÁBITAT | C117: 38391669000 | D117: 53456121 | E117: 36477894 | F117: 38428146894 | H117: 38428146894 | I117: 53456121 | J117: 32517791410 | K117: 0.8461972288 | O117: 00003411502130022133 | P117: INFRAESTRUCTURA PARA EL DESARROLLO DEL HÁBITAT | Q117: 38391669000 | T117: 38391669000 | V117: 38391669000 | W117: 32464335289 | X117: 32464335289 | Y117: 0.8456088556 | AC117: 36477894 | AD117: 16978227 | AE117: 53456121 | AF117: 0 | AG117: 0 | AH117: 0
A118: 3411502130050000 | B118: RENOV,REHAB.O REPOS. SIST.ABAST. Y DISTRIB. MATRIZ ACUEDUCTO | C118: 155544351000 | D118: 19439817 | E118: -11871231667 | F118: 143673119333 | H118: 143673119333 | J118: 69217103573 | K118: 0.4817679458 | L118: 560056159 | M118: 1922502754 | N118: 0.0133810887 | O118: 3411502130050000 | P118: RENOV,REHAB.O REPOS. SIST.ABAST. Y DISTRIB. MATRIZ ACUEDUCTO | Q118: 155544351000 | T118: 155544351000 | V118: 155544351000 | W118: 69065924314 | X118: 69065924314 | Y118: 0.4440272107 | AC118: -11871231667 | AD118: 11890671484 | AE118: 151179259 | AF118: 151179259 | AG118: 1922502754 | AH118: 1362446595
A119: 00003411502130050133 | B119: INFRAESTRUCTURA PARA EL DESARROLLO DEL HÁBITAT | C119: 155544351000 | D119: 19439817 | E119: -11871231667 | F119: 143673119333 | H119: 143673119333 | J119: 69217103573 | K119: 0.4817679458 | L119: 560056159 | M119: 1922502754 | N119: 0.0133810887 | O119: 00003411502130050133 | P119: INFRAESTRUCTURA PARA EL DESARROLLO DEL HÁBITAT | Q119: 155544351000 | T119: 155544351000 | V119: 155544351000 | W119: 69065924314 | X119: 69065924314 | Y119: 0.4440272107 | AC119: -11871231667 | AD119: 11890671484 | AE119: 151179259 | AF119: 151179259 | AG119: 1922502754 | AH119: 1362446595
A120: 3411502130051000 | B120: RENOV,REHAB.O REPOS.SIST.TRONCAL,SEC. Y LOCAL ALC.SANITARIO | C120: 147614727000 | D120: 29719098588 | E120: -1179254070 | F120: 146435472930 | H120: 146435472930 | J120: 95996700974 | K120: 0.6555563283 | L120: 1464823857 | M120: 4123887276 | N120: 0.02816180529 | O120: 3411502130051000 | P120: RENOV,REHAB.O REPOS.SIST.TRONCAL,SEC. Y LOCAL ALC.SANITARIO | Q120: 147614727000 | T120: 147614727000 | V120: 147614727000 | W120: 95996700974 | X120: 95996700974 | Y120: 0.6503192664 | AC120: -1179254070 | AD120: 30898352658 | AE120: 0 | AF120: 0 | AG120: 4123887276 | AH120: 2659063419
A121: 00003411502130051133 | B121: INFRAESTRUCTURA PARA EL DESARROLLO DEL HÁBITAT | C121: 147614727000 | D121: 29719098588 | E121: -1179254070 | F121: 146435472930 | H121: 146435472930 | J121: 95996700974 | K121: 0.6555563283 | L121: 1464823857 | M121: 4123887276 | N121: 0.02816180529 | O121: 00003411502130051133 | P121: INFRAESTRUCTURA PARA EL DESARROLLO DEL HÁBITAT | Q121: 147614727000 | T121: 147614727000 | V121: 147614727000 | W121: 95996700974 | X121: 95996700974 | Y121: 0.6503192664 | AC121: -1179254070 | AD121: 30898352658 | AE121: 0 | AF121: 0 | AG121: 4123887276 | AH121: 2659063419
A122: 3411502130052000 | B122: RENOV,REHAB.O REPOS.SIST.TRONCAL, SEC. Y LOCAL ALC. PLUVIAL | C122: 137242908000 | E122: -18597139855 | F122: 118645768145 | H122: 118645768145 | J122: 101231726352 | K122: 0.8532266084 | L122: 1196031452 | M122: 1196031452 | N122: 0.01008069205 | O122: 3411502130052000 | P122: RENOV,REHAB.O REPOS.SIST.TRONCAL, SEC. Y LOCAL ALC. PLUVIAL | Q122: 137242908000 | R122: -14064202605 | S122: -14064202605 | T122: 123178705395 | V122: 123178705395 | W122: 101231726352 | X122: 101231726352 | Y122: 0.8218281401 | AC122: -4532937250 | AD122: 4532937250 | AE122: 0 | AF122: 0 | AG122: 1196031452 | AH122: 0
A123: 00003411502130052133 | B123: INFRAESTRUCTURA PARA EL DESARROLLO DEL HÁBITAT | C123: 137242908000 | E123: -18597139855 | F123: 118645768145 | H123: 118645768145 | J123: 101231726352 | K123: 0.8532266084 | L123: 1196031452 | M123: 1196031452 | N123: 0.01008069205 | O123: 00003411502130052133 | P123: INFRAESTRUCTURA PARA EL DESARROLLO DEL HÁBITAT | Q123: 137242908000 | R123: -14064202605 | S123: -14064202605 | T123: 123178705395 | V123: 123178705395 | W123: 101231726352 | X123: 101231726352 | Y123: 0.8218281401 | AC123: -4532937250 | AD123: 4532937250 | AE123: 0 | AF123: 0 | AG123: 1196031452 | AH123: 0
A124: 3411502130053000 | B124: RENOV,REHAB.O REPOS.SIST.TRONCAL, SEC. Y LOCAL ALC. COMBIN | C124: 14605692000 | E124: 74930049 | F124: 14680622049 | H124: 14680622049 | J124: 74930049 | K124: 0.005104010494 | O124: 3411502130053000 | P124: RENOV,REHAB.O REPOS.SIST.TRONCAL, SEC. Y LOCAL ALC. COMBIN | Q124: 14605692000 | T124: 14605692000 | V124: 14605692000 | AC124: 74930049 | AD124: -74930049 | AE124: 74930049 | AF124: 74930049 | AG124: 0 | AH124: 0
A125: 00003411502130053133 | B125: INFRAESTRUCTURA PARA EL DESARROLLO DEL HÁBITAT | C125: 14605692000 | E125: 74930049 | F125: 14680622049 | H125: 14680622049 | J125: 74930049 | K125: 0.005104010494 | O125: 00003411502130053133 | P125: INFRAESTRUCTURA PARA EL DESARROLLO DEL HÁBITAT | Q125: 14605692000 | T125: 14605692000 | V125: 14605692000 | AC125: 74930049 | AD125: -74930049 | AE125: 74930049 | AF125: 74930049 | AG125: 0 | AH125: 0
A126: 3411502130054000 | B126: ACCIONES PARA EL SANEAMIENTO DEL RÍO BOGOTÁ | C126: 14225533000 | D126: 61713497669 | E126: 74807097669 | F126: 89032630669 | H126: 89032630669 | J126: 12297000000 | K126: 0.1381179002 | O126: 3411502130054000 | P126: ACCIONES PARA EL SANEAMIENTO DEL RÍO BOGOTÁ | Q126: 14225533000 | T126: 14225533000 | V126: 14225533000 | W126: 12297000000 | X126: 12297000000 | Y126: 0.8644315823 | AC126: 74807097669 | AD126: -13093600000 | AE126: 0 | AF126: 0 | AG126: 0 | AH126: 0
A127: 00003411502130054133 | B127: INFRAESTRUCTURA PARA EL DESARROLLO DEL HÁBITAT | C127: 14225533000 | D127: 61713497669 | E127: 74807097669 | F127: 89032630669 | H127: 89032630669 | J127: 12297000000 | K127: 0.1381179002 | O127: 00003411502130054133 | P127: INFRAESTRUCTURA PARA EL DESARROLLO DEL HÁBITAT | Q127: 14225533000 | T127: 14225533000 | V127: 14225533000 | W127: 12297000000 | X127: 12297000000 | Y127: 0.8644315823 | AC127: 74807097669 | AD127: -13093600000 | AE127: 0 | AF127: 0 | AG127: 0 | AH127: 0
A128: 3411502130068000 | B128: CONST,RENOV,REHAB.O REPOS.REDES ASOC.A INFRAESTRUCTURA VIAL | C128: 46457000000 | F128: 46457000000 | H128: 46457000000 | O128: 3411502130068000 | P128: CONST,RENOV,REHAB.O REPOS.REDES ASOC.A INFRAESTRUCTURA VIAL | Q128: 46457000000 | T128: 46457000000 | V128: 46457000000 | AC128: 0 | AD128: 0 | AE128: 0 | AF128: 0 | AG128: 0 | AH128: 0
A129: 00003411502130068133 | B129: INFRAESTRUCTURA PARA EL DESARROLLO DEL HÁBITAT | C129: 46457000000 | F129: 46457000000 | H129: 46457000000 | O129: 00003411502130068133 | P129: INFRAESTRUCTURA PARA EL DESARROLLO DEL HÁBITAT | Q129: 46457000000 | T129: 46457000000 | V129: 46457000000 | AC129: 0 | AD129: 0 | AE129: 0 | AF129: 0 | AG129: 0 | AH129: 0
A130: 3411502130081000 | B130: CORREDORES AMBIENTALES | C130: 121046203000 | E130: -313803765 | F130: 120732399235 | H130: 120732399235 | J130: 2077396235 | K130: 0.01720661768 | O130: 3411502130081000 | P130: CORREDORES AMBIENTALES | Q130: 121046203000 | T130: 121046203000 | V130: 121046203000 | W130: 1751313132 | X130: 1751313132 | Y130: 0.01446813769 | AC130: -313803765 | AD130: 313803765 | AE130: 326083103 | AF130: 326083103 | AG130: 0 | AH130: 0
A131: 00003411502130081133 | B131: INFRAESTRUCTURA PARA EL DESARROLLO DEL HÁBITAT | C131: 121046203000 | E131: -313803765 | F131: 120732399235 | H131: 120732399235 | J131: 2077396235 | K131: 0.01720661768 | O131: 00003411502130081133 | P131: INFRAESTRUCTURA PARA EL DESARROLLO DEL HÁBITAT | Q131: 121046203000 | T131: 121046203000 | V131: 121046203000 | W131: 1751313132 | X131: 1751313132 | Y131: 0.01446813769 | AC131: -313803765 | AD131: 313803765 | AE131: 326083103 | AF131: 326083103 | AG131: 0 | AH131: 0
A132: 3411502137334000 | B132: CONST.Y EXPANSIÓN SISTEMA ABASTECIMIENTO Y MATRIZ ACUEDUCTO | C132: 249776117000 | D132: 255615449 | E132: -9437488080 | F132: 240338628920 | H132: 240338628920 | I132: 184242360 | J132: 121665661899 | K132: 0.5062259964 | L132: 879132529 | M132: 1276244374 | N132: 0.005310192455 | O132: 3411502137334000 | P132: CONST.Y EXPANSIÓN SISTEMA ABASTECIMIENTO Y MATRIZ ACUEDUCTO | Q132: 249776117000 | T132: 249776117000 | V132: 249776117000 | W132: 121469764791 | X132: 121469764791 | Y132: 0.4863145694 | AC132: -9437488080 | AD132: 9693103529 | AE132: 195897108 | AF132: 11654748 | AG132: 1276244374 | AH132: 397111845
A133: 00003411502137334133 | B133: INFRAESTRUCTURA PARA EL DESARROLLO DEL HÁBITAT | C133: 249776117000 | D133: 255615449 | E133: -9437488080 | F133: 240338628920 | H133: 240338628920 | I133: 184242360 | J133: 121665661899 | K133: 0.5062259964 | L133: 879132529 | M133: 1276244374 | N133: 0.005310192455 | O133: 00003411502137334133 | P133: INFRAESTRUCTURA PARA EL DESARROLLO DEL HÁBITAT | Q133: 249776117000 | T133: 249776117000 | V133: 249776117000 | W133: 121469764791 | X133: 121469764791 | Y133: 0.4863145694 | AC133: -9437488080 | AD133: 9693103529 | AE133: 195897108 | AF133: 11654748 | AG133: 1276244374 | AH133: 397111845
A134: 3411502137338000 | B134: CONSTRUCCIÓN DE REDES LOCALES PARA EL SERVICIO DE ACUEDUCTO | C134: 15222554000 | E134: -4012488363 | F134: 11210065637 | H134: 11210065637 | J134: 3701024845 | K134: 0.3301519335 | L134: 143835966 | M134: 143835966 | N134: 0.01283096555 | O134: 3411502137338000 | P134: CONSTRUCCIÓN DE REDES LOCALES PARA EL SERVICIO DE ACUEDUCTO | Q134: 15222554000 | T134: 15222554000 | V134: 15222554000 | W134: 3701024845 | X134: 3701024845 | Y134: 0.2431277199 | AC134: -4012488363 | AD134: 4012488363 | AE134: 0 | AF134: 0 | AG134: 143835966 | AH134: 0
A135: 00003411502137338133 | B135: INFRAESTRUCTURA PARA EL DESARROLLO DEL HÁBITAT | C135: 15222554000 | E135: -4012488363 | F135: 11210065637 | H135: 11210065637 | J135: 3701024845 | K135: 0.3301519335 | L135: 143835966 | M135: 143835966 | N135: 0.01283096555 | O135: 00003411502137338133 | P135: INFRAESTRUCTURA PARA EL DESARROLLO DEL HÁBITAT | Q135: 15222554000 | T135: 15222554000 | V135: 15222554000 | W135: 3701024845 | X135: 3701024845 | Y135: 0.2431277199 | AC135: -4012488363 | AD135: 4012488363 | AE135: 0 | AF135: 0 | AG135: 143835966 | AH135: 0
A136: 3411506000000000 | B136: EJE TRANSV. SOST. AMBIENTAL BASADA EFICIENCIA ENERGÉTICA | C136: 61193149000 | D136: 3184905987 | E136: -2719341963 | F136: 58473807037 | H136: 58473807037 | I136: 230922149 | J136: 33059327272 | K136: 0.5653698459 | L136: 612857245 | M136: 612857245 | N136: 0.01048088496 | O136: 3411506000000000 | P136: EJE TRANSV. SOST. AMBIENTAL BASADA EFICIENCIA ENERGÉTICA | Q136: 61193149000 | T136: 61193149000 | V136: 61193149000 | W136: 32827042961 | X136: 32827042961 | Y136: 0.5364496434 | AC136: -2719341963 | AD136: 5904247950 | AE136: 232284311 | AF136: 1362162 | AG136: 612857245 | AH136: 0
A137: 3411506380000000 | B137: RECUPERACIÓN Y MANEJO DE LA ESTRUCTURA ECOLÓGICA PRINCIPAL | D137: 274248602 | E137: 274519370 | F137: 274519370 | H137: 274519370 | I137: 230922149 | J137: 231117911 | K137: 0.8419001945 | L137: 195762 | M137: 195762 | N137: 0.0007131081497 | AC137: =F137-T137 -> 274519370 | AD137: =D137-AC137 -> -270768 | AE137: =J137-X137 -> 231117911 | AF137: =AE137-I137 -> 195762 | AG137: =M137-AA137 -> 195762 | AH137: =AG137-L137 -> 0
A138: 3411506387341000 | B138: ADEC.HIDRÁULICA RECUP.AMB.HUMED,QUEBRADAS,RÍOS CUENCAS ABAST | D138: 274248602 | E138: 274519370 | F138: 274519370 | H138: 274519370 | I138: 230922149 | J138: 231117911 | K138: 0.8419001945 | L138: 195762 | M138: 195762 | N138: 0.0007131081497 | AC138: 274519370 | AD138: -270768 | AE138: 231117911 | AF138: 195762 | AG138: 195762 | AH138: 0
A139: 00003411506387341177 | B139: CONSOLIDACIÓN DE LA ESTRUCTURA ECOLÓGICA PRINCIPAL | D139: 274248602 | E139: 274519370 | F139: 274519370 | H139: 274519370 | I139: 230922149 | J139: 231117911 | K139: 0.8419001945 | L139: 195762 | M139: 195762 | N139: 0.0007131081497 | AC139: 274519370 | AD139: -270768 | AE139: 231117911 | AF139: 195762 | AG139: 195762 | AH139: 0
A140: 3411506390000000 | B140: AMBIENTE SANO PARA LA EQUIDAD Y DISFRUTE DEL CIUDADANO | C140: 61193149000 | D140: 2910657385 | E140: -2993861333 | F140: 58199287667 | H140: 58199287667 | J140: 32828209361 | K140: 0.5640654839 | L140: 612661483 | M140: 612661483 | N140: 0.01052695845 | O140: 3411506390000000 | P140: AMBIENTE SANO PARA LA EQUIDAD Y DISFRUTE DEL CIUDADANO | Q140: 61193149000 | T140: 61193149000 | V140: 61193149000 | W140: 32827042961 | X140: 32827042961 | Y140: 0.5364496434 | AC140: -2993861333 | AD140: 5904518718 | AE140: 1166400 | AF140: 1166400 | AG140: 612661483 | AH140: 0
A141: 3411506390082000 | B141: PLAN DE SANEAMIENTO Y MANEJO DE VERTIMIENTOS | C141: 61193149000 | D141: 2910657385 | E141: -2993861333 | F141: 58199287667 | H141: 58199287667 | J141: 32828209361 | K141: 0.5640654839 | L141: 612661483 | M141: 612661483 | N141: 0.01052695845 | O141: 3411506390082000 | P141: PLAN DE SANEAMIENTO Y MANEJO DE VERTIMIENTOS | Q141: 61193149000 | T141: 61193149000 | V141: 61193149000 | W141: 32827042961 | X141: 32827042961 | Y141: 0.5364496434 | AC141: -2993861333 | AD141: 5904518718 | AE141: 1166400 | AF141: 1166400 | AG141: 612661483 | AH141: 0
A142: 00003411506390082179 | B142: AMBIENTE SANO | C142: 61193149000 | D142: 2910657385 | E142: -2993861333 | F142: 58199287667 | H142: 58199287667 | J142: 32828209361 | K142: 0.5640654839 | L142: 612661483 | M142: 612661483 | N142: 0.01052695845 | O142: 00003411506390082179 | P142: AMBIENTE SANO | Q142: 61193149000 | T142: 61193149000 | V142: 61193149000 | W142: 32827042961 | X142: 32827042961 | Y142: 0.5364496434 | AC142: -2993861333 | AD142: 5904518718 | AE142: 1166400 | AF142: 1166400 | AG142: 612661483 | AH142: 0
A143: 3411507000000000 | B143: EJE TRANSVERSAL GOBIERNO LEGÍTIMO, FORT. LOCAL Y EFICIENTE | C143: 32591418000 | E143: 40440083 | F143: 32631858083 | H143: 32631858083 | J143: 1617753340 | K143: 0.04957588795 | O143: 3411507000000000 | P143: EJE TRANSVERSAL GOBIERNO LEGÍTIMO, FORT. LOCAL Y EFICIENTE | Q143: 32591418000 | T143: 32591418000 | V143: 32591418000 | W143: 1617753340 | X143: 1617753340 | Y143: 0.04963740271 | AC143: 40440083 | AD143: -40440083 | AE143: 0 | AF143: 0 | AG143: 0 | AH143: 0
A144: 3411507420000000 | B144: TRANSPARENCIA, GESTIÓN PÚBLICA Y SERVICIO A LA CIUDADANÍA | C144: 32591418000 | E144: 40440083 | F144: 32631858083 | H144: 32631858083 | J144: 1617753340 | K144: 0.04957588795 | O144: 3411507420000000 | P144: TRANSPARENCIA, GESTIÓN PÚBLICA Y SERVICIO A LA CIUDADANÍA | Q144: 32591418000 | T144: 32591418000 | V144: 32591418000 | W144: 1617753340 | X144: 1617753340 | Y144: 0.04963740271 | AC144: 40440083 | AD144: -40440083 | AE144: 0 | AF144: 0 | AG144: 0 | AH144: 0
A145: 3411507420055000 | B145: FORTALECIMIENTO ADMINISTRATIVO Y OPERATIVO EMPRESARIAL | C145: 32591418000 | E145: 40440083 | F145: 32631858083 | H145: 32631858083 | J145: 1617753340 | K145: 0.04957588795 | O145: 3411507420055000 | P145: FORTALECIMIENTO ADMINISTRATIVO Y OPERATIVO EMPRESARIAL | Q145: 32591418000 | T145: 32591418000 | V145: 32591418000 | W145: 1617753340 | X145: 1617753340 | Y145: 0.04963740271 | AC145: 40440083 | AD145: -40440083 | AE145: 0 | AF145: 0 | AG145: 0 | AH145: 0
A146: 00003411507420055185 | B146: FORTALECIMIENTO ADMINISTRATIVO Y OPERATIVO EMPRESARIAL | C146: 32591418000 | E146: 40440083 | F146: 32631858083 | H146: 32631858083 | J146: 1617753340 | K146: 0.04957588795 | O146: 00003411507420055185 | P146: FORTALECIMIENTO ADMINISTRATIVO Y OPERATIVO EMPRESARIAL | Q146: 32591418000 | T146: 32591418000 | V146: 32591418000 | W146: 1617753340 | X146: 1617753340 | Y146: 0.04963740271 | AC146: 40440083 | AD146: -40440083 | AE146: 0 | AF146: 0 | AG146: 0 | AH146: 0
A147: 342000000000000 | B147: TRANSFERENCIAS PARA INVERSION | C147: 406848694000 | D147: -34884369466 | E147: 54926013365 | F147: 461774707365 | H147: 461774707365 | I147: 114206169 | J147: 5255040684 | K147: 0.0113800964 | L147: 114206169 | M147: 5255040684 | N147: 0.0113800964 | O147: 342000000000000 | P147: TRANSFERENCIAS PARA INVERSION | Q147: 406848694000 | T147: 406848694000 | V147: 406848694000 | AC147: 54926013365 | AD147: -89810382831 | AE147: 5255040684 | AF147: 5140834515 | AG147: 5255040684 | AH147: 5140834515
A148: 00000342030000000000 | B148: PATRIMONIO AUTONOMO PENSIONAL | C148: 73800000000 | F148: 73800000000 | H148: 73800000000 | J148: 5000000000 | K148: 0.06775067751 | M148: 5000000000 | N148: 0.06775067751 | O148: 00000342030000000000 | P148: PATRIMONIO AUTONOMO PENSIONAL | Q148: 73800000000 | T148: 73800000000 | V148: 73800000000 | AC148: 0 | AD148: 0 | AE148: 5000000000 | AF148: 5000000000 | AG148: 5000000000 | AH148: 5000000000
A149: 00000342040000000000 | B149: FONDO PLAN DE EXPANSION | C149: 318975936000 | D149: -34882746466 | E149: 54927636365 | F149: 373903572365 | H149: 373903572365 | O149: 00000342040000000000 | P149: FONDO PLAN DE EXPANSION | Q149: 318975936000 | T149: 318975936000 | V149: 318975936000 | AC149: 54927636365 | AD149: -89810382831 | AE149: 0 | AF149: 0 | AG149: 0 | AH149: 0
A150: 00000342060000000000 | B150: FONDO CUENTAS POR PAGAR LIBERADAS | C150: 4000000000 | D150: -1623000 | E150: -1623000 | F150: 3998377000 | H150: 3998377000 | O150: 00000342060000000000 | P150: FONDO CUENTAS POR PAGAR LIBERADAS | Q150: 4000000000 | T150: 4000000000 | V150: 4000000000 | AC150: -1623000 | AD150: 0 | AE150: 0 | AF150: 0 | AG150: 0 | AH150: 0
A151: 00000342090000000000 | B151: TRANFERENCIAS ADMINISTRACION CENTRAL - RIO BOGOTA | C151: 2795000000 | F151: 2795000000 | H151: 2795000000 | O151: 00000342090000000000 | P151: TRANFERENCIAS ADMINISTRACION CENTRAL - RIO BOGOTA | Q151: 2795000000 | T151: 2795000000 | V151: 2795000000 | AC151: 0 | AD151: 0 | AE151: 0 | AF151: 0 | AG151: 0 | AH151: 0
A152: 00000342100000000000 | B152: FONDO EQUIPOS SINIESTRADOS | C152: 2000000000 | F152: 2000000000 | H152: 2000000000 | O152: 00000342100000000000 | P152: FONDO EQUIPOS SINIESTRADOS | Q152: 2000000000 | T152: 2000000000 | V152: 2000000000 | AC152: 0 | AD152: 0 | AE152: 0 | AF152: 0 | AG152: 0 | AH152: 0
A153: 00000342120000000000 | B153: FONDO REPOSICION EQUIPOS ASEO | C153: 3782557000 | F153: 3782557000 | H153: 3782557000 | I153: 114206169 | J153: 255040684 | K153: 0.06742547013 | L153: 114206169 | M153: 255040684 | N153: 0.06742547013 | O153: 00000342120000000000 | P153: FONDO REPOSICION EQUIPOS ASEO | Q153: 3782557000 | T153: 3782557000 | V153: 3782557000 | AC153: 0 | AD153: 0 | AE153: 255040684 | AF153: 140834515 | AG153: 255040684 | AH153: 140834515
A154: 00000342160000000000 | B154: FONDO OBLIGACIONES CONTINGENTES | C154: 1495201000 | F154: 1495201000 | H154: 1495201000 | O154: 00000342160000000000 | P154: FONDO OBLIGACIONES CONTINGENTES | Q154: 1495201000 | T154: 1495201000 | V154: 1495201000 | AC154: 0 | AD154: 0 | AE154: 0 | AF154: 0 | AG154: 0 | AH154: 0
A155: 343000000000000 | B155: CUENTAS POR PAGAR | C155: 565023385000 | D155: 1623000 | E155: 13739742502 | F155: 578763127502 | H155: 578763127502 | I155: -171888124 | J155: 484242288318 | K155: 0.8366847598 | L155: 52565780839 | M155: 95754496973 | N155: 0.165446782 | O155: 343000000000000 | P155: CUENTAS POR PAGAR | Q155: 565023385000 | R155: 14064202605 | S155: 14064202605 | T155: 579087587605 | V155: 579087587605 | W155: 485060673038 | X155: 485060673038 | Y155: 0.8376292005 | Z155: 5003273871 | AA155: 5003273871 | AB155: 0.008639925942 | AC155: -324460103 | AD155: 326083103 | AE155: -818384720 | AF155: -646496596 | AG155: 90751223102 | AH155: 38185442263
A156: 00000343000000000000 | B156: CUENTAS POR PAGAR | C156: 565023385000 | D156: 1623000 | E156: 13739742502 | F156: 578763127502 | H156: 578763127502 | I156: -171888124 | J156: 484242288318 | K156: 0.8366847598 | L156: 52565780839 | M156: 95754496973 | N156: 0.165446782 | O156: 00000343000000000000 | P156: CUENTAS POR PAGAR | Q156: 565023385000 | R156: 14064202605 | S156: 14064202605 | T156: 579087587605 | V156: 579087587605 | W156: 485060673038 | X156: 485060673038 | Y156: 0.8376292005 | Z156: 5003273871 | AA156: 5003273871 | AB156: 0.008639925942 | AC156: -324460103 | AD156: 326083103 | AE156: -818384720 | AF156: -646496596 | AG156: 90751223102 | AH156: 38185442263
A157: 400000000000000 | B157: DISPONIBILIDAD FINAL | C157: 111809729000 | F157: 111809729000 | H157: 111809729000 | O157: 400000000000000 | P157: DISPONIBILIDAD FINAL | Q157: 111809729000 | T157: 111809729000 | V157: 111809729000 | AC157: 0 | AD157: 0 | AE157: 0 | AF157: 0 | AG157: 0 | AH157: 0
A158: 00000400000000000000 | B158: DISPONIBILIDAD FINAL | C158: 111809729000 | F158: 111809729000 | H158: 111809729000 | O158: 00000400000000000000 | P158: DISPONIBILIDAD FINAL | Q158: 111809729000 | T158: 111809729000 | V158: 111809729000 | AC158: 0 | AD158: 0 | AE158: 0 | AF158: 0 | AG158: 0 | AH158: 0
B163: JULIANA CASTRO BUITRAGO | F163: ALEXIS JAVIER BLANCO RIVEIRA
B164: Directora Presupuesto | F164: Gerente Corporativo Financiero

Sheet Graph (hidden)
G1: FEP8Qry3
F2: Dir. SIE - BI Rev 2014.01
F5: Information
F6: Autor | G6: RAGARCIA | I6: Últ.actual.pantalla | J6: 02/07/2014 09:16:31
F7: Usuario actual | G7: AOCAMPOR | I7: Fe.clave | J7: 02/07/2014
F8: Modificado por | G8: RAGARCIA | I8: Hora de modificación | J8: 12/06/2014 15:20:31
F9: InfoSitio | G9: 0PU_C02 | I9: Actualidad de datos | J9: 02/07/2014 00:39:33
F10: Nombre técnico query | G10: ZPU_C02_Q4001 | I10: Actualidad de datos (fecha) | J10: 02/07/2014
F11: Descripción query | G11: EJECUCION PRESUPUESTAL DE GASTOS - SECRETARIA DE HACIENDA | I11: Actualidad de los datos (hora) | J11: 00:39:33
C14: Filter
C15: Cta Entidades PSM | D15: GASTOS, DISPONIBILIDAD FINAL
C16: Ratios

Sheet V_Futuras_2019
A2: EMPRESA DE ACUEDUCTO ALCANTARILLADO Y ASEO DE BOGOTA
A3: EJECUCION PRESUPUESTAL DE VIGENCIAS FUTURAS
A4: A 31 DE MARZO DE 2018
A6: 2019
A7: CODIGO SECRETARIA DE HACIENDA | B7: CONCEPTO | C7: PRESUPUESTO INICIAL | D7: MODIFICACIONES MES | E7: MODIFICACIONES ACUMULADAS | F7: PRESUPUESTO DEFINITIVO | G7: COMPROMISOS MES | H7: COMPROMISOS ACUMULADOS | I7: % EJEC PPTAL | J7: DISPONIBILIDADES MES | K7: DISPONIBILIDADES ACUMULADAS | L7: SALDO DISPONIBLE | M7: CODIGO SECRETARIA DE HACIENDA | N7: CONCEPTO | O7: PRESUPUESTO INICIAL | P7: MODIFICACIONES MES | Q7: MODIFICACIONES ACUMULADAS | R7: PRESUPUESTO DEFINITIVO | S7: COMPROMISOS MES | T7: COMPROMISOS | U7: % EJEC PPTAL | V7: DISPONIBILIDADES MES | W7: DISPONIBILIDADES ACUMULADAS | X7: SALDO DISPONIBLE
A8: 3 | B8: TOTAL GASTOS | C8: 405102089837 | D8: 357005100581 | E8: 357005100581 | F8: 762107190418 | G8: 0 | H8: 405102089837 | I8: 53 | J8: 39650568110 | K8: 39650568110 | L8: 317354532471 | M8: 300000000000000 | N8: GASTOS | O8: 405102089837 | R8: 405102089837 | T8: 405102089837 | U8: 1 | Y8: =F8-R8 -> 357005100581 | Z8: =H8-T8 -> 0
A9: 300000000000000 | B9: GASTOS | C9: 405102089837 | D9: 357005100581 | E9: 357005100581 | F9: 762107190418 | G9: 0 | H9: 405102089837 | I9: 53 | J9: 39650568110 | K9: 39650568110 | L9: 317354532471 | M9: 310000000000000 | N9: GASTOS DE FUNCIONAMIENTO | O9: 101637204526 | R9: 101637204526 | T9: 101637204526 | U9: 1 | Y9: =F9-R9 -> 660469985892 | Z9: =H9-T9 -> 303464885311
A10: 310000000000000 | B10: GASTOS DE FUNCIONAMIENTO | C10: 101637204526 | D10: 39095593069 | E10: 39095593069 | F10: 140732797595 | G10: 0 | H10: 101637204526 | I10: 72 | J10: 33928964672 | K10: 33928964672 | L10: 5166628397 | M10: 312000000000000 | N10: GASTOS GENERALES | O10: 38736265442 | R10: 38736265442 | T10: 38736265442 | U10: 1 | Y10: 101996532153 | Z10: 62900939084
A11: 311000000000000 | B11: SERVICIOS PERSONALES | C11: 0 | D11: 2923500000 | E11: 2923500000 | F11: 2923500000 | G11: 0 | H11: 0 | I11: 0 | J11: 0 | K11: 0 | L11: 2923500000 | M11: 312010000000000 | N11: ADQUISICION DE BIENES Y SERVICIOS | O11: 38736265442 | R11: 38736265442 | T11: 38736265442 | U11: 1 | Y11: -35812765442 | Z11: -38736265442
A12: 311020000000000 | B12: SERVICIOS PERSONALES INDIRECTOS | C12: 0 | D12: 2923500000 | E12: 2923500000 | F12: 2923500000 | G12: 0 | H12: 0 | I12: 0 | J12: 0 | K12: 0 | L12: 2923500000 | M12: 00000312010200000000 | N12: MATERIALES Y SUMINISTROS | O12: 3091427891 | R12: 3091427891 | T12: 3091427891 | U12: 1 | Y12: -167927891 | Z12: -3091427891
A13: 311020300000000 | B13: HONORARIOS | C13: 0 | D13: 2923500000 | E13: 2923500000 | F13: 2923500000 | G13: 0 | H13: 0 | I13: 0 | J13: 0 | K13: 0 | L13: 2923500000 | M13: 00000312010300000000 | N13: ARRENDAMIENTOS | O13: 8778852792 | R13: 8778852792 | T13: 8778852792 | U13: 1 | Y13: -5855352792 | Z13: -8778852792
A14: 312000000000000 | B14: GASTOS GENERALES | C14: 38736265442 | D14: 36172093069 | E14: 36172093069 | F14: 74908358511 | G14: 0 | H14: 38736265442 | I14: 52 | J14: 33928964672 | K14: 33928964672 | L14: 2243128397 | M14: 00000312010400000000 | N14: GASTOS DE COMPUTADOR | O14: 643062675 | R14: 643062675 | T14: 643062675 | U14: 1 | Y14: 74265295836 | Z14: 38093202767
A15: 312010000000000 | B15: ADQUISICION DE BIENES Y SERVICIOS | C15: 38736265442 | D15: 36172093069 | E15: 36172093069 | F15: 74908358511 | G15: 0 | H15: 38736265442 | I15: 52 | J15: 33928964672 | K15: 33928964672 | L15: 2243128397 | M15: 00000312010900000000 | N15: MANTENIMIENTO Y REPARACIONES | O15: 2978784680 | R15: 2978784680 | T15: 2978784680 | U15: 1 | Y15: 71929573831 | Z15: 35757480762
A16: 312010200000000 | B16: MATERIALES Y SUMINISTROS | C16: 3091427891 | D16: 0 | E16: 0 | F16: 3091427891 | G16: 0 | H16: 3091427891 | I16: 100 | J16: 0 | K16: 0 | L16: 0 | M16: 00000312011100000000 | N16: SEGUROS | O16: 19735867974 | R16: 19735867974 | T16: 19735867974 | U16: 1 | Y16: -16644440083 | Z16: -16644440083
A17: 312010300000000 | B17: ARRENDAMIENTOS | C17: 8778852792 | D17: 0 | E17: 0 | F17: 8778852792 | G17: 0 | H17: 8778852792 | I17: 100 | J17: 0 | K17: 0 | L17: 0 | M17: 00000312011300000000 | N17: SERVICIOS PUBLICOS | O17: 1227760013 | R17: 1227760013 | T17: 1227760013 | U17: 1 | Y17: 7551092779 | Z17: 7551092779
A18: 312010400000000 | B18: GASTOS DE COMPUTADOR | C18: 643062675 | D18: 1204097997 | E18: 1204097997 | F18: 1847160672 | G18: 0 | H18: 643062675 | I18: 35 | J18: 0 | K18: 0 | L18: 1204097997 | M18: 00000312011800000000 | N18: INTERESES Y COMISIONES | O18: 2280509417 | R18: 2280509417 | T18: 2280509417 | U18: 1 | Y18: -433348745 | Z18: -1637446742
A19: 312010600000000 | B19: GASTOS DE TRANSPORTE Y COMUNICACIÓN | C19: 0 | D19: 4446000000 | E19: 4446000000 | F19: 4446000000 | G19: 0 | H19: 0 | I19: 0 | J19: 4445969600 | K19: 4445969600 | L19: 30400 | M19: 313000000000000 | N19: TRANSFERENCIAS CORRIENTES | O19: 62900939084 | R19: 62900939084 | T19: 62900939084 | U19: 1 | Y19: -58454939084 | Z19: -62900939084
A20: 312010900000000 | B20: MANTENIMIENTO Y REPARACIONES | C20: 2978784680 | D20: 30521995072 | E20: 30521995072 | F20: 33500779752 | G20: 0 | H20: 2978784680 | I20: 9 | J20: 29482995072 | K20: 29482995072 | L20: 1039000000 | M20: 313030000000000 | N20: TRANSFERENCIAS DE PREVISION Y SEGURIDAD | O20: 62900939084 | R20: 62900939084 | T20: 62900939084 | U20: 1 | Y20: -29400159332 | Z20: -59922154404
A21: 312011100000000 | B21: SEGUROS | C21: 19735867974 | D21: 0 | E21: 0 | F21: 19735867974 | G21: 0 | H21: 19735867974 | I21: 100 | J21: 0 | K21: 0 | L21: 0 | M21: 00000313030300000000 | N21: OTRAS TRANSFERENCIAS DE PREVISION Y SEGURIDAD SOCIAL | O21: 62900939084 | R21: 62900939084 | T21: 62900939084 | U21: 1 | Y21: -43165071110 | Z21: -43165071110
A22: 312011300000000 | B22: SERVICIOS PUBLICOS | C22: 1227760013 | D22: 0 | E22: 0 | F22: 1227760013 | G22: 0 | H22: 1227760013 | I22: 100 | J22: 0 | K22: 0 | L22: 0 | M22: 320000000000000 | N22: GASTOS DE OPERACIÓN | O22: 79647892709 | R22: 79647892709 | T22: 79647892709 | U22: 1 | Y22: -78420132696 | Z22: -78420132696
A23: 312011800000000 | B23: INTERESES Y COMISIONES | C23: 2280509417 | D23: 0 | E23: 0 | F23: 2280509417 | G23: 0 | H23: 2280509417 | I23: 100 | J23: 0 | K23: 0 | L23: 0 | M23: 321000000000000 | N23: GASTOS DE COMERCIALIZACION | O23: 11125136277 | R23: 11125136277 | T23: 11125136277 | U23: 1 | Y23: -8844626860 | Z23: -8844626860
A24: 313000000000000 | B24: TRANSFERENCIAS CORRIENTES | C24: 62900939084 | D24: 0 | E24: 0 | F24: 62900939084 | G24: 0 | H24: 62900939084 | I24: 100 | J24: 0 | K24: 0 | L24: 0 | M24: 321010000000000 | N24: COMPRA DE BIENES PARA LA VENTA | O24: 3999999580 | R24: 3999999580 | T24: 3999999580 | U24: 1 | Y24: 58900939504 | Z24: 58900939504
A25: 313030000000000 | B25: TRANSFERENCIAS DE PREVISION Y SEGURIDAD SOCIAL | C25: 62900939084 | D25: 0 | E25: 0 | F25: 62900939084 | G25: 0 | H25: 62900939084 | I25: 100 | J25: 0 | K25: 0 | L25: 0 | M25: 00000321010100000000 | N25: MEDIDORES | O25: 3999999580 | R25: 3999999580 | T25: 3999999580 | U25: 1 | Y25: 58900939504 | Z25: 58900939504
A26: 313030300000000 | B26: OTRAS TRANSFERENCIAS DE PREVISION Y SEGURIDAD SOCIAL | C26: 62900939084 | D26: 0 | E26: 0 | F26: 62900939084 | G26: 0 | H26: 62900939084 | I26: 100 | J26: 0 | K26: 0 | L26: 0 | M26: 321030000000000 | N26: OTROS GASTOS DE COMERCIALIZACION | O26: 7125136697 | R26: 7125136697 | T26: 7125136697 | U26: 1 | Y26: 55775802387 | Z26: 55775802387
A27: 320000000000000 | B27: GASTOS DE OPERACIÓN | C27: 79647892709 | D27: 0 | E27: 0 | F27: 79647892709 | G27: 0 | H27: 79647892709 | I27: 100 | J27: 0 | K27: 0 | L27: 0 | M27: 00000321030100000000 | N27: MANTENIMIENTO Y MATERIALES OPERACION INF AC Y AL | O27: 7125136697 | R27: 7125136697 | T27: 7125136697 | U27: 1 | Y27: 72522756012 | Z27: 72522756012
A28: 321000000000000 | B28: GASTOS DE COMERCIALIZACIÓN | C28: 11125136277 | D28: 0 | E28: 0 | F28: 11125136277 | G28: 0 | H28: 11125136277 | I28: 100 | J28: 0 | K28: 0 | L28: 0 | M28: 322000000000000 | N28: GASTOS DE PRODUCCION | O28: 68522756432 | R28: 68522756432 | T28: 68522756432 | U28: 1 | Y28: -57397620155 | Z28: -57397620155
A29: 321010000000000 | B29: COMPRA DE BIENES PARA LA VENTA | C29: 3999999580 | D29: 0 | E29: 0 | F29: 3999999580 | G29: 0 | H29: 3999999580 | I29: 100 | J29: 0 | K29: 0 | L29: 0 | M29: 322010000000000 | N29: INDUSTRIAL | O29: 68522756432 | R29: 68522756432 | T29: 68522756432 | U29: 1 | Y29: -64522756852 | Z29: -64522756852
A30: 321010100000000 | B30: MEDIDORES | C30: 3999999580 | D30: 0 | E30: 0 | F30: 3999999580 | G30: 0 | H30: 3999999580 | I30: 100 | J30: 0 | K30: 0 | L30: 0 | M30: 00000322010200000000 | N30: PRODUCTOS QUIMICOS | O30: 11315352596 | R30: 11315352596 | T30: 11315352596 | U30: 1 | Y30: -7315353016 | Z30: -7315353016
A31: 321030000000000 | B31: OTROS GASTOS DE COMERCIALIZACION | C31: 7125136697 | D31: 0 | E31: 0 | F31: 7125136697 | G31: 0 | H31: 7125136697 | I31: 100 | J31: 0 | K31: 0 | L31: 0 | M31: 00000322010300000000 | N31: ENERGIA PARA BOMBEO | O31: 57207403836 | R31: 57207403836 | T31: 57207403836 | U31: 1 | Y31: -50082267139 | Z31: -50082267139
A32: 321030100000000 | B32: MANTENIMIENTO Y MATERIALES OPERACION INF AC Y AL | C32: 7125136697 | D32: 0 | E32: 0 | F32: 7125136697 | G32: 0 | H32: 7125136697 | I32: 100 | J32: 0 | K32: 0 | L32: 0 | M32: 340000000000000 | N32: GASTOS DE INVERSION | O32: 223816992602 | R32: 223816992602 | T32: 223816992602 | U32: 1 | Y32: -216691855905 | Z32: -216691855905
A33: 322000000000000 | B33: GASTOS DE PRODUCCION | C33: 68522756432 | D33: 0 | E33: 0 | F33: 68522756432 | G33: 0 | H33: 68522756432 | I33: 100 | J33: 0 | K33: 0 | L33: 0 | M33: 341000000000000 | N33: DIRECTA | O33: 223816992602 | R33: 223816992602 | T33: 223816992602 | U33: 1 | Y33: -155294236170 | Z33: -155294236170
A34: 322010000000000 | B34: INDUSTRIAL | C34: 68522756432 | D34: 0 | E34: 0 | F34: 68522756432 | G34: 0 | H34: 68522756432 | I34: 100 | J34: 0 | K34: 0 | L34: 0 | M34: 3411500000000000 | N34: BOGOTA MEJOR PARA TODOS | O34: 223816992602 | R34: 223816992602 | T34: 223816992602 | U34: 1 | Y34: -155294236170 | Z34: -155294236170
A35: 322010200000000 | B35: PRODUCTOS QUIMICOS | C35: 11315352596 | D35: 0 | E35: 0 | F35: 11315352596 | G35: 0 | H35: 11315352596 | I35: 100 | J35: 0 | K35: 0 | L35: 0 | M35: 3411502000000000 | N35: DEMOCRACIA URBANA | O35: 216805514771 | R35: 216805514771 | T35: 216805514771 | U35: 1 | Y35: -205490162175 | Z35: -205490162175
A36: 322010300000000 | B36: ENERGIA PARA BOMBEO | C36: 57207403836 | D36: 0 | E36: 0 | F36: 57207403836 | G36: 0 | H36: 57207403836 | I36: 100 | J36: 0 | K36: 0 | L36: 0 | M36: 3411502130000000 | N36: INFRAESTRUCTURA PARA EL DESARROLLO DEL HÁBITAT | O36: 216805514771 | R36: 216805514771 | T36: 216805514771 | U36: 1 | Y36: -159598110935 | Z36: -159598110935
A37: 340000000000000 | B37: INVERSION | C37: 223816992602 | D37: 317909507512 | E37: 317909507512 | F37: 541726500114 | G37: 0 | H37: 223816992602 | I37: 41 | J37: 5721603438 | K37: 5721603438 | L37: 312187904074 | M37: 3411502130019000 | N37: CONST.REDES LOCALES PARA EL SERVICIO ALCANTARILLADO PLUVIAL | O37: 2409642109 | R37: 2409642109 | T37: 2409642109 | U37: 1 | Y37: 539316858005 | Z37: 221407350493
A38: 341000000000000 | B38: DIRECTA | C38: 223816992602 | D38: 317909507512 | E38: 317909507512 | F38: 541726500114 | G38: 0 | H38: 223816992602 | I38: 41 | J38: 5721603438 | K38: 5721603438 | L38: 312187904074 | M38: 00003411502130019133 | N38: INFRAESTRUCTURA PARA EL DESARROLLO DEL HÁBITAT | O38: 2409642109 | R38: 2409642109 | T38: 2409642109 | U38: 1 | Y38: 539316858005 | Z38: 221407350493
A39: 3411500000000000 | B39: BOGOTA MEJOR PARA TODOS | C39: 223816992602 | D39: 317909507512 | E39: 317909507512 | F39: 541726500114 | G39: 0 | H39: 223816992602 | I39: 41 | J39: 5721603438 | K39: 5721603438 | L39: 312187904074 | M39: 3411502130020000 | N39: CONST.REDES LOCALES SERVICIO DE ALCANTARILLADO SANITARIO | O39: 2330123523 | R39: 2330123523 | T39: 2330123523 | U39: 1 | Y39: 539396376591 | Z39: 221486869079
A40: 3411502000000000 | B40: DEMOCRACIA URBANA | C40: 216805514771 | D40: 291352338895 | E40: 291352338895 | F40: 508157853666 | G40: 0 | H40: 216805514771 | I40: 43 | J40: 5721603438 | K40: 5721603438 | L40: 285630735457 | M40: 00003411502130020133 | N40: INFRAESTRUCTURA PARA EL DESARROLLO DEL HÁBITAT | O40: 2330123523 | R40: 2330123523 | T40: 2330123523 | U40: 1 | Y40: 505827730143 | Z40: 214475391248
A41: 3411502130000000 | B41: INFRAESTRUCTURA PARA EL DESARROLLO DEL HÁBITAT | C41: 216805514771 | D41: 291352338895 | E41: 291352338895 | F41: 508157853666 | G41: 0 | H41: 216805514771 | I41: 43 | J41: 5721603438 | K41: 5721603438 | L41: 285630735457 | M41: 3411502130021000 | N41: CONST.SISTEMA TRONCAL Y SECUNDARIO ALCANTARILLADO SANITARIO | O41: 2735291930 | R41: 2735291930 | T41: 2735291930 | U41: 1 | Y41: 505422561736 | Z41: 214070222841
A42: 3411502130019000 | B42: CONST.REDES LOCALES PARA EL SERVICIO ALCANTARILLADO PLUVIAL | C42: 2409642109 | D42: 17224556565 | E42: 17224556565 | F42: 19634198674 | G42: 0 | H42: 2409642109 | I42: 12 | J42: 0 | K42: 0 | L42: 17224556565 | M42: 00003411502130021133 | N42: INFRAESTRUCTURA PARA EL DESARROLLO DEL HÁBITAT | O42: 2735291930 | R42: 2735291930 | T42: 2735291930 | U42: 1 | Y42: 16898906744 | Z42: -325649821
A43: 3411502130019133 | B43: INFRAESTRUCTURA PARA EL DESARROLLO DEL HÁBITAT | C43: 2409642109 | D43: 17224556565 | E43: 17224556565 | F43: 19634198674 | G43: 0 | H43: 2409642109 | I43: 12 | J43: 0 | K43: 0 | L43: 17224556565 | M43: 3411502130022000 | N43: CONST.SISTEMA TRONCAL Y SECUNDARIO DE ALCANTARILLADO PLUVIAL | O43: 13577018782 | R43: 13577018782 | T43: 13577018782 | U43: 1 | Y43: 6057179892 | Z43: -11167376673
A44: 3411502130020000 | B44: CONST.REDES LOCALES SERVICIO DE ALCANTARILLADO SANITARIO | C44: 2330123523 | D44: 18327735845 | E44: 18327735845 | F44: 20657859368 | G44: 0 | H44: 2330123523 | I44: 11 | J44: 0 | K44: 0 | L44: 18327735845 | M44: 00003411502130022133 | N44: INFRAESTRUCTURA PARA EL DESARROLLO DEL HÁBITAT | O44: 13577018782 | R44: 13577018782 | T44: 13577018782 | U44: 1 | Y44: 7080840586 | Z44: -11246895259
A45: 3411502130020133 | B45: INFRAESTRUCTURA PARA EL DESARROLLO DEL HÁBITAT | C45: 2330123523 | D45: 18327735845 | E45: 18327735845 | F45: 20657859368 | G45: 0 | H45: 2330123523 | I45: 11 | J45: 0 | K45: 0 | L45: 18327735845 | M45: 3411502130050000 | N45: RENOV,REHAB.O REPOS. SIST.ABAST. Y DISTRIB. MATRIZ ACUEDUCTO | O45: 5221146125 | R45: 5221146125 | T45: 5221146125 | U45: 1 | Y45: 15436713243 | Z45: -2891022602
A46: 3411502130021000 | B46: CONST.SISTEMA TRONCAL Y SECUNDARIO ALCANTARILLADO SANITARIO | C46: 2735291930 | D46: 21266395 | E46: 21266395 | F46: 2756558325 | G46: 0 | H46: 2735291930 | I46: 99 | J46: 21266395 | K46: 21266395 | L46: 0 | M46: 00003411502130050133 | N46: INFRAESTRUCTURA PARA EL DESARROLLO DEL HÁBITAT | O46: 5221146125 | R46: 5221146125 | T46: 5221146125 | U46: 1 | Y46: -2464587800 | Z46: -2485854195
A47: 3411502130021133 | B47: INFRAESTRUCTURA PARA EL DESARROLLO DEL HÁBITAT | C47: 2735291930 | D47: 21266395 | E47: 21266395 | F47: 2756558325 | G47: 0 | H47: 2735291930 | I47: 99 | J47: 21266395 | K47: 21266395 | L47: 0 | M47: 3411502130051000 | N47: RENOV,REHAB.O REPOS.SIST.TRONCAL,SEC. Y LOCAL ALC.SANITARIO | O47: 49369100622 | R47: 49369100622 | T47: 49369100622 | U47: 1 | Y47: -46612542297 | Z47: -46633808692
A48: 3411502130022000 | B48: CONST.SISTEMA TRONCAL Y SECUNDARIO DE ALCANTARILLADO PLUVIAL | C48: 13577018782 | D48: 0 | E48: 0 | F48: 13577018782 | G48: 0 | H48: 13577018782 | I48: 100 | J48: 0 | K48: 0 | L48: 0 | M48: 00003411502130051133 | N48: INFRAESTRUCTURA PARA EL DESARROLLO DEL HÁBITAT | O48: 49369100622 | R48: 49369100622 | T48: 49369100622 | U48: 1 | Y48: -35792081840 | Z48: -35792081840
A49: 3411502130022133 | B49: INFRAESTRUCTURA PARA EL DESARROLLO DEL HÁBITAT | C49: 13577018782 | D49: 0 | E49: 0 | F49: 13577018782 | G49: 0 | H49: 13577018782 | I49: 100 | J49: 0 | K49: 0 | L49: 0 | M49: 3411502130052000 | N49: RENOV,REHAB.O REPOS.SIST.TRONCAL, SEC. Y LOCAL ALC. PLUVIAL | O49: 48194799785 | R49: 48194799785 | T49: 48194799785 | U49: 1 | Y49: -34617781003 | Z49: -34617781003
A50: 3411502130050000 | B50: RENOV,REHAB.O REPOS. SIST.ABAST. Y DISTRIB. MATRIZ ACUEDUCTO | C50: 5221146125 | D50: 13959952031 | E50: 13959952031 | F50: 19181098156 | G50: 0 | H50: 5221146125 | I50: 27 | J50: 0 | K50: 0 | L50: 13959952031 | M50: 00003411502130052133 | N50: INFRAESTRUCTURA PARA EL DESARROLLO DEL HÁBITAT | O50: 48194799785 | R50: 48194799785 | T50: 48194799785 | U50: 1 | Y50: -29013701629 | Z50: -42973653660
A51: 3411502130050133 | B51: INFRAESTRUCTURA PARA EL DESARROLLO DEL HÁBITAT | C51: 5221146125 | D51: 13959952031 | E51: 13959952031 | F51: 19181098156 | G51: 0 | H51: 5221146125 | I51: 27 | J51: 0 | K51: 0 | L51: 13959952031 | M51: 3411502130054000 | N51: ACCIONES PARA EL SANEAMIENTO DEL RÍO BOGOTÁ | O51: 10258608154 | R51: 10258608154 | T51: 10258608154 | U51: 1 | Y51: 8922490002 | Z51: -5037462029
A52: 3411502130051000 | B52: RENOV,REHAB.O REPOS.SIST.TRONCAL,SEC. Y LOCAL ALC.SANITARIO | C52: 49369100622 | D52: 16184926171 | E52: 16184926171 | F52: 65554026793 | G52: 0 | H52: 49369100622 | I52: 75 | J52: 4849033898 | K52: 4849033898 | L52: 11335892273 | M52: 00003411502130054133 | N52: INFRAESTRUCTURA PARA EL DESARROLLO DEL HÁBITAT | O52: 10258608154 | R52: 10258608154 | T52: 10258608154 | U52: 1 | Y52: 55295418639 | Z52: 39110492468
A53: 3411502130051133 | B53: INFRAESTRUCTURA PARA EL DESARROLLO DEL HÁBITAT | C53: 49369100622 | D53: 16184926171 | E53: 16184926171 | F53: 65554026793 | G53: 0 | H53: 49369100622 | I53: 75 | J53: 4849033898 | K53: 4849033898 | L53: 11335892273 | M53: 3411502137334000 | N53: CONST.Y EXPANSIÓN SISTEMA ABASTECIMIENTO Y MATRIZ ACUEDUCTO | O53: 81135173091 | R53: 81135173091 | T53: 81135173091 | U53: 1 | Y53: -15581146298 | Z53: -31766072469
A54: 3411502130052000 | B54: RENOV,REHAB.O REPOS.SIST.TRONCAL, SEC. Y LOCAL ALC. PLUVIAL | C54: 48194799785 | D54: 11525504019 | E54: 11525504019 | F54: 59720303804 | G54: 0 | H54: 48194799785 | I54: 81 | J54: 0 | K54: 0 | L54: 11525504019 | M54: 00003411502137334133 | N54: INFRAESTRUCTURA PARA EL DESARROLLO DEL HÁBITAT | O54: 81135173091 | R54: 81135173091 | T54: 81135173091 | U54: 1 | Y54: -21414869287 | Z54: -32940373306
A55: 3411502130052133 | B55: INFRAESTRUCTURA PARA EL DESARROLLO DEL HÁBITAT | C55: 48194799785 | D55: 11525504019 | E55: 11525504019 | F55: 59720303804 | G55: 0 | H55: 48194799785 | I55: 81 | J55: 0 | K55: 0 | L55: 11525504019 | M55: 3411502137338000 | N55: CONSTRUCCIÓN DE REDES LOCALES PARA EL SERVICIO DE ACUEDUCTO | O55: 1574610650 | R55: 1574610650 | T55: 1574610650 | U55: 1 | Y55: 58145693154 | Z55: 46620189135
A56: 3411502130053000 | B56: RENOV,REHAB.O REPOS.SIST.TRONCAL, SEC. Y LOCAL ALC. COMBI | C56: 0 | D56: 7413688781 | E56: 7413688781 | F56: 7413688781 | G56: 0 | H56: 0 | I56: 0 | J56: 0 | K56: 0 | L56: 7413688781 | M56: 00003411502137338133 | N56: INFRAESTRUCTURA PARA EL DESARROLLO DEL HÁBITAT | O56: 1574610650 | R56: 1574610650 | T56: 1574610650 | U56: 1 | Y56: 5839078131 | Z56: -1574610650
A57: 3411502130053133 | B57: INFRAESTRUCTURA PARA EL DESARROLLO DEL HÁBITAT | C57: 0 | D57: 7413688781 | E57: 7413688781 | F57: 7413688781 | G57: 0 | H57: 0 | I57: 0 | J57: 0 | K57: 0 | L57: 7413688781 | M57: 3411506000000000 | N57: EJE TRANSV. SOST. AMBIENTAL BASADA EFICIENCIA ENERGÉTICA | O57: 7011477831 | R57: 7011477831 | T57: 7011477831 | U57: 1 | Y57: 402210950 | Z57: -7011477831
A58: 3411502130054000 | B58: ACCIONES PARA EL SANEAMIENTO DEL RÍO BOGOTÁ | C58: 10258608154 | D58: 851303145 | E58: 851303145 | F58: 11109911299 | G58: 0 | H58: 10258608154 | I58: 92 | J58: 851303145 | K58: 851303145 | L58: 0 | M58: 3411506390000000 | N58: AMBIENTE SANO PARA LA EQUIDAD Y DISFRUTE DEL CIUDADANO | O58: 7011477831 | R58: 7011477831 | T58: 7011477831 | U58: 1 | Y58: 4098433468 | Z58: 3247130323
A59: 3411502130054133 | B59: INFRAESTRUCTURA PARA EL DESARROLLO DEL HÁBITAT | C59: 10258608154 | D59: 851303145 | E59: 851303145 | F59: 11109911299 | G59: 0 | H59: 10258608154 | I59: 92 | J59: 851303145 | K59: 851303145 | L59: 0 | M59: 3411506390082000 | N59: PLAN DE SANEAMIENTO Y MANEJO DE VERTIMIENTOS | O59: 7011477831 | R59: 7011477831 | T59: 7011477831 | U59: 1 | Y59: 4098433468 | Z59: 3247130323
A60: 3411502130081000 | B60: CORREDORES AMBIENTALES | C60: 0 | D60: 145820570644 | E60: 145820570644 | F60: 145820570644 | G60: 0 | H60: 0 | I60: 0 | J60: 0 | K60: 0 | L60: 145820570644 | M60: 00003411506390082179 | N60: AMBIENTE SANO | O60: 7011477831 | R60: 7011477831 | T60: 7011477831 | U60: 1 | Y60: 138809092813 | Z60: -7011477831
A61: 3411502130081133 | B61: INFRAESTRUCTURA PARA EL DESARROLLO DEL HÁBITAT | C61: 0 | D61: 145820570644 | E61: 145820570644 | F61: 145820570644 | G61: 0 | H61: 0 | I61: 0 | J61: 0 | K61: 0 | L61: 145820570644
A62: 3411502137334000 | B62: CONST.Y EXPANSIÓN SISTEMA ABASTECIMIENTO Y MATRIZ ACUEDUCTO | C62: 81135173091 | D62: 53004750605 | E62: 53004750605 | F62: 134139923696 | G62: 0 | H62: 81135173091 | I62: 60 | J62: 0 | K62: 0 | L62: 53004750605
A63: 3411502137334133 | B63: INFRAESTRUCTURA PARA EL DESARROLLO DEL HÁBITAT | C63: 81135173091 | D63: 53004750605 | E63: 53004750605 | F63: 134139923696 | G63: 0 | H63: 81135173091 | I63: 60 | J63: 0 | K63: 0 | L63: 53004750605
A64: 3411502137338000 | B64: CONSTRUCCIÓN DE REDES LOCALES PARA EL SERVICIO DE ACUEDUCTO | C64: 1574610650 | D64: 7018084694 | E64: 7018084694 | F64: 8592695344 | G64: 0 | H64: 1574610650 | I64: 18 | J64: 0 | K64: 0 | L64: 7018084694
A65: 3411502137338133 | B65: INFRAESTRUCTURA PARA EL DESARROLLO DEL HÁBITAT | C65: 1574610650 | D65: 7018084694 | E65: 7018084694 | F65: 8592695344 | G65: 0 | H65: 1574610650 | I65: 18 | J65: 0 | K65: 0 | L65: 7018084694
A66: 3411506000000000 | B66: EJE TRANSV. SOST. AMBIENTAL BASADA EFICIENCIA ENERGÉTICA | C66: 7011477831 | D66: 22516368617 | E66: 22516368617 | F66: 29527846448 | G66: 0 | H66: 7011477831 | I66: 24 | J66: 0 | K66: 0 | L66: 22516368617
A67: 3411506390000000 | B67: AMBIENTE SANO PARA LA EQUIDAD Y DISFRUTE DEL CIUDADANO | C67: 7011477831 | D67: 22516368617 | E67: 22516368617 | F67: 29527846448 | G67: 0 | H67: 7011477831 | I67: 24 | J67: 0 | K67: 0 | L67: 22516368617
A68: 3411506390082000 | B68: PLAN DE SANEAMIENTO Y MANEJO DE VERTIMIENTOS. | C68: 7011477831 | D68: 22516368617 | E68: 22516368617 | F68: 29527846448 | G68: 0 | H68: 7011477831 | I68: 24 | J68: 0 | K68: 0 | L68: 22516368617
A69: 3411506390082179 | B69: AMBIENTE SANO | C69: 7011477831 | D69: 22516368617 | E69: 22516368617 | F69: 29527846448 | G69: 0 | H69: 7011477831 | I69: 24 | J69: 0 | K69: 0 | L69: 22516368617
A70: 3411507000000000 | B70: EJE TRANSVERSAL GOBIERNO LEGÍTIMO, FORT. LOCAL Y EFICIENTE. | C70: 0 | D70: 4040800000 | E70: 4040800000 | F70: 4040800000 | G70: 0 | H70: 0 | I70: 0 | J70: 0 | K70: 0 | L70: 4040800000
A71: 3411507420000000 | B71: TRANSPARENCIA, GESTIÓN PÚBLICA Y SERVICIO A LA CIUDADANÍA | C71: 0 | D71: 4040800000 | E71: 4040800000 | F71: 4040800000 | G71: 0 | H71: 0 | I71: 0 | J71: 0 | K71: 0 | L71: 4040800000
A72: 3411507420055000 | B72: FORTALECIMIENTO ADMINISTRATIVO Y OPERATIVO EMPRESARIAL | C72: 0 | D72: 4040800000 | E72: 4040800000 | F72: 4040800000 | G72: 0 | H72: 0 | I72: 0 | J72: 0 | K72: 0 | L72: 4040800000
A73: 3411507420055185 | B73: FORTALECIMIENTO ADMINISTRATIVO Y OPERATIVO EMPRESARIAL | C73: 0 | D73: 4040800000 | E73: 4040800000 | F73: 4040800000 | G73: 0 | H73: 0 | I73: 0 | J73: 0 | K73: 0 | L73: 4040800000

Sheet Gastos P
A2: EMPRESA DE ACUEDUCTO ALCANTARILLADO Y ASEO DE BOGOTA
A3: EJECUCION PRESUPUESTAL DE GASTOS PERSONERIA
A4: A 31 DE MARZO DE 2018
C5: 1 | D5: 2 | E5: 3 | F5: 4=(1+3) | G5: 5 | H5: 6=(4-5) | I5: 7 | J5: 8 | K5: 9=(8/6) | L5: 10 | M5: 11 | N5: 12 | O5: 13=(12/6) | P5: 14=(12/10)
A6: CODIGO SECRETARIA DE HACIENDA | B6: RUBRO | C6: PRESUPUESTO INICIAL | D6: MODIFICACIONES MES | E6: MODIFICACIONES ACUMULADAS | F6: PRESUPUESTO DEFINITIVO | G6: SUSPENSION | H6: APROPIACION DISPONIBLE | I6: COMPROMISOS MES | J6: COMPROMISOS ACUMULADOS | K6: % EJEC PPTAL | L6: PAC ACUMULADO | M6: AUTORIZACIONES DE GIRO | O6: % EJEC AUT. GIRO | P6: % EJEC GIROS PAC | Q6: CODIGO SECRETARIA DE HACIENDA | R6: RUBRO | S6: PRESUPUESTO INICIAL | T6: MODIFICACIONES MES | U6: MODIFICACIONES ACUMULADAS | V6: PRESUPUESTO DEFINITIVO | W6: SUSPENSION | X6: APROPIACION DISPONIBLE | Y6: COMPROMISOS MES | Z6: COMPROMISOS ACUMULADOS | AA6: % EJEC PPTAL | AB6: PAC ACUMULADO | AC6: AUTORIZACIONES DE GIRO | AE6: % EJEC AUT. GIRO | AF6: % EJEC GIROS PAC
M7: MES | N7: ACUMULADO | AC7: MES | AD7: ACUMULADO
A8: TOTAL GASTOS + DISPONIBILIDAD FINAL | C8: 3850633264000 | D8: 60469497669 | E8: 103123947963 | F8: 3953757211963 | H8: 3953757211963 | I8: 58011708755 | J8: 1788130248817 | K8: 0.4522610148 | L8: 594081407245 | M8: 146863794285 | N8: 404278627014 | O8: 0.1022517584 | P8: 0.6805104857 | Q8: TOTAL GASTOS + DISPONIBILIDAD FINAL | S8: 3850633264000 | T8: 0 | U8: 0 | V8: 3850633264000 | X8: 3850633264000 | Y8: 1669716571939 | Z8: 1669716571939 | AA8: 0.4336212923 | AB8: 319089843356 | AC8: 91962455314 | AD8: 91962455314 | AE8: 0.02388242375 | AF8: 0.2882023895 | AG8: =F8-V8 -> 103123947963 | AH8: =AG8-D8 -> 42654450294 | AI8: =J8-Z8 -> 118413676878 | AJ8: =AI8-I8 -> 60401968123 | AK8: =N8-AD8 -> 312316171700 | AL8: =AK8-M8 -> 165452377415
A9: 300000000000000 | B9: GASTOS | C9: 3738823535000 | D9: 60469497669 | E9: 103123947963 | F9: 3841947482963 | H9: 3841947482963 | I9: 58011708755 | J9: 1788130248817 | K9: 0.4654228765 | L9: 594081407245 | M9: 146863794285 | N9: 404278627014 | O9: 0.1052275256 | P9: 0.6805104857 | Q9: 300000000000000 | R9: GASTOS | S9: 3738823535000 | T9: 0 | U9: 0 | V9: 3738823535000 | X9: 3738823535000 | Y9: 1669716571939 | Z9: 1669716571939 | AA9: 0.4465887615 | AB9: 319089843356 | AC9: 91962455314 | AD9: 91962455314 | AE9: 0.02459662898 | AF9: 0.2882023895 | AG9: =F9-V9 -> 103123947963 | AH9: =AG9-D9 -> 42654450294 | AI9: =J9-Z9 -> 118413676878 | AJ9: =AI9-I9 -> 60401968123 | AK9: =N9-AD9 -> 312316171700 | AL9: =AK9-M9 -> 165452377415
A10: 310000000000000 | B10: GASTOS DE FUNCIONAMIENTO | C10: 1236617326000 | D10: 0 | E10: 5106678498 | F10: 1241724004498 | H10: 1241724004498 | I10: 57258348992 | J10: 484375056977 | K10: 0.3900827037 | L10: 305881552131 | M10: 69131489812 | N10: 204681764330 | O10: 0.1648367621 | P10: 0.6691536737 | Q10: 310000000000000 | R10: GASTOS DE FUNCIONAMIENTO | S10: 1236617326000 | T10: 0 | U10: 0 | V10: 1236617326000 | X10: 1236617326000 | Y10: 377880174162 | Z10: 377880174162 | AA10: 0.305575675 | AB10: 132299632374 | AC10: 69460692751 | AD10: 69460692751 | AE10: 0.05616991715 | AF10: 0.5250255916 | AG10: 5106678498 | AH10: 5106678498 | AI10: 106494882815 | AJ10: 49236533823 | AK10: 135221071579 | AL10: 66089581767
A11: 311000000000000 | B11: SERVICIOS PERSONALES | C11: 322700565000 | D11: -79026758 | E11: 4539933302 | F11: 327240498302 | H11: 327240498302 | I11: 18682907929 | J11: 97432620493 | K11: 0.2977401055 | L11: 85915315665 | M11: 21337762578 | N11: 63289937701 | O11: 0.1934049668 | P11: 0.7366548934 | Q11: 311000000000000 | R11: SERVICIOS PERSONALES | S11: 322700565000 | T11: 3615038405 | U11: 3615038405 | V11: 326315603405 | X11: 326315603405 | Y11: 60083800098 | Z11: 60083800098 | AA11: 0.1841278795 | AB11: 35391744628 | AC11: 23255279004 | AD11: 23255279004 | AE11: 0.07126621823 | AF11: 0.6570820187 | AG11: 924894897 | AH11: 1003921655 | AI11: 37348820395 | AJ11: 18665912466 | AK11: 40034658697 | AL11: 18696896119
A12: 311010000000000 | B12: SERVICIOS PERSONALES ASOCIADOS A LA NOMINA | C12: 207592274000 | D12: 0 | E12: -1295710754 | F12: 206296563246 | H12: 206296563246 | I12: 14105201678 | J12: 43015918896 | K12: 0.2085149564 | L12: 56678119940 | M12: 13991161230 | N12: 42901878448 | O12: 0.2079621578 | P12: 0.7569389827 | Q12: 311010000000000 | R12: SERVICIOS PERSONALES ASOCIADOS A LA NOMINA | S12: 207592274000 | T12: -1536198850 | U12: -1536198850 | V12: 206056075150 | X12: 206056075150 | Y12: 15276500628 | Z12: 15276500628 | AA12: 0.07413758909 | AB12: 20644731915 | AC12: 15276500628 | AD12: 15276500628 | AE12: 0.07413758909 | AF12: 0.739970889 | AG12: 240488096 | AH12: 240488096 | AI12: 27739418268 | AJ12: 13634216590 | AK12: 27625377820 | AL12: 13634216590
A13: 00000311010100000000 | B13: SUELDOS PERSONAL DE NOMINA | C13: 119153276000 | D13: 0 | E13: -868500763 | F13: 118284775237 | H13: 118284775237 | I13: 9515892951 | J13: 27588250872 | K13: 0.2332358566 | L13: 29613701250 | M13: 9515629801 | N13: 27587987722 | O13: 0.2332336319 | P13: 0.9315953953 | Q13: 00000311010100000000 | R13: SUELDOS PERSONAL DE NOMINA | S13: 119153276000 | T13: -1000073963 | U13: -1000073963 | V13: 118153202037 | X13: 118153202037 | Y13: 8742016379 | Z13: 8742016379 | AA13: 0.07398882323 | AB13: 9849981357 | AC13: 8742016379 | AD13: 8742016379 | AE13: 0.07398882323 | AF13: 0.887516033 | AG13: 131573200 | AH13: 131573200 | AI13: 18846234493 | AJ13: 9330341542 | AK13: 18845971343 | AL13: 9330341542
A14: 00000311010200000000 | B14: GASTOS DE REPRESENTACION | C14: 71675000 | F14: 71675000 | H14: 71675000 | I14: 5535436 | J14: 16052764 | K14: 0.2239660133 | L14: 17918700 | M14: 5535436 | N14: 16052764 | O14: 0.2239660133 | P14: 0.8958665528 | Q14: 00000311010200000000 | R14: GASTOS DE REPRESENTACION | S14: 71675000 | V14: 71675000 | X14: 71675000 | Y14: 5535436 | Z14: 5535436 | AA14: 0.07722966167 | AB14: 5972900 | AC14: 5535436 | AD14: 5535436 | AE14: 0.07722966167 | AF14: 0.926758526 | AG14: 0 | AH14: 0 | AI14: 10517328 | AJ14: 4981892 | AK14: 10517328 | AL14: 4981892
A15: 00000311010300000000 | B15: HORAS EXTRAS, DOMINICALES, FESTIVOS, RECARGO NOCTURNO Y TRA | C15: 11374267000 | D15: 0 | E15: -15350615 | F15: 11358916385 | H15: 11358916385 | I15: 1321745626 | J15: 4406427810 | K15: 0.3879267758 | L15: 4466262012 | M15: 1321745626 | N15: 4406427810 | O15: 0.3879267758 | P15: 0.9866030694 | Q15: 00000311010300000000 | R15: HORAS EXTRAS, DOMINICALES, FESTIVOS, RECARGO NOCTURNO Y TRA | S15: 11374267000 | T15: -17350615 | U15: -17350615 | V15: 11356916385 | X15: 11356916385 | Y15: 1702924950 | Z15: 1702924950 | AA15: 0.1499460674 | AB15: 1753411108 | AC15: 1702924950 | AD15: 1702924950 | AE15: 0.1499460674 | AF15: 0.9712068905 | AG15: 2000000 | AH15: 2000000 | AI15: 2703502860 | AJ15: 1381757234 | AK15: 2703502860 | AL15: 1381757234
A16: 00000311010400000000 | B16: SUBSIDIO DE TRANSPORTE | C16: 1518813000 | D16: 0 | E16: -213803 | F16: 1518599197 | H16: 1518599197 | I16: 92753219 | J16: 324532130 | K16: 0.2137049266 | L16: 386287188 | M16: 92722412 | N16: 324501323 | O16: 0.2136846402 | P16: 0.8400519952 | Q16: 00000311010400000000 | R16: SUBSIDIO DE TRANSPORTE | S16: 1518813000 | T16: -213803 | U16: -213803 | V16: 1518599197 | X16: 1518599197 | Y16: 130683384 | Z16: 130683384 | AA16: 0.08605521737 | AB16: 133379062 | AC16: 130683384 | AD16: 130683384 | AE16: 0.08605521737 | AF16: 0.9797893465 | AG16: 0 | AH16: 0 | AI16: 193848746 | AJ16: 101095527 | AK16: 193817939 | AL16: 101095527
A17: 00000311010500000000 | B17: SUBSIDIO DE ALIMENTACION | C17: 8862554000 | D17: 0 | E17: 2332021 | F17: 8864886021 | H17: 8864886021 | I17: 701970096 | J17: 2486820588 | K17: 0.2805248237 | L17: 2520796383 | M17: 701859441 | N17: 2486709933 | O17: 0.2805123413 | P17: 0.9864779043 | Q17: 00000311010500000000 | R17: SUBSIDIO DE ALIMENTACION | S17: 8862554000 | T17: 2332021 | U17: 2332021 | V17: 8864886021 | X17: 8864886021 | Y17: 1015555830 | Z17: 1015555830 | AA17: 0.1145593782 | AB17: 1144332128 | AC17: 1015555830 | AD17: 1015555830 | AE17: 0.1145593782 | AF17: 0.887465977 | AG17: 0 | AH17: 0 | AI17: 1471264758 | AJ17: 769294662 | AK17: 1471154103 | AL17: 769294662
A18: 00000311010600000000 | B18: BONIFICACION POR SERVICIOS PRESTADOS | C18: 428970000 | D18: 0 | E18: -1639069 | F18: 427330931 | H18: 427330931 | I18: 5931296 | J18: 55999622 | K18: 0.1310450939 | L18: 107704733 | M18: 5931296 | N18: 55999622 | O18: 0.1310450939 | P18: 0.5199365008 | Q18: 00000311010600000000 | R18: BONIFICACION POR SERVICIOS PRESTADOS | S18: 428970000 | T18: -5127753 | U18: -5127753 | V18: 423842247 | X18: 423842247 | Y18: 25910782 | Z18: 25910782 | AA18: 0.06113308002 | AB18: 35320131 | AC18: 25910782 | AD18: 25910782 | AE18: 0.06113308002 | AF18: 0.7335981285 | AG18: 3488684 | AH18: 3488684 | AI18: 30088840 | AJ18: 24157544 | AK18: 30088840 | AL18: 24157544
A19: 00000311010700000000 | B19: PRIMA SEMESTRAL | C19: 13981393000 | D19: 0 | E19: 7621116 | F19: 13989014116 | H19: 13989014116 | I19: 777051 | J19: 12834466 | K19: 0.0009174675137 | L19: 3499158560 | M19: 777051 | N19: 12834466 | O19: 0.0009174675137 | P19: 0.003667872084 | Q19: 00000311010700000000 | R19: PRIMA SEMESTRAL | S19: 13981393000 | V19: 13981393000 | X19: 13981393000 | Y19: 8349833 | Z19: 8349833 | AA19: 0.0005972103781 | AB19: 1165116000 | AC19: 8349833 | AD19: 8349833 | AE19: 0.0005972103781 | AF19: 0.00716652505 | AG19: 7621116 | AH19: 7621116 | AI19: 4484633 | AJ19: 3707582 | AK19: 4484633 | AL19: 3707582
A20: 00000311010900000000 | B20: PRIMA DE NAVIDAD | C20: 14466954000 | D20: 0 | E20: -144148872 | F20: 14322805128 | H20: 14322805128 | I20: 406816 | J20: 2654253 | K20: 0.0001853165617 | L20: 3585001390 | M20: 406815 | N20: 2654252 | O20: 0.0001853164919 | P20: 0.0007403768399 | Q20: 00000311010900000000 | R20: PRIMA DE NAVIDAD | S20: 14466954000 | T20: -161349296 | U20: -161349296 | V20: 14305604704 | X20: 14305604704 | Y20: 1003388 | Z20: 1003388 | AA20: 7.013950272e-05 | AB20: 1192133726 | AC20: 1003388 | AD20: 1003388 | AE20: 7.013950272e-05 | AF20: 0.0008416740321 | AG20: 17200424 | AH20: 17200424 | AI20: 1650865 | AJ20: 1244049 | AK20: 1650864 | AL20: 1244049
A21: 00000311011000000000 | B21: PRIMA DE VACACIONES | C21: 15513705000 | D21: 0 | E21: -110834801 | F21: 15402870199 | H21: 15402870199 | I21: 1082208610 | J21: 2718610048 | K21: 0.1765002245 | L21: 3852549127 | M21: 1081171612 | N21: 2717573050 | O21: 0.1764328995 | P21: 0.7053960794 | Q21: 00000311011000000000 | R21: PRIMA DE VACACIONES | S21: 15513705000 | T21: -126712121 | U21: -126712121 | V21: 15386992879 | X21: 15386992879 | Y21: 1034226019 | Z21: 1034226019 | AA21: 0.06721430413 | AB21: 1279636822 | AC21: 1034226019 | AD21: 1034226019 | AE21: 0.06721430413 | AF21: 0.8082183954 | AG21: 15877320 | AH21: 15877320 | AI21: 1684384029 | AJ21: 602175419 | AK21: 1683347031 | AL21: 602175419
A22: 00000311011100000000 | B22: PRIMA TECNICA | C22: 4202843000 | D22: 0 | E22: -71669210 | F22: 4131173790 | H22: 4131173790 | I22: 314973701 | J22: 926109263 | K22: 0.2241758178 | L22: 1047744888 | M22: 314973701 | N22: 926109263 | O22: 0.2241758178 | P22: 0.8839072122 | Q22: 00000311011100000000 | R22: PRIMA TECNICA | S22: 4202843000 | T22: -131475210 | U22: -131475210 | V22: 4071367790 | X22: 4071367790 | Y22: 306310647 | Z22: 306310647 | AA22: 0.07523531717 | AB22: 339280629 | AC22: 306310647 | AD22: 306310647 | AE22: 0.07523531717 | AF22: 0.9028238597 | AG22: 59806000 | AH22: 59806000 | AI22: 619798616 | AJ22: 304824915 | AK22: 619798616 | AL22: 304824915
A23: 00000311011200000000 | B23: OTRAS PRIMAS Y BONIFICACIONES | C23: 11618579000 | D23: 0 | E23: -93306758 | F23: 11525272242 | H23: 11525272242 | I23: 361279671 | J23: 2632486701 | K23: 0.2284099365 | L23: 4452440149 | M23: 248680834 | N23: 2519887864 | O23: 0.2186402031 | P23: 0.5659565945 | Q23: 00000311011200000000 | R23: OTRAS PRIMAS Y BONIFICACIONES | S23: 11618579000 | T23: -96228110 | U23: -96228110 | V23: 11522350890 | X23: 11522350890 | Y23: 2047018976 | Z23: 2047018976 | AA23: 0.1776563651 | AB23: 2650498312 | AC23: 2047018976 | AD23: 2047018976 | AE23: 0.1776563651 | AF23: 0.7723147631 | AG23: 2921352 | AH23: 2921352 | AI23: 585467725 | AJ23: 224188054 | AK23: 472868888 | AL23: 224188054
A24: 00000311011400000000 | B24: QUINQUENIO | C24: 4341645000 | F24: 4341645000 | H24: 4341645000 | I24: 701727205 | J24: 1826024919 | K24: 0.4205836541 | L24: 2170822560 | M24: 701727205 | N24: 1826024919 | O24: 0.4205836541 | P24: 0.841167285 | Q24: 00000311011400000000 | R24: QUINQUENIO | S24: 4341645000 | V24: 4341645000 | X24: 4341645000 | Y24: 237849544 | Z24: 237849544 | AA24: 0.05478327777 | AB24: 661803740 | AC24: 237849544 | AD24: 237849544 | AE24: 0.05478327777 | AF24: 0.3593958898 | AG24: 0 | AH24: 0 | AI24: 1588175375 | AJ24: 886448170 | AK24: 1588175375 | AL24: 886448170
A25: 00000311011500000000 | B25: INDEMNIZACIONES LABORALES | C25: 1512000000 | F25: 1512000000 | H25: 1512000000 | J25: 19115460 | K25: 0.0126425 | L25: 594000000 | N25: 19115460 | O25: 0.0126425 | P25: 0.03218090909 | Q25: 00000311011500000000 | R25: INDEMNIZACIONES LABORALES | S25: 1512000000 | V25: 1512000000 | X25: 1512000000 | Y25: 19115460 | Z25: 19115460 | AA25: 0.0126425 | AB25: 252000000 | AC25: 19115460 | AD25: 19115460 | AE25: 0.0126425 | AF25: 0.075855 | AG25: 0 | AH25: 0 | AI25: 0 | AJ25: 0 | AK25: 0 | AL25: 0
A26: 00000311011600000000 | B26: CONVENCIONES COLECTIVAS O CONVENIOS | C26: 545600000 | F26: 545600000 | H26: 545600000 | L26: 363733000 | Q26: 00000311011600000000 | R26: CONVENCIONES COLECTIVAS O CONVENIOS | S26: 545600000 | V26: 545600000 | X26: 545600000 | AB26: 181866000 | AG26: 0 | AH26: 0 | AI26: 0 | AJ26: 0 | AK26: 0 | AL26: 0
A27: 311020000000000 | B27: SERVICIOS PERSONALES INDIRECTOS | C27: 52943116000 | D27: -79026758 | E27: 5300525466 | F27: 58243641466 | H27: 58243641466 | I27: 462946257 | J27: 34580612358 | K27: 0.5937233917 | L27: 7111906602 | M27: 3268576285 | N27: 4478789668 | O27: 0.0768974871 | P27: 0.6297593485 | Q27: 311020000000000 | R27: SERVICIOS PERSONALES INDIRECTOS | S27: 52943116000 | T27: 4712018129 | U27: 4712018129 | V27: 57655134129 | X27: 57655134129 | Y27: 33193043172 | Z27: 33193043172 | AA27: 0.5757170402 | AB27: 2049659847 | AC27: 279496097 | AD27: 279496097 | AE27: 0.004847722605 | AF27: 0.1363621859 | AG27: 588507337 | AH27: 667534095 | AI27: 1387569186 | AJ27: 924622929 | AK27: 4199293571 | AL27: 930717286
A28: 00000311020300000000 | B28: HONORARIOS | C28: 43143000000 | D28: -79026758 | E28: 5288067982 | F28: 48431067982 | H28: 48431067982 | I28: 122832727 | J28: 32913055203 | K28: 0.6795855754 | L28: 5316099668 | M28: 2940296255 | N28: 3578647736 | O28: 0.07389157178 | P28: 0.6731716784 | Q28: 00000311020300000000 | R28: HONORARIOS | S28: 43143000000 | T28: 4759366645 | U28: 4759366645 | V28: 47902366645 | X28: 47902366645 | Y28: 32158918764 | Z28: 32158918764 | AA28: 0.6713430049 | AB28: 1481152357 | AC28: 15321412 | AD28: 15321412 | AE28: 0.0003198466605 | AF28: 0.01034425117 | AG28: 528701337 | AH28: 607728095 | AI28: 754136439 | AJ28: 631303712 | AK28: 3563326324 | AL28: 623030069
A29: 00000311020400000000 | B29: REMUNERACION SERVICIOS TECNICOS | C29: 4240000000 | D29: 0 | E29: 0 | F29: 4240000000 | H29: 4240000000 | I29: 56737500 | J29: 826687223 | K29: 0.1949734017 | L29: 99804728 | M29: 44904000 | N29: 59272000 | O29: 0.01397924528 | P29: 0.5938796807 | Q29: 00000311020400000000 | R29: REMUNERACION SERVICIOS TECNICOS | S29: 4240000000 | T29: 0 | U29: 0 | V29: 4240000000 | X29: 4240000000 | Y29: 769949723 | Z29: 769949723 | AA29: 0.1815919158 | AB29: 0 | AG29: 0 | AH29: 0 | AI29: 56737500 | AJ29: 0 | AK29: 59272000 | AL29: 14368000
A30: 00000311029900000000 | B30: OTROS GASTOS DE PERSONAL | C30: 5560116000 | D30: 0 | E30: 12457484 | F30: 5572573484 | H30: 5572573484 | I30: 283376030 | J30: 840869932 | K30: 0.1508943641 | L30: 1696002206 | M30: 283376030 | N30: 840869932 | O30: 0.1508943641 | P30: 0.4957953056 | Q30: 00000311029900000000 | R30: OTROS GASTOS DE PERSONAL | S30: 5560116000 | T30: -47348516 | U30: -47348516 | V30: 5512767484 | X30: 5512767484 | Y30: 264174685 | Z30: 264174685 | AA30: 0.0479205201 | AB30: 568507490 | AC30: 264174685 | AD30: 264174685 | AE30: 0.0479205201 | AF30: 0.4646810986 | AG30: 59806000 | AH30: 59806000 | AI30: 576695247 | AJ30: 293319217 | AK30: 576695247 | AL30: 293319217
A31: 311030000000000 | B31: APORTES PATRONALES AL SECTOR PUBLICO Y PRIVADO | C31: 62165175000 | D31: 0 | E31: 535118590 | F31: 62700293590 | H31: 62700293590 | I31: 4114759994 | J31: 19836089239 | K31: 0.3163635783 | L31: 22125289123 | M31: 4078025063 | N31: 15909269585 | O31: 0.2537351689 | P31: 0.7190536357 | Q31: 311030000000000 | R31: APORTES PATRONALES AL SECTOR PUBLICO Y PRIVADO | S31: 62165175000 | T31: 439219126 | U31: 439219126 | V31: 62604394126 | X31: 62604394126 | Y31: 11614256298 | Z31: 11614256298 | AA31: 0.1855182286 | AB31: 12697352866 | AC31: 7699282279 | AD31: 7699282279 | AE31: 0.1229830971 | AF31: 0.6063690881 | AG31: 95899464 | AH31: 95899464 | AI31: 8221832941 | AJ31: 4107072947 | AK31: 8209987306 | AL31: 4131962243
A32: 00000311030100000000 | B32: CAJA DE COMPENSACION | C32: 7583715000 | D32: 0 | E32: -47465542 | F32: 7536249458 | H32: 7536249458 | I32: 504166221 | J32: 1460946805 | K32: 0.1938559509 | L32: 1886626061 | M32: 484887600 | N32: 931191900 | O32: 0.123561714 | P32: 0.4935752342 | Q32: 00000311030100000000 | R32: CAJA DE COMPENSACION | S32: 7583715000 | T32: -57720530 | U32: -57720530 | V32: 7525994470 | X32: 7525994470 | Y32: 494391488 | Z32: 494391488 | AA32: 0.06569118406 | AB32: 627266189 | AC32: 4381000 | AD32: 4381000 | AE32: 0.0005821157612 | AF32: 0.006984275698 | AG32: 10254988 | AH32: 10254988 | AI32: 966555317 | AJ32: 462389096 | AK32: 926810900 | AL32: 441923300
A33: 00000311030200000000 | B33: CESANTIAS | C33: 7200812000 | D33: 0 | E33: 876995848 | F33: 8077807848 | H33: 8077807848 | I33: -5730 | J33: 7397909592 | K33: 0.9158313408 | L33: 8055994465 | M33: 512983 | N33: 7397889441 | O33: 0.9158288462 | P33: 0.9183086549 | Q33: 00000311030200000000 | R33: CESANTIAS | S33: 7200812000 | T33: 855791900 | U33: 855791900 | V33: 8056603900 | X33: 8056603900 | Y33: 7397915322 | Z33: 7397915322 | AA33: 0.9182424026 | AB33: 8056603900 | AC33: 7397376458 | AD33: 7397376458 | AE33: 0.9181755179 | AF33: 0.9181755179 | AG33: 21203948 | AH33: 21203948 | AI33: -5730 | AJ33: 0 | AK33: 512983 | AL33: 0
A34: 00000311030300000000 | B34: PENSIONES | C34: 17533115000 | D34: 0 | E34: -139895051 | F34: 17393219949 | H34: 17393219949 | I34: 1506339379 | J34: 4590555219 | K34: 0.2639278542 | L34: 4751469918 | M34: 1513203634 | N34: 3198395531 | O34: 0.1838874884 | P34: 0.6731381207 | Q34: 00000311030300000000 | R34: PENSIONES | S34: 17533115000 | T34: -172555039 | U34: -172555039 | V34: 17360559961 | X34: 17360559961 | Y34: 1537215794 | Z34: 1537215794 | AA34: 0.08854644075 | AB34: 1541713308 | AC34: 96154989 | AD34: 96154989 | AE34: 0.005538703199 | AF34: 0.06236891678 | AG34: 32659988 | AH34: 32659988 | AI34: 3053339425 | AJ34: 1547000046 | AK34: 3102240542 | AL34: 1589036908
A35: 00000311030400000000 | B35: SALUD | C35: 23992277000 | D35: 0 | E35: -123339478 | F35: 23868937522 | H35: 23868937522 | I35: 1847705135 | J35: 5636355093 | K35: 0.2361376617 | L35: 5971375170 | M35: 1831413746 | N35: 3902127113 | O35: 0.1634813912 | P35: 0.6534721068 | Q35: 00000311030400000000 | R35: SALUD | S35: 23992277000 | T35: -139903246 | U35: -139903246 | V35: 23852373754 | X35: 23852373754 | Y35: 1930205591 | Z35: 1930205591 | AA35: 0.08092299789 | AB35: 1987697762 | AC35: 195723632 | AD35: 195723632 | AE35: 0.0082056249 | AF35: 0.09846750132 | AG35: 16563768 | AH35: 16563768 | AI35: 3706149502 | AJ35: 1858444367 | AK35: 3706403481 | AL35: 1874989735
A36: 00000311030500000000 | B36: RIESGOS PROFESIONALES | C36: 1334593000 | D36: 0 | E36: -10853413 | F36: 1323739587 | H36: 1323739587 | I36: 108678711 | J36: 319156603 | K36: 0.2411022577 | L36: 331519261 | M36: 111035300 | N36: 209308600 | O36: 0.1581191664 | P36: 0.631361808 | Q36: 00000311030500000000 | R36: RIESGOS PROFESIONALES | S36: 1334593000 | T36: -13191829 | U36: -13191829 | V36: 1321401171 | X36: 1321401171 | Y36: 102973814 | Z36: 102973814 | AA36: 0.07792774538 | AB36: 110116684 | AC36: 169900 | AD36: 169900 | AE36: 0.0001285756391 | AF36: 0.001542908793 | AG36: 2338416 | AH36: 2338416 | AI36: 216182789 | AJ36: 107504078 | AK36: 209138700 | AL36: 98103400
A37: 00000311030600000000 | B37: ICBF | C37: 2730824000 | D37: 0 | E37: -12423361 | F37: 2718400639 | H37: 2718400639 | I37: 88736619 | J37: 258727375 | K37: 0.09517632217 | L37: 681508059 | M37: 82196200 | N37: 162224400 | O37: 0.05967641328 | P37: 0.2380373905 | Q37: 00000311030600000000 | R37: ICBF | S37: 2730824000 | T37: -20054977 | U37: -20054977 | V37: 2710769023 | X37: 2710769023 | Y37: 90952575 | Z37: 90952575 | AA37: 0.03355231458 | AB37: 225897417 | AC37: 3285900 | AD37: 3285900 | AE37: 0.001212165246 | AF37: 0.01454598306 | AG37: 7631616 | AH37: 7631616 | AI37: 167774800 | AJ37: 79038181 | AK37: 158938500 | AL37: 76742300
A38: 00000311030700000000 | B38: SENA | C38: 1789839000 | D38: 0 | E38: -7900413 | F38: 1781938587 | H38: 1781938587 | I38: 59139659 | J38: 172438552 | K38: 0.09677019919 | L38: 446796189 | M38: 54775600 | N38: 108132600 | O38: 0.06068256268 | P38: 0.2420177313 | Q38: 00000311030700000000 | R38: SENA | S38: 1789839000 | T38: -13147153 | U38: -13147153 | V38: 1776691847 | X38: 1776691847 | Y38: 60601714 | Z38: 60601714 | AA38: 0.03410929932 | AB38: 148057606 | AC38: 2190400 | AD38: 2190400 | AE38: 0.001232853071 | AF38: 0.01479424164 | AG38: 5246740 | AH38: 5246740 | AI38: 111836838 | AJ38: 52697179 | AK38: 105942200 | AL38: 51166600
A39: 312000000000000 | B39: GASTOS GENERALES | C39: 508410399000 | D39: 79026758 | E39: -25015106444 | F39: 483395292556 | H39: 483395292556 | I39: 18689759669 | J39: 136283591782 | K39: 0.2819299109 | L39: 82079880787 | M39: 15559224506 | N39: 42699882710 | O39: 0.08833326134 | P39: 0.5202234981 | Q39: 312000000000000 | R39: GASTOS GENERALES | S39: 508410399000 | T39: -29195617809 | U39: -29195617809 | V39: 479214781191 | X39: 479214781191 | Y39: 100527903841 | Z39: 100527903841 | AA39: 0.2097763003 | AB39: 28893217986 | AC39: 14076634216 | AD39: 14076634216 | AE39: 0.02937437401 | AF39: 0.4871950997 | AG39: 4180511365 | AH39: 4101484607 | AI39: 35755687941 | AJ39: 17065928272 | AK39: 28623248494 | AL39: 13064023988
A40: 312010000000000 | B40: ADQUISICION DE BIENES Y SERVICIOS | C40: 508410399000 | D40: 79026758 | E40: -25015106444 | F40: 483395292556 | H40: 483395292556 | I40: 18689759669 | J40: 136283591782 | K40: 0.2819299109 | L40: 82079880787 | M40: 15559224506 | N40: 42699882710 | O40: 0.08833326134 | P40: 0.5202234981 | Q40: 312010000000000 | R40: ADQUISICION DE BIENES Y SERVICIOS | S40: 508410399000 | T40: -29195617809 | U40: -29195617809 | V40: 479214781191 | X40: 479214781191 | Y40: 100527903841 | Z40: 100527903841 | AA40: 0.2097763003 | AB40: 28893217986 | AC40: 14076634216 | AD40: 14076634216 | AE40: 0.02937437401 | AF40: 0.4871950997 | AG40: 4180511365 | AH40: 4101484607 | AI40: 35755687941 | AJ40: 17065928272 | AK40: 28623248494 | AL40: 13064023988
A41: 00000312010100000000 | B41: DOTACION | C41: 3462394000 | D41: 79026758 | E41: 102026758 | F41: 3564420758 | H41: 3564420758 | I41: 188486168 | J41: 211494238 | K41: 0.05933481268 | L41: 102364368 | M41: 13745550 | N41: 22508070 | O41: 0.006314650129 | P41: 0.2198818831 | Q41: 00000312010100000000 | R41: DOTACION | S41: 3462394000 | T41: 0 | U41: 0 | V41: 3462394000 | X41: 3462394000 | Y41: 500000 | Z41: 500000 | AA41: 0.000144408753 | AB41: 168805 | AG41: 102026758 | AH41: 23000000 | AI41: 210994238 | AJ41: 22508070 | AK41: 22508070 | AL41: 8762520
A42: 00000312010200000000 | B42: MATERIALES Y SUMINISTROS | C42: 14360601000 | D42: -12000000 | E42: -118000000 | F42: 14242601000 | H42: 14242601000 | I42: 555968260 | J42: 8035515494 | K42: 0.5641887668 | L42: 939565571 | M42: 33487836 | N42: 33536836 | O42: 0.002354684794 | P42: 0.03569398138 | Q42: 00000312010200000000 | R42: MATERIALES Y SUMINISTROS | S42: 14360601000 | T42: -106000000 | U42: -106000000 | V42: 14254601000 | X42: 14254601000 | Y42: 7179498234 | Z42: 7179498234 | AA42: 0.5036618166 | AB42: 834155886 | AG42: -12000000 | AH42: 0 | AI42: 856017260 | AJ42: 300049000 | AK42: 33536836 | AL42: 49000
A43: 00000312010300000000 | B43: ARRENDAMIENTOS | C43: 13288258000 | D43: 0 | E43: -126756564 | F43: 13161501436 | H43: 13161501436 | I43: 0 | J43: 8484093116 | K43: 0.6446143821 | L43: 582454902 | M43: 156896213 | N43: 375055271 | O43: 0.02849638948 | P43: 0.6439215632 | Q43: 00000312010300000000 | R43: ARRENDAMIENTOS | S43: 13288258000 | T43: -126756564 | U43: -126756564 | V43: 13161501436 | X43: 13161501436 | Y43: 8484093116 | Z43: 8484093116 | AA43: 0.6446143821 | AB43: 213803689 | AG43: 0 | AH43: 0 | AI43: 0 | AJ43: 0 | AK43: 375055271 | AL43: 218159058
A44: 00000312010400000000 | B44: GASTOS DE COMPUTADOR | C44: 33237587000 | D44: 0 | E44: 17498913 | F44: 33255085913 | H44: 33255085913 | I44: 1892854460 | J44: 28127801027 | K44: 0.8458195267 | L44: 6659901408 | Q44: 00000312010400000000 | R44: GASTOS DE COMPUTADOR | S44: 33237587000 | T44: -85852550 | U44: -85852550 | V44: 33151734450 | X44: 33151734450 | Y44: 26234946567 | Z44: 26234946567 | AA44: 0.7913596981 | AB44: 410384853 | AG44: 103351463 | AH44: 103351463 | AI44: 1892854460 | AJ44: 0 | AK44: 0 | AL44: 0
A45: 00000312010500000000 | B45: VIATICOS Y GASTOS DE VIAJE | C45: 994851000 | F45: 994851000 | H45: 994851000 | I45: 24746534 | J45: 65192339 | K45: 0.06552975169 | L45: 248712345 | M45: 24582473 | N45: 64696250 | O45: 0.06503109511 | P45: 0.260124804 | Q45: 00000312010500000000 | R45: VIATICOS Y GASTOS DE VIAJE | S45: 994851000 | V45: 994851000 | X45: 994851000 | Y45: 21094056 | Z45: 21094056 | AA45: 0.02120323144 | AB45: 82904115 | AC45: 21094056 | AD45: 21094056 | AE45: 0.02120323144 | AF45: 0.2544391916 | AG45: 0 | AH45: 0 | AI45: 44098283 | AJ45: 19351749 | AK45: 43602194 | AL45: 19019721
A46: 00000312010600000000 | B46: GASTOS DE TRANSPORTE Y COMUNICACIÓN | C46: 13130922000 | D46: 0 | E46: -196405000 | F46: 12934517000 | H46: 12934517000 | I46: 1731744527 | J46: 2735325248 | K46: 0.2114748659 | L46: 1515637469 | M46: 872238278 | N46: 1358343903 | O46: 0.1050169792 | P46: 0.8962195319 | Q46: 00000312010600000000 | R46: GASTOS DE TRANSPORTE Y COMUNICACIÓN | S46: 13130922000 | T46: -200325000 | U46: -200325000 | V46: 12930597000 | X46: 12930597000 | Y46: 779155352 | Z46: 779155352 | AA46: 0.06025671916 | AB46: 292740271 | AC46: 263447703 | AD46: 263447703 | AE46: 0.02037397832 | AF46: 0.8999366643 | AG46: 3920000 | AH46: 3920000 | AI46: 1956169896 | AJ46: 224425369 | AK46: 1094896200 | AL46: 222657922
A47: 00000312010700000000 | B47: IMPRESOS Y PUBLICACIONES | C47: 527293000 | F47: 527293000 | H47: 527293000 | I47: 17976365 | J47: 61480457 | K47: 0.1165963838 | L47: 47350119 | M47: 33375465 | N47: 40298707 | O47: 0.07642564381 | P47: 0.8510793183 | Q47: 00000312010700000000 | R47: IMPRESOS Y PUBLICACIONES | S47: 527293000 | V47: 527293000 | X47: 527293000 | Y47: 21665060 | Z47: 21665060 | AA47: 0.04108732716 | AB47: 7154283 | AC47: 4862260 | AD47: 4862260 | AE47: 0.009221173048 | AF47: 0.6796292515 | AG47: 0 | AH47: 0 | AI47: 39815397 | AJ47: 21839032 | AK47: 35436447 | AL47: 2060982
A48: 00000312010800000000 | B48: SENTENCIAS JUDICIALES | C48: 750000000 | F48: 750000000 | H48: 750000000 | L48: 62500000 | Q48: 00000312010800000000 | R48: SENTENCIAS JUDICIALES | S48: 750000000 | V48: 750000000 | X48: 750000000 | AB48: 62500000 | AG48: 0 | AH48: 0 | AI48: 0 | AJ48: 0 | AK48: 0 | AL48: 0
A49: 00000312010900000000 | B49: MANTENIMIENTO Y REPARACIONES | C49: 70962890000 | D49: 12000000 | E49: -486561346 | F49: 70476328654 | H49: 70476328654 | I49: 1850730517 | J49: 19568655936 | K49: 0.2776628169 | L49: 6856316224 | M49: 347314899 | N49: 400171320 | O49: 0.005678095435 | P49: 0.05836535348 | Q49: 00000312010900000000 | R49: MANTENIMIENTO Y REPARACIONES | S49: 70962890000 | T49: -237790220 | U49: -237790220 | V49: 70725099780 | X49: 70725099780 | Y49: 14423791024 | Z49: 14423791024 | AA49: 0.2039416143 | AB49: 754679907 | AC49: 10617764 | AD49: 10617764 | AE49: 0.0001501272396 | AF49: 0.01406922843 | AG49: -248771126 | AH49: -260771126 | AI49: 5144864912 | AJ49: 3294134395 | AK49: 389553556 | AL49: 42238657
A50: 00000312011000000000 | B50: COMBUSTIBLES, LUBRICANTES Y LLANTAS | C50: 5152897000 | D50: 0 | E50: 0 | F50: 5152897000 | H50: 5152897000 | J50: 33998040 | K50: 0.006597849714 | L50: 973326 | Q50: 00000312011000000000 | R50: COMBUSTIBLES, LUBRICANTES Y LLANTAS | S50: 5152897000 | T50: 0 | U50: 0 | V50: 5152897000 | X50: 5152897000 | Y50: 33998040 | Z50: 33998040 | AA50: 0.006597849714 | AB50: 3025150 | AG50: 0 | AH50: 0 | AI50: 0 | AJ50: 0 | AK50: 0 | AL50: 0
A51: 00000312011100000000 | B51: SEGUROS | C51: 23885466000 | D51: 0 | E51: 263999976 | F51: 24149465976 | H51: 24149465976 | I51: 910200074 | J51: 21907474841 | K51: 0.9071618752 | L51: 22070026104 | M51: 2213250877 | N51: 15607296839 | O51: 0.6462791705 | P51: 0.7071716529 | Q51: 00000312011100000000 | R51: SEGUROS | S51: 23885466000 | T51: 0 | U51: 0 | V51: 23885466000 | X51: 23885466000 | Y51: 20994817460 | Z51: 20994817460 | AA51: 0.8789787673 | AB51: 21673500346 | AC51: 11040406218 | AD51: 11040406218 | AE51: 0.4622227684 | AF51: 0.5093965461 | AG51: 263999976 | AH51: 263999976 | AI51: 912657381 | AJ51: 2457307 | AK51: 4566890621 | AL51: 2353639744
A52: 00000312011200000000 | B52: SUMINISTRO DE ALIMENTOS | C52: 3945800000 | D52: 0 | E52: 358399035 | F52: 4304199035 | H52: 4304199035 | I52: 0 | J52: 211230635 | K52: 0.04907548031 | L52: 48399035 | M52: 31196215 | N52: 31196215 | O52: 0.007247856046 | P52: 0.644562748 | Q52: 00000312011200000000 | R52: SUMINISTRO DE ALIMENTOS | S52: 3945800000 | T52: 310000000 | U52: 310000000 | V52: 4255800000 | X52: 4255800000 | AG52: 48399035 | AH52: 48399035 | AI52: 211230635 | AJ52: 211230635 | AK52: 31196215 | AL52: 0
A53: 00000312011300000000 | B53: SERVICIOS PUBLICOS | C53: 5773285000 | D53: 0 | E53: 0 | F53: 5773285000 | H53: 5773285000 | I53: 136677629 | J53: 4662866189 | K53: 0.807662568 | L53: 757228756 | M53: 357311770 | N53: 590960670 | O53: 0.1023612501 | P53: 0.7804255521 | Q53: 00000312011300000000 | R53: SERVICIOS PUBLICOS | S53: 5773285000 | T53: 0 | U53: 0 | V53: 5773285000 | X53: 5773285000 | Y53: 1292055095 | Z53: 1292055095 | AA53: 0.2237989455 | AB53: 510706922 | AC53: 129494595 | AD53: 129494595 | AE53: 0.02242996751 | AF53: 0.2535595063 | AG53: 0 | AH53: 0 | AI53: 3370811094 | AJ53: 3234133465 | AK53: 461466075 | AL53: 104154305
A54: 00000312011400000000 | B54: CAPACITACION | C54: 885200000 | D54: -737717 | E54: -737717 | F54: 884462283 | H54: 884462283 | I54: 0 | J54: 151410050 | K54: 0.1711888148 | L54: 39262283 | Q54: 00000312011400000000 | R54: CAPACITACION | S54: 885200000 | V54: 885200000 | X54: 885200000 | Y54: 151410050 | Z54: 151410050 | AA54: 0.1710461478 | AG54: -737717 | AH54: 0 | AI54: 0 | AJ54: 0 | AK54: 0 | AL54: 0
A55: 00000312011500000000 | B55: BIENESTAR E INCENTIVOS | C55: 4594000000 | F55: 4594000000 | H55: 4594000000 | Q55: 00000312011500000000 | R55: BIENESTAR E INCENTIVOS | S55: 4594000000 | V55: 4594000000 | X55: 4594000000 | AG55: 0 | AH55: 0 | AI55: 0 | AJ55: 0 | AK55: 0 | AL55: 0
A56: 00000312011600000000 | B56: PROMOCION INSTITUCIONAL | C56: 3115000000 | F56: 3115000000 | H56: 3115000000 | I56: 12132552 | J56: 1106801700 | K56: 0.3553135474 | L56: 70374756 | M56: 450000 | N56: 450000 | O56: 0.0001444622793 | P56: 0.006394338333 | Q56: 00000312011600000000 | R56: PROMOCION INSTITUCIONAL | S56: 3115000000 | V56: 3115000000 | X56: 3115000000 | Y56: 1094219148 | Z56: 1094219148 | AA56: 0.3512742048 | AG56: 0 | AH56: 0 | AI56: 12582552 | AJ56: 450000 | AK56: 450000 | AL56: 0
A57: 00000312011700000000 | B57: IMPUESTOS, TASAS, CONTRIBUCIONES, DERECHOS Y MULTAS | C57: 299348017000 | D57: 737717 | E57: -25547092283 | F57: 273800924717 | H57: 273800924717 | I57: 11323560365 | J57: 36669830346 | K57: 0.1339288039 | L57: 41156718438 | M57: 11139018617 | N57: 23759764498 | O57: 0.08677751736 | P57: 0.57729978 | Q57: 00000312011700000000 | R57: IMPUESTOS, TASAS, CONTRIBUCIONES, DERECHOS Y MULTAS | S57: 299348017000 | T57: -28162403139 | U57: -28162403139 | V57: 271185613861 | X57: 271185613861 | Y57: 15612460731 | Z57: 15612460731 | AA57: 0.05757112447 | AB57: 3813797198 | AC57: 2606366802 | AD57: 2606366802 | AE57: 0.009611006885 | AF57: 0.6834046664 | AG57: 2615310856 | AH57: 2614573139 | AI57: 21057369615 | AJ57: 9733809250 | AK57: 21153397696 | AL57: 10014379079
A58: 00000312011800000000 | B58: INTERESES Y COMISIONES | C58: 1843664000 | D58: 0 | E58: 65180000 | F58: 1908844000 | H58: 1908844000 | I58: 0 | J58: 1483664000 | K58: 0.7772578587 | L58: 127100000 | M58: 522053 | N58: 866871 | O58: 0.0004541340204 | P58: 0.006820385523 | Q58: 00000312011800000000 | R58: INTERESES Y COMISIONES | S58: 1843664000 | T58: 0 | U58: 0 | V58: 1843664000 | X58: 1843664000 | Y58: 1483664000 | Z58: 1483664000 | AA58: 0.8047366548 | AB58: 700000 | AC58: 344818 | AD58: 344818 | AE58: 0.000187028656 | AF58: 0.4925971429 | AG58: 65180000 | AH58: 65180000 | AI58: 0 | AJ58: 0 | AK58: 522053 | AL58: 0
A59: 00000312011900000000 | B59: SALUD OCUPACIONAL | C59: 764775000 | F59: 764775000 | H59: 764775000 | I59: 51505611 | J59: 51505611 | K59: 0.06734740414 | Q59: 00000312011900000000 | R59: SALUD OCUPACIONAL | S59: 764775000 | V59: 764775000 | X59: 764775000 | AG59: 0 | AH59: 0 | AI59: 51505611 | AJ59: 0 | AK59: 0 | AL59: 0
A60: 00000312012000000000 | B60: PROGRAMAS Y CONVENIOS INSTITUCIONALES | C60: 142000000 | F60: 142000000 | H60: 142000000 | J60: 64157000 | K60: 0.4518098592 | L60: 64157000 | N60: 64157000 | O60: 0.4518098592 | P60: 1 | Q60: 00000312012000000000 | R60: PROGRAMAS Y CONVENIOS INSTITUCIONALES | S60: 142000000 | V60: 142000000 | X60: 142000000 | Y60: 64157000 | Z60: 64157000 | AA60: 0.4518098592 | AB60: 64157000 | AG60: 0 | AH60: 0 | AI60: 0 | AJ60: 0 | AK60: 64157000 | AL60: 64157000
A61: 00000312019900000000 | B61: OTROS GASTOS GENERALES | C61: 8245499000 | D61: 0 | E61: 653341784 | F61: 8898840784 | H61: 8898840784 | I61: -6823393 | J61: 2651095515 | K61: 0.2979147037 | L61: 730838683 | M61: 335834260 | N61: 350580260 | O61: 0.03939617176 | P61: 0.4796958182 | Q61: 00000312019900000000 | R61: OTROS GASTOS GENERALES | S61: 8245499000 | T61: -586490336 | U61: -586490336 | V61: 7659008664 | X61: 7659008664 | Y61: 2656378908 | Z61: 2656378908 | AA61: 0.3468306441 | AB61: 168839561 | AG61: 1239832120 | AH61: 1239832120 | AI61: -5283393 | AJ61: 1540000 | AK61: 350580260 | AL61: 14746000
A62: 313000000000000 | B62: TRANSFERENCIAS CORRIENTES | C62: 288946579000 | D62: 0 | E62: -1059133178 | F62: 287887445822 | H62: 287887445822 | I62: 19948177115 | J62: 108286978028 | K62: 0.3761434533 | L62: 59068277016 | M62: 14216265823 | N62: 43040575833 | O62: 0.1495048723 | P62: 0.7286580548 | Q62: 313000000000000 | R62: TRANSFERENCIAS CORRIENTES | S62: 288946579000 | T62: -1060405414 | U62: -1060405414 | V62: 287886173586 | X62: 287886173586 | Y62: 74307406938 | Z62: 74307406938 | AA62: 0.2581138441 | AB62: 23042818595 | AC62: 14305393268 | AD62: 14305393268 | AE62: 0.04969114386 | AF62: 0.6208178574 | AG62: 1272236 | AH62: 1272236 | AI62: 33979571090 | AJ62: 14031393975 | AK62: 28735182565 | AL62: 14518916742
A63: 313030000000000 | B63: TRANSFERENCIAS DE PREVISION Y SEGURIDAD | C63: 266335378000 | D63: 0 | E63: -1059133178 | F63: 265276244822 | H63: 265276244822 | I63: 13775122231 | J63: 102022730954 | K63: 0.3845905276 | L63: 58880477014 | M63: 14212829823 | N63: 42945947643 | O63: 0.1618914188 | P63: 0.7293749953 | Q63: 313030000000000 | R63: TRANSFERENCIAS DE PREVISION Y SEGURIDAD | S63: 266335378000 | T63: -1060405414 | U63: -1060405414 | V63: 265274972586 | X63: 265274972586 | Y63: 74231221448 | Z63: 74231221448 | AA63: 0.2798274587 | AB63: 22956885261 | AC63: 14229207778 | AD63: 14229207778 | AE63: 0.05363946564 | AF63: 0.6198230995 | AG63: 1272236 | AH63: 1272236 | AI63: 27791509506 | AJ63: 14016387275 | AK63: 28716739865 | AL63: 14503910042
A64: 00000313030100000000 | B64: PENSIONES Y JUBILACIONES | C64: 190660263000 | D64: 0 | E64: -536848830 | F64: 190123414170 | H64: 190123414170 | I64: 12959324555 | J64: 39043816498 | K64: 0.2053603796 | L64: 47665065549 | M64: 12959324555 | N64: 39043816498 | O64: 0.2053603796 | P64: 0.8191285598 | Q64: 00000313030100000000 | R64: PENSIONES Y JUBILACIONES | S64: 190660263000 | T64: -536848830 | U64: -536848830 | V64: 190123414170 | X64: 190123414170 | Y64: 12921652929 | Z64: 12921652929 | AA64: 0.06796455337 | AB64: 15888355183 | AC64: 12921652929 | AD64: 12921652929 | AE64: 0.06796455337 | AF64: 0.8132782016 | AG64: 0 | AH64: 0 | AI64: 26122163569 | AJ64: 13162839014 | AK64: 26122163569 | AL64: 13162839014
A65: 00000313030200000000 | B65: CESANTIAS | C65: 14141377000 | D65: 0 | E65: -522284348 | F65: 13619092652 | H65: 13619092652 | I65: 671605976 | J65: 2736987886 | K65: 0.2009669775 | L65: 4314913327 | M65: 671605976 | N65: 2736987886 | O65: 0.2009669775 | P65: 0.6343088907 | Q65: 00000313030200000000 | R65: CESANTIAS | S65: 14141377000 | T65: -523556584 | U65: -523556584 | V65: 13617820416 | X65: 13617820416 | Y65: 1307554849 | Z65: 1307554849 | AA65: 0.09601792424 | AB65: 1971225360 | AC65: 1307554849 | AD65: 1307554849 | AE65: 0.09601792424 | AF65: 0.6633208336 | AG65: 1272236 | AH65: 1272236 | AI65: 1429433037 | AJ65: 757827061 | AK65: 1429433037 | AL65: 757827061
A66: 00000313030300000000 | B66: OTRAS TRANSFERENCIAS DE PREVISION Y SEGURIDAD SOCIAL | C66: 61533738000 | D66: 0 | E66: 0 | F66: 61533738000 | H66: 61533738000 | I66: 144191700 | J66: 60241926570 | K66: 0.9790064529 | L66: 6900498138 | M66: 581899292 | N66: 1165143259 | O66: 0.01893503136 | P66: 0.168849152 | Q66: 00000313030300000000 | R66: OTRAS TRANSFERENCIAS DE PREVISION Y SEGURIDAD SOCIAL | S66: 61533738000 | T66: 0 | U66: 0 | V66: 61533738000 | X66: 61533738000 | Y66: 60002013670 | Z66: 60002013670 | AA66: 0.975107569 | AB66: 5097304718 | AG66: 0 | AH66: 0 | AI66: 239912900 | AJ66: 95721200 | AK66: 1165143259 | AL66: 583243967
A67: 313040000000000 | B67: OTRAS TRANSFERENCIAS | C67: 22611201000 | F67: 22611201000 | H67: 22611201000 | I67: 6173054884 | J67: 6264247074 | K67: 0.2770417668 | L67: 187800002 | M67: 3436000 | N67: 94628190 | O67: 0.004185013879 | P67: 0.5038774707 | Q67: 313040000000000 | R67: OTRAS TRANSFERENCIAS | S67: 22611201000 | V67: 22611201000 | X67: 22611201000 | Y67: 76185490 | Z67: 76185490 | AA67: 0.003369369455 | AB67: 85933334 | AC67: 76185490 | AD67: 76185490 | AE67: 0.003369369455 | AF67: 0.8865650435 | AG67: 0 | AH67: 0 | AI67: 6188061584 | AJ67: 15006700 | AK67: 18442700 | AL67: 15006700
A68: 00000313040200000000 | B68: PRESTAMOS DE BIENESTAR | C68: 611201000 | F68: 611201000 | H68: 611201000 | I68: 3436000 | J68: 94628190 | K68: 0.154823356 | L68: 187800002 | M68: 3436000 | N68: 94628190 | O68: 0.154823356 | P68: 0.5038774707 | Q68: 00000313040200000000 | R68: PRESTAMOS DE BIENESTAR | S68: 611201000 | V68: 611201000 | X68: 611201000 | Y68: 76185490 | Z68: 76185490 | AA68: 0.1246488307 | AB68: 85933334 | AC68: 76185490 | AD68: 76185490 | AE68: 0.1246488307 | AF68: 0.8865650435 | AG68: 0 | AH68: 0 | AI68: 18442700 | AJ68: 15006700 | AK68: 18442700 | AL68: 15006700
A69: 00000313040300000000 | B69: PRESTAMOS FONDO DE VIVIENDA | C69: 22000000000 | F69: 22000000000 | H69: 22000000000 | I69: 6169618884 | J69: 6169618884 | K69: 0.280437222 | Q69: 00000313040300000000 | R69: PRESTAMOS FONDO DE VIVIENDA | S69: 22000000000 | V69: 22000000000 | X69: 22000000000 | AG69: 0 | AH69: 0 | AI69: 6169618884 | AJ69: 0 | AK69: 0 | AL69: 0
A70: 314000000000000 | B70: CUENTAS POR PAGAR | C70: 116559783000 | D70: 0 | E70: 26640984818 | F70: 143200767818 | H70: 143200767818 | I70: -62495721 | J70: 142371866674 | K70: 0.9942116152 | L70: 78818078663 | M70: 18018236905 | N70: 55651368086 | O70: 0.3886247884 | P70: 0.7060736449 | Q70: 314000000000000 | R70: CUENTAS POR PAGAR | S70: 116559783000 | T70: 26640984818 | U70: 26640984818 | V70: 143200767818 | X70: 143200767818 | Y70: 142961063285 | Z70: 142961063285 | AA70: 0.9983260946 | AB70: 44971851165 | AC70: 17823386263 | AD70: 17823386263 | AE70: 0.1244643205 | AF70: 0.3963231622 | AG70: 0 | AH70: 0 | AI70: -589196611 | AJ70: -526700890 | AK70: 37827981823 | AL70: 19809744918
A71: 00000314000000000000 | B71: CUENTAS POR PAGAR | C71: 116559783000 | D71: 0 | E71: 26640984818 | F71: 143200767818 | H71: 143200767818 | I71: -62495721 | J71: 142371866674 | K71: 0.9942116152 | L71: 78818078663 | M71: 18018236905 | N71: 55651368086 | O71: 0.3886247884 | P71: 0.7060736449 | Q71: 00000314000000000000 | R71: CUENTAS POR PAGAR | S71: 116559783000 | T71: 26640984818 | U71: 26640984818 | V71: 143200767818 | X71: 143200767818 | Y71: 142961063285 | Z71: 142961063285 | AA71: 0.9983260946 | AB71: 44971851165 | AC71: 17823386263 | AD71: 17823386263 | AE71: 0.1244643205 | AF71: 0.3963231622 | AG71: 0 | AH71: 0 | AI71: -589196611 | AJ71: -526700890 | AK71: 37827981823 | AL71: 19809744918
A72: 320000000000000 | B72: GASTOS DE OPERACIÓN | C72: 320996098000 | D72: 0 | E72: 23210171796 | F72: 344206269796 | H72: 344206269796 | I72: -5953271 | J72: 246925080138 | K72: 0.7173753119 | L72: 93591858844 | M72: 19016041020 | N72: 64668967441 | O72: 0.1878785284 | P72: 0.6909678709 | Q72: 320000000000000 | R72: GASTOS DE OPERACIÓN | S72: 320996098000 | T72: 0 | U72: 0 | V72: 320996098000 | X72: 320996098000 | Y72: 240834217349 | Z72: 240834217349 | AA72: 0.7502714795 | AB72: 33037249612 | AC72: 17487795633 | AD72: 17487795633 | AE72: 0.05447977636 | AF72: 0.5293356995 | AG72: 23210171796 | AH72: 23210171796 | AI72: 6090862789 | AJ72: 6096816060 | AK72: 47181171808 | AL72: 28165130788
A73: 321000000000000 | B73: GASTOS DE COMERCIALIZACION | C73: 121536854000 | D73: 0 | E73: 28464959480 | F73: 150001813480 | H73: 150001813480 | I73: 593175 | J73: 77517125564 | K73: 0.5167745894 | L73: 25190166878 | M73: 1049940892 | N73: 15800763429 | O73: 0.1053371493 | P73: 0.6272591804 | Q73: 321000000000000 | R73: GASTOS DE COMERCIALIZACION | S73: 121536854000 | T73: 15254787684 | U73: 15254787684 | V73: 136791641684 | X73: 136791641684 | Y73: 76242247276 | Z73: 76242247276 | AA73: 0.557360423 | AB73: 504475092 | AG73: =F73-V73 -> 13210171796 | AH73: =AG73-D73 -> 13210171796 | AI73: =J73-Z73 -> 1274878288 | AJ73: =AI73-I73 -> 1274285113 | AK73: =N73-AD73 -> 15800763429 | AL73: =AK73-M73 -> 14750822537
A74: 321010000000000 | B74: COMPRA DE BIENES PARA LA VENTA | C74: 14000000000 | D74: 0 | E74: 0 | F74: 14000000000 | H74: 14000000000 | J74: 13999992223 | K74: 0.9999994445 | L74: 0 | Q74: 321010000000000 | R74: COMPRA DE BIENES PARA LA VENTA | S74: 14000000000 | T74: 0 | U74: 0 | V74: 14000000000 | X74: 14000000000 | Y74: 13999992223 | Z74: 13999992223 | AA74: 0.9999994445 | AB74: 0 | AG74: 0 | AH74: 0 | AI74: 0 | AJ74: 0 | AK74: 0 | AL74: 0
A75: 00000321010100000000 | B75: MEDIDORES | C75: 14000000000 | D75: 0 | E75: 0 | F75: 14000000000 | H75: 14000000000 | J75: 13999992223 | K75: 0.9999994445 | L75: 0 | Q75: 00000321010100000000 | R75: MEDIDORES | S75: 14000000000 | T75: 0 | U75: 0 | V75: 14000000000 | X75: 14000000000 | Y75: 13999992223 | Z75: 13999992223 | AA75: 0.9999994445 | AB75: 0 | AG75: 0 | AH75: 0 | AI75: 0 | AJ75: 0 | AK75: 0 | AL75: 0
A76: 321020000000000 | B76: COMPRA DE SERVICIOS PARA LA VENTA | C76: 12817034000 | D76: 0 | E76: 20254171796 | F76: 33071205796 | H76: 33071205796 | I76: 0 | J76: 28124373051 | K76: 0.8504187366 | L76: 19887768152 | N76: 13966026866 | O76: 0.4223017132 | P76: 0.7022420394 | Q76: 321020000000000 | R76: COMPRA DE SERVICIOS PARA LA VENTA | S76: 12817034000 | T76: 17301135099 | U76: 17301135099 | V76: 30118169099 | X76: 30118169099 | Y76: 26850301362 | Z76: 26850301362 | AA76: 0.8914984597 | AB76: 0 | AG76: 2953036697 | AH76: 2953036697 | AI76: 1274071689 | AJ76: 1274071689 | AK76: 13966026866 | AL76: 13966026866
A77: 00000321020100000000 | B77: GESTION COMERCIAL | C77: 12817034000 | D77: 0 | E77: 450000000 | F77: 13267034000 | H77: 13267034000 | I77: 0 | J77: 9862267757 | K77: 0.7433664342 | L77: 83596356 | Q77: 00000321020100000000 | R77: GESTION COMERCIAL | S77: 12817034000 | T77: 0 | U77: 0 | V77: 12817034000 | X77: 12817034000 | Y77: 9671731782 | Z77: 9671731782 | AA77: 0.7545998382 | AB77: 0 | AG77: 450000000 | AH77: 450000000 | AI77: 190535975 | AJ77: 190535975 | AK77: 0 | AL77: 0
A78: 00000321020400000000 | B78: PROCESO ASEO | D78: 0 | E78: 19804171796 | F78: 19804171796 | H78: 19804171796 | I78: 0 | J78: 18262105294 | K78: 0.9221342595 | L78: 19804171796 | N78: 13966026866 | O78: 0.7052063075 | P78: 0.7052063075 | Q78: 00000321020400000000 | R78: PROCESO ASEO | T78: 17301135099 | U78: 17301135099 | V78: 17301135099 | X78: 17301135099 | Y78: 17178569580 | Z78: 17178569580 | AA78: 0.9929157527 | AG78: 2503036697 | AH78: 2503036697 | AI78: 1083535714 | AJ78: 1083535714 | AK78: 13966026866 | AL78: 13966026866
A79: 321030000000000 | B79: OTROS GASTOS DE COMERCIALIZACION | C79: 94719820000 | D79: 0 | E79: 8210787684 | F79: 102930607684 | H79: 102930607684 | I79: 593175 | J79: 35392760290 | K79: 0.3438506882 | L79: 5302398726 | M79: 1049940892 | N79: 1834736563 | O79: 0.01782498524 | P79: 0.3460201048 | Q79: 321030000000000 | R79: OTROS GASTOS DE COMERCIALIZACION | S79: 94719820000 | T79: -2046347415 | U79: -2046347415 | V79: 92673472585 | X79: 92673472585 | Y79: 35391953691 | Z79: 35391953691 | AA79: 0.3818995091 | AB79: 504475092 | AG79: 10257135099 | AH79: 10257135099 | AI79: 806599 | AJ79: 213424 | AK79: 1834736563 | AL79: 784795671
A80: 00000321030100000000 | B80: MANTENIMIENTO Y MATERIALES OPERACION INF AC Y AL | C80: 88789820000 | D80: 0 | E80: 2956000000 | F80: 91745820000 | H80: 91745820000 | I80: 593175 | J80: 35392760290 | K80: 0.3857697309 | L80: 5277398726 | M80: 1049940892 | N80: 1834736563 | O80: 0.01999803983 | P80: 0.3476592652 | Q80: 00000321030100000000 | R80: MANTENIMIENTO Y MATERIALES OPERACION INF AC Y AL | S80: 88789820000 | T80: -7301135099 | U80: -7301135099 | V80: 81488684901 | X80: 81488684901 | Y80: 35391953691 | Z80: 35391953691 | AA80: 0.4343173992 | AB80: 491975092 | AG80: 10257135099 | AH80: 10257135099 | AI80: 806599 | AJ80: 213424 | AK80: 1834736563 | AL80: 784795671
A81: 00000321030200000000 | B81: COMERCIALIZACION DE ENERGIA - CHSA | C81: 150000000 | F81: 150000000 | H81: 150000000 | L81: 25000000 | Q81: 00000321030200000000 | R81: COMERCIALIZACION DE ENERGIA - CHSA | S81: 150000000 | V81: 150000000 | X81: 150000000 | AB81: 12500000 | AG81: 0 | AH81: 0 | AI81: 0 | AJ81: 0 | AK81: 0 | AL81: 0
A82: 00000321030400000000 | B82: FONDO ATENCION DE EMERGENCIAS | C82: 4280000000 | D82: 0 | E82: -97707731 | F82: 4182292269 | H82: 4182292269 | Q82: 00000321030400000000 | R82: FONDO ATENCION DE EMERGENCIAS | S82: 4280000000 | T82: -97707731 | U82: -97707731 | V82: 4182292269 | X82: 4182292269 | AG82: 0 | AH82: 0 | AI82: 0 | AJ82: 0 | AK82: 0 | AL82: 0
A83: 00000321030600000000 | B83: FONDO OBLIGACIONES CONTINGENTES | C83: 1500000000 | D83: 0 | E83: 5352495415 | F83: 6852495415 | H83: 6852495415 | Q83: 00000321030600000000 | R83: FONDO OBLIGACIONES CONTINGENTES | S83: 1500000000 | T83: 5352495415 | U83: 5352495415 | V83: 6852495415 | X83: 6852495415 | AG83: 0 | AH83: 0 | AI83: 0 | AJ83: 0 | AK83: 0 | AL83: 0
A84: 322000000000000 | B84: GASTOS DE PRODUCCION | C84: 99780483000 | D84: 0 | E84: -5352495415 | F84: 94427987585 | H84: 94427987585 | I84: 0 | J84: 70644464932 | K84: 0.748130578 | L84: 9773530978 | M84: 5822707728 | N84: 8418683461 | O84: 0.08915453645 | P84: 0.8613758405 | Q84: 322000000000000 | R84: GASTOS DE PRODUCCION | S84: 99780483000 | T84: -15352495415 | U84: -15352495415 | V84: 84427987585 | X84: 84427987585 | Y84: 65815501342 | Z84: 65815501342 | AA84: 0.7795460158 | AB84: 5312849691 | AG84: 10000000000 | AH84: 10000000000 | AI84: 4828963590 | AJ84: 4828963590 | AK84: 8418683461 | AL84: 2595975733
A85: 322010000000000 | B85: INDUSTRIAL | C85: 99780483000 | D85: 0 | E85: -5352495415 | F85: 94427987585 | H85: 94427987585 | I85: 0 | J85: 70644464932 | K85: 0.748130578 | L85: 9773530978 | M85: 5822707728 | N85: 8418683461 | O85: 0.08915453645 | P85: 0.8613758405 | Q85: 322010000000000 | R85: INDUSTRIAL | S85: 99780483000 | T85: -15352495415 | U85: -15352495415 | V85: 84427987585 | X85: 84427987585 | Y85: 65815501342 | Z85: 65815501342 | AA85: 0.7795460158 | AB85: 5312849691 | AG85: 10000000000 | AH85: 10000000000 | AI85: 4828963590 | AJ85: 4828963590 | AK85: 8418683461 | AL85: 2595975733
A86: 00000322010200000000 | B86: PRODUCTOS QUIMICOS | C86: 18831920000 | D86: 0 | E86: 5791793667 | F86: 24623713667 | H86: 24623713667 | I86: 0 | J86: 16143080086 | K86: 0.6555907977 | L86: 1888336714 | M86: 401875130 | N86: 983538373 | O86: 0.03994273107 | P86: 0.5208490444 | Q86: 00000322010200000000 | R86: PRODUCTOS QUIMICOS | S86: 18831920000 | T86: 5791793667 | U86: 5791793667 | V86: 24623713667 | X86: 24623713667 | Y86: 13449675736 | Z86: 13449675736 | AA86: 0.5462082575 | AB86: 800992243 | AG86: 0 | AH86: 0 | AI86: 2693404350 | AJ86: 2693404350 | AK86: 983538373 | AL86: 581663243
A87: 00000322010300000000 | B87: ENERGIA PARA BOMBEO | C87: 54142290000 | D87: 0 | E87: 0 | F87: 54142290000 | H87: 54142290000 | I87: 0 | J87: 54142290000 | K87: 1 | L87: 7511857448 | M87: 5420832598 | N87: 7076050242 | O87: 0.1306935898 | P87: 0.9419840953 | Q87: 00000322010300000000 | R87: ENERGIA PARA BOMBEO | S87: 54142290000 | T87: 0 | U87: 0 | V87: 54142290000 | X87: 54142290000 | Y87: 52006730760 | Z87: 52006730760 | AA87: 0.9605565402 | AB87: 4511857448 | AG87: 0 | AH87: 0 | AI87: 2135559240 | AJ87: 2135559240 | AK87: 7076050242 | AL87: 1655217644
A88: 00000322010400000000 | B88: TASA POR USO DE AGUA | C88: 4306273000 | F88: 4306273000 | H88: 4306273000 | J88: 359094846 | K88: 0.08338877865 | L88: 373336816 | N88: 359094846 | O88: 0.08338877865 | P88: 0.9618522219 | Q88: 00000322010400000000 | R88: TASA POR USO DE AGUA | S88: 4306273000 | V88: 4306273000 | X88: 4306273000 | Y88: 359094846 | Z88: 359094846 | AA88: 0.08338877865 | AG88: 0 | AH88: 0 | AI88: 0 | AJ88: 0 | AK88: 359094846 | AL88: 359094846
A89: 00000322011000000000 | B89: ASISTENCIA OPERACIÓN | C89: 22500000000 | D89: 0 | E89: -11144289082 | F89: 11355710918 | H89: 11355710918 | L89: 0 | Q89: 00000322011000000000 | R89: ASISTENCIA OPERACIÓN | S89: 22500000000 | T89: -21144289082 | U89: -21144289082 | V89: 1355710918 | X89: 1355710918 | AB89: 0 | AG89: 10000000000 | AH89: 10000000000 | AI89: 0 | AJ89: 0 | AK89: 0 | AL89: 0
A90: 324000000000000 | B90: CUENTAS POR PAGAR | C90: 99678761000 | D90: 0 | E90: 97707731 | F90: 99776468731 | H90: 99776468731 | I90: -6546446 | J90: 98763489642 | K90: 0.9898475151 | L90: 58628160988 | M90: 12143392400 | N90: 40449520551 | O90: 0.4054014044 | P90: 0.6899332994 | Q90: 324000000000000 | R90: CUENTAS POR PAGAR | S90: 99678761000 | T90: 97707731 | U90: 97707731 | V90: 99776468731 | X90: 99776468731 | Y90: 98776468731 | Z90: 98776468731 | AA90: 0.9899775968 | AB90: 27219924829 | AC90: 17487795633 | AD90: 17487795633 | AE90: 0.175269739 | AF90: 0.6424630392 | AG90: 0 | AH90: 0 | AI90: -12979089 | AJ90: -6432643 | AK90: 22961724918 | AL90: 10818332518
A91: 00000324000000000000 | B91: CUENTAS POR PAGAR | C91: 99678761000 | D91: 0 | E91: 97707731 | F91: 99776468731 | H91: 99776468731 | I91: -6546446 | J91: 98763489642 | K91: 0.9898475151 | L91: 58628160988 | M91: 12143392400 | N91: 40449520551 | O91: 0.4054014044 | P91: 0.6899332994 | Q91: 00000324000000000000 | R91: CUENTAS POR PAGAR | S91: 99678761000 | T91: 97707731 | U91: 97707731 | V91: 99776468731 | X91: 99776468731 | Y91: 98776468731 | Z91: 98776468731 | AA91: 0.9899775968 | AB91: 27219924829 | AC91: 17487795633 | AD91: 17487795633 | AE91: 0.175269739 | AF91: 0.6424630392 | AG91: 0 | AH91: 0 | AI91: -12979089 | AJ91: -6432643 | AK91: 22961724918 | AL91: 10818332518
A92: 330000000000000 | B92: SERVICIO DE LA DEUDA | C92: 94315746000 | D92: 0 | E92: 0 | F92: 94315746000 | H92: 94315746000 | I92: 348374359 | J92: 56892161541 | K92: 0.6032095801 | L92: 24243852427 | M92: 353268058 | N92: 23043726957 | O92: 0.2443253426 | P92: 0.9504977407 | Q92: 330000000000000 | R92: SERVICIO DE LA DEUDA | S92: 94315746000 | T92: 0 | U92: 0 | V92: 94315746000 | X92: 94315746000 | Y92: 56534716182 | Z92: 56534716182 | AA92: 0.5994197001 | AB92: 271822809 | AC92: 10693059 | AD92: 10693059 | AE92: 0.0001133751198 | AF92: 0.03933834338 | AG92: 0 | AH92: 0 | AI92: 357445359 | AJ92: 9071000 | AK92: 23033033898 | AL92: 22679765840
A93: 331000000000000 | B93: DEUDA INTERNA | C93: 78014332000 | F93: 78014332000 | H93: 78014332000 | J93: 56472715561 | K93: 0.7238761663 | L93: 23428384000 | N93: 22665801139 | O93: 0.2905338104 | P93: 0.9674504711 | Q93: 331000000000000 | R93: DEUDA INTERNA | S93: 78014332000 | V93: 78014332000 | X93: 78014332000 | Y93: 56472715561 | Z93: 56472715561 | AA93: 0.7238761663 | AB93: 0 | AG93: 0 | AH93: 0 | AI93: 0 | AJ93: 0 | AK93: 22665801139 | AL93: 22665801139
A94: 00000331010000000000 | B94: AMORTIZACION CAPITAL | C94: 31446890000 | F94: 31446890000 | H94: 31446890000 | J94: 31446888900 | K94: 0.999999965 | L94: 13701445000 | N94: 13701444444 | O94: 0.4357010962 | P94: 0.9999999594 | Q94: 00000331010000000000 | R94: AMORTIZACION CAPITAL | S94: 31446890000 | V94: 31446890000 | X94: 31446890000 | Y94: 31446888900 | Z94: 31446888900 | AA94: 0.999999965 | AG94: 0 | AH94: 0 | AI94: 0 | AJ94: 0 | AK94: 13701444444 | AL94: 13701444444
A95: 00000331020000000000 | B95: INTERESES | C95: 44449342000 | F95: 44449342000 | H95: 44449342000 | J95: 25025826661 | K95: 0.563019058 | L95: 9726939000 | N95: 8964356695 | O95: 0.201675802 | P95: 0.9216009985 | Q95: 00000331020000000000 | R95: INTERESES | S95: 44449342000 | V95: 44449342000 | X95: 44449342000 | Y95: 25025826661 | Z95: 25025826661 | AA95: 0.563019058 | AG95: 0 | AH95: 0 | AI95: 0 | AJ95: 0 | AK95: 8964356695 | AL95: 8964356695
A96: 00000331030000000000 | B96: COMISIONES Y OTROS | C96: 2118100000 | F96: 2118100000 | H96: 2118100000 | L96: 0 | Q96: 00000331030000000000 | R96: COMISIONES Y OTROS | S96: 2118100000 | V96: 2118100000 | X96: 2118100000 | AB96: 0 | AG96: 0 | AH96: 0 | AI96: 0 | AJ96: 0 | AK96: 0 | AL96: 0
A97: 332000000000000 | B97: DEUDA EXTERNA | C97: 200000000 | F97: 200000000 | H97: 200000000 | Q97: 332000000000000 | R97: DEUDA EXTERNA | S97: 200000000 | V97: 200000000 | X97: 200000000 | AG97: 0 | AH97: 0 | AI97: 0 | AJ97: 0 | AK97: 0 | AL97: 0
A98: 00000332030000000000 | B98: COMISIONES Y OTROS | C98: 200000000 | F98: 200000000 | H98: 200000000 | Q98: 00000332030000000000 | R98: COMISIONES Y OTROS | S98: 200000000 | V98: 200000000 | X98: 200000000 | AG98: 0 | AH98: 0 | AI98: 0 | AJ98: 0 | AK98: 0 | AL98: 0
A99: 333000000000000 | B99: BONOS PENSIONALES | C99: 3203150000 | F99: 3203150000 | H99: 3203150000 | I99: 348374359 | J99: 363517359 | K99: 0.1134874605 | L99: 800787318 | M99: 348374359 | N99: 363517359 | O99: 0.1134874605 | P99: 0.453949945 | Q99: 333000000000000 | R99: BONOS PENSIONALES | S99: 3203150000 | V99: 3203150000 | X99: 3203150000 | Y99: 6072000 | Z99: 6072000 | AA99: 0.001895633985 | AB99: 266929106 | AC99: 6072000 | AD99: 6072000 | AE99: 0.001895633985 | AF99: 0.02274761299 | AG99: 0 | AH99: 0 | AI99: 357445359 | AJ99: 9071000 | AK99: 357445359 | AL99: 9071000
A100: 00000333010000000000 | B100: BONOS PENSIONALES | C100: 3203150000 | F100: 3203150000 | H100: 3203150000 | I100: 348374359 | J100: 363517359 | K100: 0.1134874605 | L100: 800787318 | M100: 348374359 | N100: 363517359 | O100: 0.1134874605 | P100: 0.453949945 | Q100: 00000333010000000000 | R100: BONOS PENSIONALES | S100: 3203150000 | V100: 3203150000 | X100: 3203150000 | Y100: 6072000 | Z100: 6072000 | AA100: 0.001895633985 | AB100: 266929106 | AC100: 6072000 | AD100: 6072000 | AE100: 0.001895633985 | AF100: 0.02274761299 | AG100: 0 | AH100: 0 | AI100: 357445359 | AJ100: 9071000 | AK100: 357445359 | AL100: 9071000
A101: 334000000000000 | B101: CUENTAS POR PAGAR | C101: 55929000 | D101: 0 | E101: 0 | F101: 55929000 | H101: 55929000 | I101: 0 | J101: 55928621 | K101: 0.9999932236 | L101: 14681109 | M101: 4893699 | N101: 14408459 | O101: 0.2576205368 | P101: 0.9814285147 | Q101: 334000000000000 | R101: CUENTAS POR PAGAR | S101: 55929000 | T101: 0 | U101: 0 | V101: 55929000 | X101: 55929000 | Y101: 55928621 | Z101: 55928621 | AA101: 0.9999932236 | AB101: 4893703 | AC101: 4621059 | AD101: 4621059 | AE101: 0.08262366572 | AF101: 0.9442867702 | AG101: 0 | AH101: 0 | AI101: 0 | AJ101: 0 | AK101: 9787400 | AL101: 4893701
A102: 00000334000000000000 | B102: CUENTAS POR PAGAR | C102: 55929000 | D102: 0 | E102: 0 | F102: 55929000 | H102: 55929000 | I102: 0 | J102: 55928621 | K102: 0.9999932236 | L102: 14681109 | M102: 4893699 | N102: 14408459 | O102: 0.2576205368 | P102: 0.9814285147 | Q102: 00000334000000000000 | R102: CUENTAS POR PAGAR | S102: 55929000 | T102: 0 | U102: 0 | V102: 55929000 | X102: 55929000 | Y102: 55928621 | Z102: 55928621 | AA102: 0.9999932236 | AB102: 4893703 | AC102: 4621059 | AD102: 4621059 | AE102: 0.08262366572 | AF102: 0.9442867702 | AG102: 0 | AH102: 0 | AI102: 0 | AJ102: 0 | AK102: 9787400 | AL102: 4893701
A103: 338000000000000 | B103: FONDO OBLIGACIONES CONTINGENTES | C103: 12842335000 | F103: 12842335000 | H103: 12842335000 | Q103: 338000000000000 | R103: FONDO OBLIGACIONES CONTINGENTES | S103: 12842335000 | V103: 12842335000 | X103: 12842335000 | AG103: 0 | AH103: 0 | AI103: 0 | AJ103: 0 | AK103: 0 | AL103: 0
A104: 00000338000000000000 | B104: FONDO OBLIGACIONES CONTINGENTES | C104: 12842335000 | F104: 12842335000 | H104: 12842335000 | Q104: 00000338000000000000 | R104: FONDO OBLIGACIONES CONTINGENTES | S104: 12842335000 | V104: 12842335000 | X104: 12842335000 | AG104: 0 | AH104: 0 | AI104: 0 | AJ104: 0 | AK104: 0 | AL104: 0
A105: 340000000000000 | B105: GASTOS DE INVERSION | C105: 2086894365000 | D105: 60469497669 | E105: 74807097669 | F105: 2161701462669 | H105: 2161701462669 | I105: 410938675 | J105: 999937950161 | K105: 0.4625698633 | L105: 170364143843 | M105: 58362995395 | N105: 111884168286 | O105: 0.05175745598 | P105: 0.6567354243 | Q105: 340000000000000 | R105: GASTOS DE INVERSION | S105: 2086894365000 | T105: 0 | U105: 0 | V105: 2086894365000 | X105: 2086894365000 | Y105: 994467464246 | Z105: 994467464246 | AA105: 0.4765298526 | AB105: 153481138561 | AC105: 5003273871 | AD105: 5003273871 | AE105: 0.002397473468 | AF105: 0.03259862363 | AG105: 74807097669 | AH105: 14337600000 | AI105: 5470485915 | AJ105: 5059547240 | AK105: 106880894415 | AL105: 48517899020
A106: 341000000000000 | B106: DIRECTA | C106: 1115022286000 | D106: 95352244135 | E106: 6141341802 | F106: 1121163627802 | H106: 1121163627802 | I106: 468620630 | J106: 510440621159 | K106: 0.4552775425 | L106: 23295990818 | M106: 5683008387 | N106: 10874630629 | O106: 0.009699414394 | P106: 0.4668026663 | Q106: 341000000000000 | R106: DIRECTA | S106: 1115022286000 | T106: -14064202605 | U106: -14064202605 | V106: 1100958083395 | X106: 1100958083395 | Y106: 509406791208 | Z106: 509406791208 | AA106: 0.4626940834 | AB106: 107841157096 | AG106: 20205544407 | AH106: -75146699728 | AI106: 1033829951 | AJ106: 565209321 | AK106: 10874630629 | AL106: 5191622242
A107: 3411500000000000 | B107: BOGOTA MEJOR PARA TODOS | C107: 1115022286000 | D107: 95352244135 | E107: 6141341802 | F107: 1121163627802 | H107: 1121163627802 | I107: 468620630 | J107: 510440621159 | K107: 0.4552775425 | L107: 23295990818 | M107: 5683008387 | N107: 10874630629 | O107: 0.009699414394 | P107: 0.4668026663 | Q107: 3411500000000000 | R107: BOGOTA MEJOR PARA TODOS | S107: 1115022286000 | T107: -14064202605 | U107: -14064202605 | V107: 1100958083395 | X107: 1100958083395 | Y107: 509406791208 | Z107: 509406791208 | AA107: 0.4626940834 | AB107: 107841157096 | AG107: 20205544407 | AH107: -75146699728 | AI107: 1033829951 | AJ107: 565209321 | AK107: 10874630629 | AL107: 5191622242
A108: 3411502000000000 | B108: DEMOCRACIA URBANA | C108: 1021237719000 | D108: 92167338148 | E108: 8820243682 | F108: 1030057962682 | H108: 1030057962682 | I108: 237698481 | J108: 475763540547 | K108: 0.461880358 | L108: 20192309022 | M108: 5070151142 | N108: 10261773384 | O108: 0.009962326156 | P108: 0.508202077 | Q108: 3411502000000000 | R108: DEMOCRACIA URBANA | S108: 1021237719000 | T108: -14064202605 | U108: -14064202605 | V108: 1007173516395 | X108: 1007173516395 | Y108: 474961994907 | Z108: 474961994907 | AA108: 0.4715791144 | AB108: 106429578540 | AG108: 22884446287 | AH108: -69282891861 | AI108: 801545640 | AJ108: 563847159 | AK108: 10261773384 | AL108: 5191622242
A109: 3411502130000000 | B109: INFRAESTRUCTURA PARA EL DESARROLLO DEL HÁBITAT | C109: 1021237719000 | D109: 92167338148 | E109: 8820243682 | F109: 1030057962682 | H109: 1030057962682 | I109: 237698481 | J109: 475763540547 | K109: 0.461880358 | L109: 20192309022 | M109: 5070151142 | N109: 10261773384 | O109: 0.009962326156 | P109: 0.508202077 | Q109: 3411502130000000 | R109: INFRAESTRUCTURA PARA EL DESARROLLO DEL HÁBITAT | S109: 1021237719000 | T109: -14064202605 | U109: -14064202605 | V109: 1007173516395 | X109: 1007173516395 | Y109: 474961994907 | Z109: 474961994907 | AA109: 0.4715791144 | AB109: 106429578540 | AG109: 22884446287 | AH109: -69282891861 | AI109: 801545640 | AJ109: 563847159 | AK109: 10261773384 | AL109: 5191622242
A110: 3411502130019000 | B110: CONST.REDES LOCALES PARA EL SERVICIO ALCANTARILLADO PLUVIAL | C110: 39310965000 | D110: 0 | E110: -9472758929 | F110: 29838206071 | H110: 29838206071 | I110: 0 | J110: 16883409630 | K110: 0.5658319267 | L110: 2788670802 | M110: 34870614 | N110: 807870997 | O110: 0.02707505254 | P110: 0.2896975134 | Q110: 3411502130019000 | R110: CONST.REDES LOCALES PARA EL SERVICIO ALCANTARILLADO PLUVIAL | S110: 39310965000 | T110: 0 | U110: 0 | V110: 39310965000 | X110: 39310965000 | Y110: 16883409630 | Z110: 16883409630 | AA110: 0.4294834693 | AB110: 1620816806 | AG110: -9472758929 | AH110: -9472758929 | AI110: 0 | AJ110: 0 | AK110: 807870997 | AL110: 773000383
A111: 00003411502130019133 | B111: INFRAESTRUCTURA PARA EL DESARROLLO DEL HÁBITAT | C111: 39310965000 | D111: 0 | E111: -9472758929 | F111: 29838206071 | H111: 29838206071 | I111: 0 | J111: 16883409630 | K111: 0.5658319267 | L111: 2788670802 | M111: 34870614 | N111: 807870997 | O111: 0.02707505254 | P111: 0.2896975134 | Q111: 00003411502130019133 | R111: INFRAESTRUCTURA PARA EL DESARROLLO DEL HÁBITAT | S111: 39310965000 | T111: 0 | U111: 0 | V111: 39310965000 | X111: 39310965000 | Y111: 16883409630 | Z111: 16883409630 | AA111: 0.4294834693 | AB111: 1620816806 | AG111: -9472758929 | AH111: -9472758929 | AI111: 0 | AJ111: 0 | AK111: 807870997 | AL111: 773000383
A112: 3411502130020000 | B112: CONST.REDES LOCALES SERVICIO DE ALCANTARILLADO SANITARIO | C112: 27526040000 | D112: 0 | E112: -11209258364 | F112: 16316781636 | H112: 16316781636 | I112: 0 | J112: 6237906783 | K112: 0.3823000713 | L112: 472190925 | M112: 130332474 | N112: 130332474 | O112: 0.007987633647 | P112: 0.2760164736 | Q112: 3411502130020000 | R112: CONST.REDES LOCALES SERVICIO DE ALCANTARILLADO SANITARIO | S112: 27526040000 | T112: 0 | U112: 0 | V112: 27526040000 | X112: 27526040000 | Y112: 6237906783 | Z112: 6237906783 | AA112: 0.2266183869 | AB112: 529894182 | AG112: -11209258364 | AH112: -11209258364 | AI112: 0 | AJ112: 0 | AK112: 130332474 | AL112: 0
A113: 00003411502130020133 | B113: INFRAESTRUCTURA PARA EL DESARROLLO DEL HÁBITAT | C113: 27526040000 | D113: 0 | E113: -11209258364 | F113: 16316781636 | H113: 16316781636 | I113: 0 | J113: 6237906783 | K113: 0.3823000713 | L113: 472190925 | M113: 130332474 | N113: 130332474 | O113: 0.007987633647 | P113: 0.2760164736 | Q113: 00003411502130020133 | R113: INFRAESTRUCTURA PARA EL DESARROLLO DEL HÁBITAT | S113: 27526040000 | T113: 0 | U113: 0 | V113: 27526040000 | X113: 27526040000 | Y113: 6237906783 | Z113: 6237906783 | AA113: 0.2266183869 | AB113: 529894182 | AG113: -11209258364 | AH113: -11209258364 | AI113: 0 | AJ113: 0 | AK113: 130332474 | AL113: 0
A114: 3411502130021000 | B114: CONST.SISTEMA TRONCAL Y SECUNDARIO ALCANTARILLADO SANITARIO | C114: 14273960000 | D114: 406230504 | E114: -4838837 | F114: 14269121163 | H114: 14269121163 | I114: 0 | J114: 13862888797 | K114: 0.9715306667 | L114: 661068091 | M114: 661068091 | N114: 661068091 | O114: 0.04632857787 | P114: 1 | Q114: 3411502130021000 | R114: CONST.SISTEMA TRONCAL Y SECUNDARIO ALCANTARILLADO SANITARIO | S114: 14273960000 | T114: 0 | U114: 0 | V114: 14273960000 | X114: 14273960000 | Y114: 13862888797 | Z114: 13862888797 | AA114: 0.9712013202 | AB114: 0 | AG114: -4838837 | AH114: -411069341 | AI114: 0 | AJ114: 0 | AK114: 661068091 | AL114: 0
A115: 00003411502130021133 | B115: INFRAESTRUCTURA PARA EL DESARROLLO DEL HÁBITAT | C115: 14273960000 | D115: 406230504 | E115: -4838837 | F115: 14269121163 | H115: 14269121163 | I115: 0 | J115: 13862888797 | K115: 0.9715306667 | L115: 661068091 | M115: 661068091 | N115: 661068091 | O115: 0.04632857787 | P115: 1 | Q115: 00003411502130021133 | R115: INFRAESTRUCTURA PARA EL DESARROLLO DEL HÁBITAT | S115: 14273960000 | T115: 0 | U115: 0 | V115: 14273960000 | X115: 14273960000 | Y115: 13862888797 | Z115: 13862888797 | AA115: 0.9712013202 | AB115: 0 | AG115: -4838837 | AH115: -411069341 | AI115: 0 | AJ115: 0 | AK115: 661068091 | AL115: 0
A116: 3411502130022000 | B116: CONST.SISTEMA TRONCAL Y SECUNDARIO DE ALCANTARILLADO PLUVIAL | C116: 38391669000 | D116: 53456121 | E116: 36477894 | F116: 38428146894 | H116: 38428146894 | I116: 53456121 | J116: 32517791410 | K116: 0.8461972288 | L116: 199337503 | Q116: 3411502130022000 | R116: CONST.SISTEMA TRONCAL Y SECUNDARIO DE ALCANTARILLADO PLUVIAL | S116: 38391669000 | T116: 0 | U116: 0 | V116: 38391669000 | X116: 38391669000 | Y116: 32464335289 | Z116: 32464335289 | AA116: 0.8456088556 | AB116: 468030485 | AG116: 36477894 | AH116: -16978227 | AI116: 53456121 | AJ116: 0 | AK116: 0 | AL116: 0
A117: 00003411502130022133 | B117: INFRAESTRUCTURA PARA EL DESARROLLO DEL HÁBITAT | C117: 38391669000 | D117: 53456121 | E117: 36477894 | F117: 38428146894 | H117: 38428146894 | I117: 53456121 | J117: 32517791410 | K117: 0.8461972288 | L117: 199337503 | Q117: 00003411502130022133 | R117: INFRAESTRUCTURA PARA EL DESARROLLO DEL HÁBITAT | S117: 38391669000 | T117: 0 | U117: 0 | V117: 38391669000 | X117: 38391669000 | Y117: 32464335289 | Z117: 32464335289 | AA117: 0.8456088556 | AB117: 468030485 | AG117: 36477894 | AH117: -16978227 | AI117: 53456121 | AJ117: 0 | AK117: 0 | AL117: 0
A118: 3411502130050000 | B118: RENOV,REHAB.O REPOS. SIST.ABAST. Y DISTRIB. MATRIZ ACUEDUCTO | C118: 155544351000 | D118: 19439817 | E118: -11871231667 | F118: 143673119333 | H118: 143673119333 | I118: 0 | J118: 69217103573 | K118: 0.4817679458 | L118: 4125922346 | M118: 560056159 | N118: 1922502754 | O118: 0.0133810887 | P118: 0.4659570861 | Q118: 3411502130050000 | R118: RENOV,REHAB.O REPOS. SIST.ABAST. Y DISTRIB. MATRIZ ACUEDUCTO | S118: 155544351000 | T118: 0 | U118: 0 | V118: 155544351000 | X118: 155544351000 | Y118: 69065924314 | Z118: 69065924314 | AA118: 0.4440272107 | AB118: 17144989758 | AG118: -11871231667 | AH118: -11890671484 | AI118: 151179259 | AJ118: 151179259 | AK118: 1922502754 | AL118: 1362446595
A119: 00003411502130050133 | B119: INFRAESTRUCTURA PARA EL DESARROLLO DEL HÁBITAT | C119: 155544351000 | D119: 19439817 | E119: -11871231667 | F119: 143673119333 | H119: 143673119333 | I119: 0 | J119: 69217103573 | K119: 0.4817679458 | L119: 4125922346 | M119: 560056159 | N119: 1922502754 | O119: 0.0133810887 | P119: 0.4659570861 | Q119: 00003411502130050133 | R119: INFRAESTRUCTURA PARA EL DESARROLLO DEL HÁBITAT | S119: 155544351000 | T119: 0 | U119: 0 | V119: 155544351000 | X119: 155544351000 | Y119: 69065924314 | Z119: 69065924314 | AA119: 0.4440272107 | AB119: 17144989758 | AG119: -11871231667 | AH119: -11890671484 | AI119: 151179259 | AJ119: 151179259 | AK119: 1922502754 | AL119: 1362446595
A120: 3411502130051000 | B120: RENOV,REHAB.O REPOS.SIST.TRONCAL,SEC. Y LOCAL ALC.SANITARIO | C120: 147614727000 | D120: 29719098588 | E120: -1179254070 | F120: 146435472930 | H120: 146435472930 | I120: 0 | J120: 95996700974 | K120: 0.6555563283 | L120: 4166959423 | M120: 1464823857 | N120: 4123887276 | O120: 0.02816180529 | P120: 0.989663411 | Q120: 3411502130051000 | R120: RENOV,REHAB.O REPOS.SIST.TRONCAL,SEC. Y LOCAL ALC.SANITARIO | S120: 147614727000 | T120: 0 | U120: 0 | V120: 147614727000 | X120: 147614727000 | Y120: 95996700974 | Z120: 95996700974 | AA120: 0.6503192664 | AB120: 3682128331 | AG120: -1179254070 | AH120: -30898352658 | AI120: 0 | AJ120: 0 | AK120: 4123887276 | AL120: 2659063419
A121: 00003411502130051133 | B121: INFRAESTRUCTURA PARA EL DESARROLLO DEL HÁBITAT | C121: 147614727000 | D121: 29719098588 | E121: -1179254070 | F121: 146435472930 | H121: 146435472930 | I121: 0 | J121: 95996700974 | K121: 0.6555563283 | L121: 4166959423 | M121: 1464823857 | N121: 4123887276 | O121: 0.02816180529 | P121: 0.989663411 | Q121: 00003411502130051133 | R121: INFRAESTRUCTURA PARA EL DESARROLLO DEL HÁBITAT | S121: 147614727000 | T121: 0 | U121: 0 | V121: 147614727000 | X121: 147614727000 | Y121: 95996700974 | Z121: 95996700974 | AA121: 0.6503192664 | AB121: 3682128331 | AG121: -1179254070 | AH121: -30898352658 | AI121: 0 | AJ121: 0 | AK121: 4123887276 | AL121: 2659063419
A122: 3411502130052000 | B122: RENOV,REHAB.O REPOS.SIST.TRONCAL, SEC. Y LOCAL ALC. PLUVIAL | C122: 137242908000 | D122: 0 | E122: -18597139855 | F122: 118645768145 | H122: 118645768145 | I122: 0 | J122: 101231726352 | K122: 0.8532266084 | L122: 1495304510 | M122: 1196031452 | N122: 1196031452 | O122: 0.01008069205 | P122: 0.7998581185 | Q122: 3411502130052000 | R122: RENOV,REHAB.O REPOS.SIST.TRONCAL, SEC. Y LOCAL ALC. PLUVIAL | S122: 137242908000 | T122: -14064202605 | U122: -14064202605 | V122: 123178705395 | X122: 123178705395 | Y122: 101231726352 | Z122: 101231726352 | AA122: 0.8218281401 | AB122: 550272728 | AG122: -4532937250 | AH122: -4532937250 | AI122: 0 | AJ122: 0 | AK122: 1196031452 | AL122: 0
A123: 00003411502130052133 | B123: INFRAESTRUCTURA PARA EL DESARROLLO DEL HÁBITAT | C123: 137242908000 | D123: 0 | E123: -18597139855 | F123: 118645768145 | H123: 118645768145 | I123: 0 | J123: 101231726352 | K123: 0.8532266084 | L123: 1495304510 | M123: 1196031452 | N123: 1196031452 | O123: 0.01008069205 | P123: 0.7998581185 | Q123: 00003411502130052133 | R123: INFRAESTRUCTURA PARA EL DESARROLLO DEL HÁBITAT | S123: 137242908000 | T123: -14064202605 | U123: -14064202605 | V123: 123178705395 | X123: 123178705395 | Y123: 101231726352 | Z123: 101231726352 | AA123: 0.8218281401 | AB123: 550272728 | AG123: -4532937250 | AH123: -4532937250 | AI123: 0 | AJ123: 0 | AK123: 1196031452 | AL123: 0
A124: 3411502130053000 | B124: RENOV,REHAB.O REPOS.SIST.TRONCAL, SEC. Y LOCAL ALC. COMBIN | C124: 14605692000 | D124: 0 | E124: 74930049 | F124: 14680622049 | H124: 14680622049 | J124: 74930049 | K124: 0.005104010494 | L124: 0 | Q124: 3411502130053000 | R124: RENOV,REHAB.O REPOS.SIST.TRONCAL, SEC. Y LOCAL ALC. COMBIN | S124: 14605692000 | V124: 14605692000 | X124: 14605692000 | AG124: 74930049 | AH124: 74930049 | AI124: 74930049 | AJ124: 74930049 | AK124: 0 | AL124: 0
A125: 00003411502130053133 | B125: INFRAESTRUCTURA PARA EL DESARROLLO DEL HÁBITAT | C125: 14605692000 | D125: 0 | E125: 74930049 | F125: 14680622049 | H125: 14680622049 | J125: 74930049 | K125: 0.005104010494 | L125: 0 | Q125: 00003411502130053133 | R125: INFRAESTRUCTURA PARA EL DESARROLLO DEL HÁBITAT | S125: 14605692000 | V125: 14605692000 | X125: 14605692000 | AG125: 74930049 | AH125: 74930049 | AI125: 74930049 | AJ125: 74930049 | AK125: 0 | AL125: 0
A126: 3411502130054000 | B126: ACCIONES PARA EL SANEAMIENTO DEL RÍO BOGOTÁ | C126: 14225533000 | D126: 61713497669 | E126: 74807097669 | F126: 89032630669 | H126: 89032630669 | J126: 12297000000 | K126: 0.1381179002 | L126: 0 | Q126: 3411502130054000 | R126: ACCIONES PARA EL SANEAMIENTO DEL RÍO BOGOTÁ | S126: 14225533000 | T126: 0 | U126: 0 | V126: 14225533000 | X126: 14225533000 | Y126: 12297000000 | Z126: 12297000000 | AA126: 0.8644315823 | AG126: 74807097669 | AH126: 13093600000 | AI126: 0 | AJ126: 0 | AK126: 0 | AL126: 0
A127: 00003411502130054133 | B127: INFRAESTRUCTURA PARA EL DESARROLLO DEL HÁBITAT | C127: 14225533000 | D127: 61713497669 | E127: 74807097669 | F127: 89032630669 | H127: 89032630669 | J127: 12297000000 | K127: 0.1381179002 | L127: 0 | Q127: 00003411502130054133 | R127: INFRAESTRUCTURA PARA EL DESARROLLO DEL HÁBITAT | S127: 14225533000 | T127: 0 | U127: 0 | V127: 14225533000 | X127: 14225533000 | Y127: 12297000000 | Z127: 12297000000 | AA127: 0.8644315823 | AG127: 74807097669 | AH127: 13093600000 | AI127: 0 | AJ127: 0 | AK127: 0 | AL127: 0
A128: 3411502130068000 | B128: CONST,RENOV,REHAB.O REPOS.REDES ASOC.A INFRAESTRUCTURA VIAL | C128: 46457000000 | F128: 46457000000 | H128: 46457000000 | Q128: 3411502130068000 | R128: CONST,RENOV,REHAB.O REPOS.REDES ASOC.A INFRAESTRUCTURA VIAL | S128: 46457000000 | V128: 46457000000 | X128: 46457000000 | AG128: 0 | AH128: 0 | AI128: 0 | AJ128: 0 | AK128: 0 | AL128: 0
A129: 00003411502130068133 | B129: INFRAESTRUCTURA PARA EL DESARROLLO DEL HÁBITAT | C129: 46457000000 | F129: 46457000000 | H129: 46457000000 | Q129: 00003411502130068133 | R129: INFRAESTRUCTURA PARA EL DESARROLLO DEL HÁBITAT | S129: 46457000000 | V129: 46457000000 | X129: 46457000000 | AG129: 0 | AH129: 0 | AI129: 0 | AJ129: 0 | AK129: 0 | AL129: 0
A130: 3411502130081000 | B130: CORREDORES AMBIENTALES | C130: 121046203000 | D130: 0 | E130: -313803765 | F130: 120732399235 | H130: 120732399235 | J130: 2077396235 | K130: 0.01720661768 | L130: 0 | Q130: 3411502130081000 | R130: CORREDORES AMBIENTALES | S130: 121046203000 | T130: 0 | U130: 0 | V130: 121046203000 | X130: 121046203000 | Y130: 1751313132 | Z130: 1751313132 | AA130: 0.01446813769 | AB130: 2194298039 | AG130: -313803765 | AH130: -313803765 | AI130: 326083103 | AJ130: 326083103 | AK130: 0 | AL130: 0
A131: 00003411502130081133 | B131: INFRAESTRUCTURA PARA EL DESARROLLO DEL HÁBITAT | C131: 121046203000 | D131: 0 | E131: -313803765 | F131: 120732399235 | H131: 120732399235 | J131: 2077396235 | K131: 0.01720661768 | L131: 0 | Q131: 00003411502130081133 | R131: INFRAESTRUCTURA PARA EL DESARROLLO DEL HÁBITAT | S131: 121046203000 | T131: 0 | U131: 0 | V131: 121046203000 | X131: 121046203000 | Y131: 1751313132 | Z131: 1751313132 | AA131: 0.01446813769 | AB131: 2194298039 | AG131: -313803765 | AH131: -313803765 | AI131: 326083103 | AJ131: 326083103 | AK131: 0 | AL131: 0
A132: 3411502137334000 | B132: CONST.Y EXPANSIÓN SISTEMA ABASTECIMIENTO Y MATRIZ ACUEDUCTO | C132: 249776117000 | D132: 255615449 | E132: -9437488080 | F132: 240338628920 | H132: 240338628920 | I132: 184242360 | J132: 121665661899 | K132: 0.5062259964 | L132: 6065116456 | M132: 879132529 | N132: 1276244374 | O132: 0.005310192455 | P132: 0.2104237212 | Q132: 3411502137334000 | R132: CONST.Y EXPANSIÓN SISTEMA ABASTECIMIENTO Y MATRIZ ACUEDUCTO | S132: 249776117000 | T132: 0 | U132: 0 | V132: 249776117000 | X132: 249776117000 | Y132: 121469764791 | Z132: 121469764791 | AA132: 0.4863145694 | AB132: 79966314952 | AG132: -9437488080 | AH132: -9693103529 | AI132: 195897108 | AJ132: 11654748 | AK132: 1276244374 | AL132: 397111845
A133: 00003411502137334133 | B133: INFRAESTRUCTURA PARA EL DESARROLLO DEL HÁBITAT | C133: 249776117000 | D133: 255615449 | E133: -9437488080 | F133: 240338628920 | H133: 240338628920 | I133: 184242360 | J133: 121665661899 | K133: 0.5062259964 | L133: 6065116456 | M133: 879132529 | N133: 1276244374 | O133: 0.005310192455 | P133: 0.2104237212 | Q133: 00003411502137334133 | R133: INFRAESTRUCTURA PARA EL DESARROLLO DEL HÁBITAT | S133: 249776117000 | T133: 0 | U133: 0 | V133: 249776117000 | X133: 249776117000 | Y133: 121469764791 | Z133: 121469764791 | AA133: 0.4863145694 | AB133: 79966314952 | AG133: -9437488080 | AH133: -9693103529 | AI133: 195897108 | AJ133: 11654748 | AK133: 1276244374 | AL133: 397111845
A134: 3411502137338000 | B134: CONSTRUCCIÓN DE REDES LOCALES PARA EL SERVICIO DE ACUEDUCTO | C134: 15222554000 | D134: 0 | E134: -4012488363 | F134: 11210065637 | H134: 11210065637 | I134: 0 | J134: 3701024845 | K134: 0.3301519335 | L134: 217738966 | M134: 143835966 | N134: 143835966 | O134: 0.01283096555 | P134: 0.6605890009 | Q134: 3411502137338000 | R134: CONSTRUCCIÓN DE REDES LOCALES PARA EL SERVICIO DE ACUEDUCTO | S134: 15222554000 | T134: 0 | U134: 0 | V134: 15222554000 | X134: 15222554000 | Y134: 3701024845 | Z134: 3701024845 | AA134: 0.2431277199 | AB134: 272833259 | AG134: -4012488363 | AH134: -4012488363 | AI134: 0 | AJ134: 0 | AK134: 143835966 | AL134: 0
A135: 00003411502137338133 | B135: INFRAESTRUCTURA PARA EL DESARROLLO DEL HÁBITAT | C135: 15222554000 | D135: 0 | E135: -4012488363 | F135: 11210065637 | H135: 11210065637 | I135: 0 | J135: 3701024845 | K135: 0.3301519335 | L135: 217738966 | M135: 143835966 | N135: 143835966 | O135: 0.01283096555 | P135: 0.6605890009 | Q135: 00003411502137338133 | R135: INFRAESTRUCTURA PARA EL DESARROLLO DEL HÁBITAT | S135: 15222554000 | T135: 0 | U135: 0 | V135: 15222554000 | X135: 15222554000 | Y135: 3701024845 | Z135: 3701024845 | AA135: 0.2431277199 | AB135: 272833259 | AG135: -4012488363 | AH135: -4012488363 | AI135: 0 | AJ135: 0 | AK135: 143835966 | AL135: 0
A136: 3411506000000000 | B136: EJE TRANSV. SOST. AMBIENTAL BASADA EFICIENCIA ENERGÉTICA | C136: 61193149000 | D136: 3184905987 | E136: -2719341963 | F136: 58473807037 | H136: 58473807037 | I136: 230922149 | J136: 33059327272 | K136: 0.5653698459 | L136: 1505562977 | M136: 612857245 | N136: 612857245 | O136: 0.01048088496 | P136: 0.4070618462 | Q136: 3411506000000000 | R136: EJE TRANSV. SOST. AMBIENTAL BASADA EFICIENCIA ENERGÉTICA | S136: 61193149000 | T136: 0 | U136: 0 | V136: 61193149000 | X136: 61193149000 | Y136: 32827042961 | Z136: 32827042961 | AA136: 0.5364496434 | AB136: 1345278556 | AG136: -2719341963 | AH136: -5904247950 | AI136: 232284311 | AJ136: 1362162 | AK136: 612857245 | AL136: 0
A137: 3411506380000000 | B137: RECUPERACIÓN Y MANEJO DE LA ESTRUCTURA ECOLÓGICA PRINCIPAL | D137: 274248602 | E137: 274519370 | F137: 274519370 | H137: 274519370 | I137: 230922149 | J137: 231117911 | K137: 0.8419001945 | L137: 270768 | M137: 195762 | N137: 195762 | O137: 0.0007131081497 | P137: 0.7229879454 | AG137: =F137-V137 -> 274519370 | AH137: =AG137-D137 -> 270768 | AI137: =J137-Z137 -> 231117911 | AJ137: =AI137-I137 -> 195762 | AK137: =N137-AD137 -> 195762 | AL137: =AK137-M137 -> 0
A138: 3411506387341000 | B138: ADEC.HIDRÁULICA RECUP.AMB.HUMED,QUEBRADAS,RÍOS CUENCAS ABAST | D138: 274248602 | E138: 274519370 | F138: 274519370 | H138: 274519370 | I138: 230922149 | J138: 231117911 | K138: 0.8419001945 | L138: 270768 | M138: 195762 | N138: 195762 | O138: 0.0007131081497 | P138: 0.7229879454 | AG138: 274519370 | AH138: 270768 | AI138: 231117911 | AJ138: 195762 | AK138: 195762 | AL138: 0
A139: 00003411506387341177 | B139: CONSOLIDACIÓN DE LA ESTRUCTURA ECOLÓGICA PRINCIPAL | D139: 274248602 | E139: 274519370 | F139: 274519370 | H139: 274519370 | I139: 230922149 | J139: 231117911 | K139: 0.8419001945 | L139: 270768 | M139: 195762 | N139: 195762 | O139: 0.0007131081497 | P139: 0.7229879454 | AG139: 274519370 | AH139: 270768 | AI139: 231117911 | AJ139: 195762 | AK139: 195762 | AL139: 0
A140: 3411506390000000 | B140: AMBIENTE SANO PARA LA EQUIDAD Y DISFRUTE DEL CIUDADANO | C140: 61193149000 | D140: 2910657385 | E140: -2993861333 | F140: 58199287667 | H140: 58199287667 | I140: 0 | J140: 32828209361 | K140: 0.5640654839 | L140: 1505292209 | M140: 612661483 | N140: 612661483 | O140: 0.01052695845 | P140: 0.4070050183 | Q140: 3411506390000000 | R140: AMBIENTE SANO PARA LA EQUIDAD Y DISFRUTE DEL CIUDADANO | S140: 61193149000 | T140: 0 | U140: 0 | V140: 61193149000 | X140: 61193149000 | Y140: 32827042961 | Z140: 32827042961 | AA140: 0.5364496434 | AB140: 1345278556 | AG140: -2993861333 | AH140: -5904518718 | AI140: 1166400 | AJ140: 1166400 | AK140: 612661483 | AL140: 0
A141: 3411506390082000 | B141: PLAN DE SANEAMIENTO Y MANEJO DE VERTIMIENTOS | C141: 61193149000 | D141: 2910657385 | E141: -2993861333 | F141: 58199287667 | H141: 58199287667 | I141: 0 | J141: 32828209361 | K141: 0.5640654839 | L141: 1505292209 | M141: 612661483 | N141: 612661483 | O141: 0.01052695845 | P141: 0.4070050183 | Q141: 3411506390082000 | R141: PLAN DE SANEAMIENTO Y MANEJO DE VERTIMIENTOS | S141: 61193149000 | T141: 0 | U141: 0 | V141: 61193149000 | X141: 61193149000 | Y141: 32827042961 | Z141: 32827042961 | AA141: 0.5364496434 | AB141: 1345278556 | AG141: -2993861333 | AH141: -5904518718 | AI141: 1166400 | AJ141: 1166400 | AK141: 612661483 | AL141: 0
A142: 00003411506390082179 | B142: AMBIENTE SANO | C142: 61193149000 | D142: 2910657385 | E142: -2993861333 | F142: 58199287667 | H142: 58199287667 | I142: 0 | J142: 32828209361 | K142: 0.5640654839 | L142: 1505292209 | M142: 612661483 | N142: 612661483 | O142: 0.01052695845 | P142: 0.4070050183 | Q142: 00003411506390082179 | R142: AMBIENTE SANO | S142: 61193149000 | T142: 0 | U142: 0 | V142: 61193149000 | X142: 61193149000 | Y142: 32827042961 | Z142: 32827042961 | AA142: 0.5364496434 | AB142: 1345278556 | AG142: -2993861333 | AH142: -5904518718 | AI142: 1166400 | AJ142: 1166400 | AK142: 612661483 | AL142: 0
A143: 3411507000000000 | B143: EJE TRANSVERSAL GOBIERNO LEGÍTIMO, FORT. LOCAL Y EFICIENTE | C143: 32591418000 | D143: 0 | E143: 40440083 | F143: 32631858083 | H143: 32631858083 | I143: 0 | J143: 1617753340 | K143: 0.04957588795 | L143: 1598118819 | Q143: 3411507000000000 | R143: EJE TRANSVERSAL GOBIERNO LEGÍTIMO, FORT. LOCAL Y EFICIENTE | S143: 32591418000 | T143: 0 | U143: 0 | V143: 32591418000 | X143: 32591418000 | Y143: 1617753340 | Z143: 1617753340 | AA143: 0.04963740271 | AB143: 66300000 | AG143: 40440083 | AH143: 40440083 | AI143: 0 | AJ143: 0 | AK143: 0 | AL143: 0
A144: 3411507420000000 | B144: TRANSPARENCIA, GESTIÓN PÚBLICA Y SERVICIO A LA CIUDADANÍA | C144: 32591418000 | D144: 0 | E144: 40440083 | F144: 32631858083 | H144: 32631858083 | I144: 0 | J144: 1617753340 | K144: 0.04957588795 | L144: 1598118819 | Q144: 3411507420000000 | R144: TRANSPARENCIA, GESTIÓN PÚBLICA Y SERVICIO A LA CIUDADANÍA | S144: 32591418000 | T144: 0 | U144: 0 | V144: 32591418000 | X144: 32591418000 | Y144: 1617753340 | Z144: 1617753340 | AA144: 0.04963740271 | AB144: 66300000 | AG144: 40440083 | AH144: 40440083 | AI144: 0 | AJ144: 0 | AK144: 0 | AL144: 0
A145: 3411507420055000 | B145: FORTALECIMIENTO ADMINISTRATIVO Y OPERATIVO EMPRESARIAL | C145: 32591418000 | D145: 0 | E145: 40440083 | F145: 32631858083 | H145: 32631858083 | I145: 0 | J145: 1617753340 | K145: 0.04957588795 | L145: 1598118819 | Q145: 3411507420055000 | R145: FORTALECIMIENTO ADMINISTRATIVO Y OPERATIVO EMPRESARIAL | S145: 32591418000 | T145: 0 | U145: 0 | V145: 32591418000 | X145: 32591418000 | Y145: 1617753340 | Z145: 1617753340 | AA145: 0.04963740271 | AB145: 66300000 | AG145: 40440083 | AH145: 40440083 | AI145: 0 | AJ145: 0 | AK145: 0 | AL145: 0
A146: 00003411507420055185 | B146: FORTALECIMIENTO ADMINISTRATIVO Y OPERATIVO EMPRESARIAL | C146: 32591418000 | D146: 0 | E146: 40440083 | F146: 32631858083 | H146: 32631858083 | I146: 0 | J146: 1617753340 | K146: 0.04957588795 | L146: 1598118819 | Q146: 00003411507420055185 | R146: FORTALECIMIENTO ADMINISTRATIVO Y OPERATIVO EMPRESARIAL | S146: 32591418000 | T146: 0 | U146: 0 | V146: 32591418000 | X146: 32591418000 | Y146: 1617753340 | Z146: 1617753340 | AA146: 0.04963740271 | AB146: 66300000 | AG146: 40440083 | AH146: 40440083 | AI146: 0 | AJ146: 0 | AK146: 0 | AL146: 0
A147: 342000000000000 | B147: TRANSFERENCIAS PARA INVERSION | C147: 406848694000 | D147: -34884369466 | E147: 54926013365 | F147: 461774707365 | H147: 461774707365 | I147: 114206169 | J147: 5255040684 | K147: 0.0113800964 | L147: 5283912782 | M147: 114206169 | N147: 5255040684 | O147: 0.0113800964 | P147: 0.9945358489 | Q147: 342000000000000 | R147: TRANSFERENCIAS PARA INVERSION | S147: 406848694000 | V147: 406848694000 | X147: 406848694000 | Y147: 0 | Z147: 0 | AA147: 0 | AG147: 54926013365 | AH147: 89810382831 | AI147: 5255040684 | AJ147: 5140834515 | AK147: 5255040684 | AL147: 5140834515
A148: 00000342030000000000 | B148: PATRIMONIO AUTONOMO PENSIONAL | C148: 73800000000 | F148: 73800000000 | H148: 73800000000 | J148: 5000000000 | K148: 0.06775067751 | L148: 5000000000 | N148: 5000000000 | O148: 0.06775067751 | P148: 1 | Q148: 00000342030000000000 | R148: PATRIMONIO AUTONOMO PENSIONAL | S148: 73800000000 | V148: 73800000000 | X148: 73800000000 | AG148: 0 | AH148: 0 | AI148: 5000000000 | AJ148: 5000000000 | AK148: 5000000000 | AL148: 5000000000
A149: 00000342040000000000 | B149: FONDO PLAN DE EXPANSION | C149: 318975936000 | D149: -34882746466 | E149: 54927636365 | F149: 373903572365 | H149: 373903572365 | Q149: 00000342040000000000 | R149: FONDO PLAN DE EXPANSION | S149: 318975936000 | V149: 318975936000 | X149: 318975936000 | AG149: 54927636365 | AH149: 89810382831 | AI149: 0 | AJ149: 0 | AK149: 0 | AL149: 0
A150: 00000342060000000000 | B150: FONDO CUENTAS POR PAGAR LIBERADAS | C150: 4000000000 | D150: -1623000 | E150: -1623000 | F150: 3998377000 | H150: 3998377000 | Q150: 00000342060000000000 | R150: FONDO CUENTAS POR PAGAR LIBERADAS | S150: 4000000000 | V150: 4000000000 | X150: 4000000000 | AG150: -1623000 | AH150: 0 | AI150: 0 | AJ150: 0 | AK150: 0 | AL150: 0
A151: 00000342090000000000 | B151: TRANFERENCIAS ADMINISTRACION CENTRAL - RIO BOGOTA | C151: 2795000000 | F151: 2795000000 | H151: 2795000000 | Q151: 00000342090000000000 | R151: TRANFERENCIAS ADMINISTRACION CENTRAL - RIO BOGOTA | S151: 2795000000 | V151: 2795000000 | X151: 2795000000 | AG151: 0 | AH151: 0 | AI151: 0 | AJ151: 0 | AK151: 0 | AL151: 0
A152: 00000342100000000000 | B152: FONDO EQUIPOS SINIESTRADOS | C152: 2000000000 | F152: 2000000000 | H152: 2000000000 | Q152: 00000342100000000000 | R152: FONDO EQUIPOS SINIESTRADOS | S152: 2000000000 | V152: 2000000000 | X152: 2000000000 | AG152: 0 | AH152: 0 | AI152: 0 | AJ152: 0 | AK152: 0 | AL152: 0
A153: 00000342120000000000 | B153: FONDO REPOSICION EQUIPOS ASEO | C153: 3782557000 | F153: 3782557000 | H153: 3782557000 | I153: 114206169 | J153: 255040684 | K153: 0.06742547013 | L153: 283912782 | M153: 114206169 | N153: 255040684 | O153: 0.06742547013 | P153: 0.8983064524 | Q153: 00000342120000000000 | R153: FONDO REPOSICION EQUIPOS ASEO | S153: 3782557000 | V153: 3782557000 | X153: 3782557000 | AG153: 0 | AH153: 0 | AI153: 255040684 | AJ153: 140834515 | AK153: 255040684 | AL153: 140834515
A154: 00000342140000000000 | B154: TRANSFERENCIAS ENTIDADES DISTRITALES | J154: 0 | K154: 0 | Q154: 00000342140000000000 | R154: TRANSFERENCIAS ENTIDADES DISTRITALES | Y154: 0 | Z154: 0 | AA154: 0 | AG154: 0 | AH154: 0 | AI154: 0 | AJ154: 0 | AK154: 0 | AL154: 0
A155: 00000342160000000000 | B155: FONDO OBLIGACIONES CONTINGENTES | C155: 1495201000 | F155: 1495201000 | H155: 1495201000 | Q155: 00000342160000000000 | R155: FONDO OBLIGACIONES CONTINGENTES | S155: 1495201000 | V155: 1495201000 | X155: 1495201000 | AG155: 0 | AH155: 0 | AI155: 0 | AJ155: 0 | AK155: 0 | AL155: 0
A156: 343000000000000 | B156: CUENTAS POR PAGAR | C156: 565023385000 | D156: 1623000 | E156: 13739742502 | F156: 578763127502 | H156: 578763127502 | I156: -171888124 | J156: 484242288318 | K156: 0.8366847598 | L156: 141784240243 | M156: 52565780839 | N156: 95754496973 | O156: 0.165446782 | P156: 0.6753535993 | Q156: 343000000000000 | R156: CUENTAS POR PAGAR | S156: 565023385000 | T156: 14064202605 | U156: 14064202605 | V156: 579087587605 | X156: 579087587605 | Y156: 485060673038 | Z156: 485060673038 | AA156: 0.8376292005 | AB156: 45639981465 | AC156: 5003273871 | AD156: 5003273871 | AE156: 0.008639925942 | AF156: 0.1096248007 | AG156: -324460103 | AH156: -326083103 | AI156: -818384720 | AJ156: -646496596 | AK156: 90751223102 | AL156: 38185442263
A157: 00000343000000000000 | B157: CUENTAS POR PAGAR | C157: 565023385000 | D157: 1623000 | E157: 13739742502 | F157: 578763127502 | H157: 578763127502 | I157: -171888124 | J157: 484242288318 | K157: 0.8366847598 | L157: 141784240243 | M157: 52565780839 | N157: 95754496973 | O157: 0.165446782 | P157: 0.6753535993 | Q157: 00000343000000000000 | R157: CUENTAS POR PAGAR | S157: 565023385000 | T157: 14064202605 | U157: 14064202605 | V157: 579087587605 | X157: 579087587605 | Y157: 485060673038 | Z157: 485060673038 | AA157: 0.8376292005 | AB157: 45639981465 | AC157: 5003273871 | AD157: 5003273871 | AE157: 0.008639925942 | AF157: 0.1096248007 | AG157: -324460103 | AH157: -326083103 | AI157: -818384720 | AJ157: -646496596 | AK157: 90751223102 | AL157: 38185442263
A158: 400000000000000 | B158: DISPONIBILIDAD FINAL | C158: 111809729000 | D158: 0 | E158: 0 | F158: 111809729000 | H158: 111809729000 | Q158: 400000000000000 | R158: DISPONIBILIDAD FINAL | S158: 111809729000 | T158: 0 | U158: 0 | V158: 111809729000 | X158: 111809729000 | AG158: 0 | AH158: 0 | AI158: 0 | AJ158: 0 | AK158: 0 | AL158: 0
A159: 00000400000000000000 | B159: DISPONIBILIDAD FINAL | C159: 111809729000 | D159: 0 | E159: 0 | F159: 111809729000 | H159: 111809729000 | Q159: 00000400000000000000 | R159: DISPONIBILIDAD FINAL | S159: 111809729000 | T159: 0 | U159: 0 | V159: 111809729000 | X159: 111809729000 | AG159: 0 | AH159: 0 | AI159: 0 | AJ159: 0 | AK159: 0 | AL159: 0
